Workbook

Sheet الرصيد 3 (9)
A1: رصيد توكيل ( توكيل نجع حمادى ) عن يوم ( الخميس 9/13 ) | W1: شيت به معادلات عادية
A2: م | B2: الكود | C2: مدة الصلاحية | D2: الصنف | E2: الوحدة | F2: الرصيد الدفترى بالكرتونة | V2: الرصيد الفعلى بالكرتونة | W2: تنسيق الارقام مع اسم الصنف والتاريخ المقابل لها | AN2: الرصيد الفعلى بالكرتونة
G3: 2024-07-01 | H3: 2024-08-01 | I3: 2024-09-01 | J3: 2024-10-01 | K3: 2024-11-01 | L3: 2024-12-01 | M3: 2025-01-01 | N3: 2025-02-01 | O3: 2025-03-01 | P3: 2025-04-01 | Q3: 2025-05-01 | R3: 2025-06-01 | S3: 2025-07-01 | T3: 2025-08-01 | U3: 2025-09-01 | W3: اسم الصنف | X3: الرصيد | Y3: 2024-07-01 | Z3: 2024-08-01 | AA3: 2024-09-01 | AB3: 2024-10-01 | AC3: 2024-11-01 | AD3: 2024-12-01 | AE3: 2025-01-01 | AF3: 2025-02-01 | AG3: 2025-03-01 | AH3: 2025-04-01 | AI3: 2025-05-01 | AJ3: 2025-06-01 | AK3: 2025-07-01 | AL3: 2025-08-01 | AM3: 2025-09-01 | AO3: =IFERROR(IF(INDEX($G$4:$U$94,MATCH(SUBSTITUTE(TRIM($W4),CHAR(160)," "),SUBSTITUTE(TRIM($D$4:$D$94),CHAR(160)," "),0),MATCH(Y$3,$G$3:$U$3,0))=0,"",INDEX($G$4:$U$94,MATCH(SUBSTITUTE(TRIM($W4),CHAR(160)," "),SUBSTITUTE(TRIM($D$4:$D$94),CHAR(160)," "),0),MATCH(Y$3,$G$3:$U$3,0))),"") -> 
A4: 1 | B4: 6222000901529 | C4: سنتان | D4: سوبر فينا 10 كيلو | E4: كرتونة | S4: 52 | T4: 50 | U4: 100 | V4: =SUM(G4:U4) -> 202 | W4: سوبر فينا 10 كيلو | X4: =AN4 -> 202 | Y4: =IFERROR(VLOOKUP(TRIM(CLEAN($W4)), $D$4:$U$94, MATCH(Y$3, $D$3:$U$3, 0), FALSE), "") -> 0 | Z4: =IFERROR(VLOOKUP(TRIM(CLEAN($W4)), $D$4:$U$94, MATCH(Z$3, $D$3:$U$3, 0), FALSE), "") -> 0 | AA4: 0 | AB4: 0 | AC4: 0 | AD4: 0 | AE4: 0 | AF4: 0 | AG4: 0 | AH4: 0 | AI4: 0 | AJ4: 0 | AK4: 52 | AL4: 50 | AM4: 100 | AN4: =SUM(Y4:AM4) -> 202 | AO4: =TRIM(CLEAN(SUBSTITUTE(SUBSTITUTE(SUBSTITUTE(W4,CHAR(10),""),CHAR(13),""),CHAR(9),""))) -> سوبر فينا 10 كيلو
A5: 2 | B5: 6222000901536 | C5: سنتان | D5: سوبر فينا 10 كيلو نعناع | E5: كرتونة | S5: 24 | U5: 155 | V5: =SUM(G5:U5) -> 179 | W5: سولا فواكة فلوباك 10 ك | X5: =AN5 -> 55 | Y5: =IFERROR(VLOOKUP(TRIM(CLEAN($W5)), $D$4:$U$94, MATCH(Y$3, $D$3:$U$3, 0), FALSE), "") -> 0 | Z5: 0 | AA5: 0 | AB5: 0 | AC5: 0 | AD5: 0 | AE5: 0 | AF5: 0 | AG5: 0 | AH5: 0 | AI5: 0 | AJ5: 0 | AK5: 0 | AL5: 55 | AM5: 0 | AN5: =SUM(Y5:AM5) -> 55 | AO5: =TRIM(CLEAN(SUBSTITUTE(SUBSTITUTE(SUBSTITUTE(W5,CHAR(10),""),CHAR(13),""),CHAR(9),""))) -> سولا فواكة فلوباك 10 ك
A6: 3 | B6: 6222000911733 | C6: سنتان | D6: نعناع 12كيس 50 ق 4جم | E6: كرتونة | T6: 3 | V6: 3 | W6: سولا فواكة 5 ك | X6: 0 | Y6: 0 | Z6: 0 | AA6: 0 | AB6: 0 | AC6: 0 | AD6: 0 | AE6: 0 | AF6: 0 | AG6: 0 | AH6: 0 | AI6: 0 | AJ6: 0 | AK6: 0 | AL6: 0 | AM6: 0 | AN6: 0 | AO6: سولا فواكة 5 ك
A7: 4 | B7: 6222000911764 | C7: سنتان | D7: سولا فواكه 12 كيس * 50 ق | E7: كرتونة | V7: 0 | W7: سولا فواكه 30 كيس * 28 ق | X7: 0 | Y7: 0 | Z7: 0 | AA7: 0 | AB7: 0 | AC7: 0 | AD7: 0 | AE7: 0 | AF7: 0 | AG7: 0 | AH7: 0 | AI7: 0 | AJ7: 0 | AK7: 0 | AL7: 0 | AM7: 0 | AN7: 0 | AO7: سولا فواكه 30 كيس * 28 ق
A8: 5 | B8: 6222000917773 | C8: سنتان | D8: سولا فواكه 30 كيس * 28 ق | E8: كرتونة | V8: 0 | W8: سولا فواكه 12 كيس * 50 ق | X8: 0 | Y8: 0 | Z8: 0 | AA8: 0 | AB8: 0 | AC8: 0 | AD8: 0 | AE8: 0 | AF8: 0 | AG8: 0 | AH8: 0 | AI8: 0 | AJ8: 0 | AK8: 0 | AL8: 0 | AM8: 0 | AN8: 0 | AO8: سولا فواكه 12 كيس * 50 ق
A9: 6 | B9: 6222000917780 | C9: سنتان | D9: سولا فواكه 12 كيس * 100 ق | E9: كرتونة | T9: 104 | V9: 104 | W9: سولا فواكه 12 كيس * 100 ق | X9: 104 | Y9: 0 | Z9: 0 | AA9: 0 | AB9: 0 | AC9: 0 | AD9: 0 | AE9: 0 | AF9: 0 | AG9: 0 | AH9: 0 | AI9: 0 | AJ9: 0 | AK9: 0 | AL9: 104 | AM9: 0 | AN9: 104 | AO9: سولا فواكه 12 كيس * 100 ق
A10: 7 | B10: 6222000916295 | C10: سنتان | D10: سولا فواكة 6 كيس * 800 جم | E10: كرتونة | V10: 0 | W10: سولا ف 12 ع * 200 ق | X10: 0 | Y10: 0 | Z10: 0 | AA10: 0 | AB10: 0 | AC10: 0 | AD10: 0 | AE10: 0 | AF10: 0 | AG10: 0 | AH10: 0 | AI10: 0 | AJ10: 0 | AK10: 0 | AL10: 0 | AM10: 0 | AN10: 0 | AO10: سولا ف 12 ع * 200 ق
A11: 8 | B11: 6222000912525 | C11: سنتان | D11: سولا ف 12 ع * 200 ق | E11: كرتونة | V11: 0 | W11: سولا ف 12 ع * 240 ق | X11: 0 | Y11: 0 | Z11: 0 | AA11: 0 | AB11: 0 | AC11: 0 | AD11: 0 | AE11: 0 | AF11: 0 | AG11: 0 | AH11: 0 | AI11: 0 | AJ11: 0 | AK11: 0 | AL11: 0 | AM11: 0 | AN11: 0 | AO11: سولا ف 12 ع * 240 ق
A12: 9 | B12: 6222000912518 | C12: سنتان | D12: سولا نعناع 12 ع * 200 ق | E12: كرتونة | Q12: 22 | V12: 22 | W12: سولا فواكة 6 كيس * 800 جم | X12: 0 | Y12: 0 | Z12: 0 | AA12: 0 | AB12: 0 | AC12: 0 | AD12: 0 | AE12: 0 | AF12: 0 | AG12: 0 | AH12: 0 | AI12: 0 | AJ12: 0 | AK12: 0 | AL12: 0 | AM12: 0 | AN12: 0 | AO12: سولا فواكة 6 كيس * 800 جم
A13: 10 | B13: 6222000912525 | C13: سنتان | D13: سولا ف 12 ع * 240 ق | E13: كرتونة | V13: 0 | W13: سوبر فينا 10 كيلو نعناع | X13: 179 | Y13: 0 | Z13: 0 | AA13: 0 | AB13: 0 | AC13: 0 | AD13: 0 | AE13: 0 | AF13: 0 | AG13: 0 | AH13: 0 | AI13: 0 | AJ13: 0 | AK13: 24 | AL13: 0 | AM13: 155 | AN13: 179 | AO13: سوبر فينا 10 كيلو نعناع
A14: 11 | B14: 6222000908566 | C14: سنتان | D14: سولا فواكة 5 ك | E14: كرتونة | V14: 0 | W14: سولا نعناع فلوباك 10 ك | X14: 0 | AN14: 0 | AO14: سولا نعناع فلوباك 10 ك
A15: 12 | B15: 6222000908573 | C15: سنتان | D15: سولا نعناع 5 ك | E15: كرتونة | N15: 59 | V15: 59 | W15: سولا نعناع 5 ك | X15: 59 | Y15: 0 | Z15: 0 | AA15: 0 | AB15: 0 | AC15: 0 | AD15: 0 | AE15: 0 | AF15: 59 | AG15: 0 | AH15: 0 | AI15: 0 | AJ15: 0 | AK15: 0 | AL15: 0 | AM15: 0 | AN15: 59 | AO15: سولا نعناع 5 ك
A16: 13 | B16: 00743 | C16: سنة | D16: قهوة 12 ع * 200 ق | E16: كرتونة | V16: 0 | W16: سولا نعناع 30 كيس * 28 ق | X16: 0 | AN16: 0 | AO16: سولا نعناع 30 كيس * 28 ق
A17: 14 | B17: 6222000917452 | C17: سنة | D17: قهوة 12 ع * 240 ق | E17: كرتونة | T17: 27 | V17: 27 | W17: نعناع 12كيس 50 ق 4جم | X17: 3 | Y17: 0 | Z17: 0 | AA17: 0 | AB17: 0 | AC17: 0 | AD17: 0 | AE17: 0 | AF17: 0 | AG17: 0 | AH17: 0 | AI17: 0 | AJ17: 0 | AK17: 0 | AL17: 3 | AM17: 0 | AN17: 3 | AO17: نعناع 12كيس 50 ق 4جم
A18: 15 | B18: 6222000901758 | C18: سنة | D18: سولا قهوه 10 كيلو | E18: كرتونة | S18: 15.5 | T18: 50 | V18: 65.5 | W18: سولا نعناع 12 كيس * 100 ق | X18: 0 | AN18: 0 | AO18: سولا نعناع 12 كيس * 100 ق
A19: 16 | B19: 6222000912020 | C19: سنة | D19: قهوة 5 ك | E19: كرتونة | V19: 0 | W19: سولا نعناع 12 ع * 200 ق | X19: 22 | Y19: 0 | Z19: 0 | AA19: 0 | AB19: 0 | AC19: 0 | AD19: 0 | AE19: 0 | AF19: 0 | AG19: 0 | AH19: 0 | AI19: 22 | AJ19: 0 | AK19: 0 | AL19: 0 | AM19: 0 | AN19: 22 | AO19: سولا نعناع 12 ع * 200 ق
A20: 17 | B20: 6222000909815 | C20: سنة | D20: قهوة 12 كيس * 80 ق / 90 ق | E20: كرتونة | R20: 85 | T20: 65 | V20: 150 | W20: نعناع 12 ع * 240 ق | X20: 0 | Y20: 0 | Z20: 0 | AA20: 0 | AB20: 0 | AC20: 0 | AD20: 0 | AE20: 0 | AF20: 0 | AG20: 0 | AH20: 0 | AI20: 0 | AJ20: 0 | AK20: 0 | AL20: 0 | AM20: 0 | AN20: 0 | AO20: نعناع 12 ع * 240 ق
A21: 18 | B21: 6222000908610 | C21: سنة | D21: قهوة 30 كيس * 18 ق / 25 ق | E21: كرتونة | V21: 0 | W21: سولا قهوه 10 كيلو | X21: 65.5 | Y21: 0 | Z21: 0 | AA21: 0 | AB21: 0 | AC21: 0 | AD21: 0 | AE21: 0 | AF21: 0 | AG21: 0 | AH21: 0 | AI21: 0 | AJ21: 0 | AK21: 15.5 | AL21: 50 | AM21: 0 | AN21: 65.5 | AO21: سولا قهوه 10 كيلو
A22: 19 | B22: 6222000909891 | C22: سنة | D22: قهوة 30 كيس * 12قطعه | E22: كرتونة | V22: 0 | W22: قهوة 5 ك | X22: 0 | Y22: 0 | Z22: 0 | AA22: 0 | AB22: 0 | AC22: 0 | AD22: 0 | AE22: 0 | AF22: 0 | AG22: 0 | AH22: 0 | AI22: 0 | AJ22: 0 | AK22: 0 | AL22: 0 | AM22: 0 | AN22: 0 | AO22: قهوة 5 ك
A23: 20 | B23: 00744 | C23: سنة | D23: زبدة 12 ع * 200 ق | E23: كرتونة | S23: 64 | V23: 64 | W23: قهوة 30 كيس * 12قطعه | X23: 0 | Y23: 0 | Z23: 0 | AA23: 0 | AB23: 0 | AC23: 0 | AD23: 0 | AE23: 0 | AF23: 0 | AG23: 0 | AH23: 0 | AI23: 0 | AJ23: 0 | AK23: 0 | AL23: 0 | AM23: 0 | AN23: 0 | AO23: قهوة 30 كيس * 12قطعه
A24: 21 | B24: 6222000901642 | C24: سنة | D24: سولا زبده 10 كيلو | E24: كرتونة | T24: 18 | V24: 18 | W24: قهوة 30 كيس * 15قطعه | X24: 0 | AN24: 0 | AO24: قهوة 30 كيس * 15قطعه
A25: 22 | B25: 6222000912037 | C25: سنة | D25: زبدة 5 ك | E25: كرتونة | V25: 0 | W25: قهوة 30 كيس * 18 ق / 25 ق | X25: 0 | Y25: 0 | Z25: 0 | AA25: 0 | AB25: 0 | AC25: 0 | AD25: 0 | AE25: 0 | AF25: 0 | AG25: 0 | AH25: 0 | AI25: 0 | AJ25: 0 | AK25: 0 | AL25: 0 | AM25: 0 | AN25: 0 | AO25: قهوة 30 كيس * 18 ق / 25 ق
A26: 23 | B26: 6222000917124 | C26: سنة | D26: زبدة بالشيكولاته 12 علبة * 240 ق | E26: كرتونة | T26: 64 | V26: 64 | W26: قهوة 12 كيس * 55 ق | X26: 0 | AN26: 0 | AO26: قهوة 12 كيس * 55 ق
A27: 24 | B27: 6222000918732 | C27: سنة | D27: زبدة بالشيكولاته 10 ك | E27: كرتونة | T27: 34 | V27: 34 | W27: قهوة 12 كيس * 80 ق / 90 ق | X27: 150 | Y27: 0 | Z27: 0 | AA27: 0 | AB27: 0 | AC27: 0 | AD27: 0 | AE27: 0 | AF27: 0 | AG27: 0 | AH27: 0 | AI27: 0 | AJ27: 85 | AK27: 0 | AL27: 65 | AM27: 0 | AN27: 150 | AO27: قهوة 12 كيس * 80 ق / 90 ق
A28: 25 | B28: 6222000909808 | C28: سنة | D28: زبدة 12 كيس * 80 ق / 90 ق | E28: كرتونة | V28: 0 | W28: قهوة 12 كيس * 120 ق | X28: 0 | AN28: 0 | AO28: قهوة 12 كيس * 120 ق
A29: 26 | B29: 6222000907583 | C29: سنة | D29: زبدة 30 كيس * 18 ق / 25 ق | E29: كرتونة | P29: 110 | V29: 110 | W29: قهوة 12 ع * 200 ق | X29: 0 | Y29: 0 | Z29: 0 | AA29: 0 | AB29: 0 | AC29: 0 | AD29: 0 | AE29: 0 | AF29: 0 | AG29: 0 | AH29: 0 | AI29: 0 | AJ29: 0 | AK29: 0 | AL29: 0 | AM29: 0 | AN29: 0 | AO29: قهوة 12 ع * 200 ق
A30: 27 | B30: 6222000909884 | C30: سنة | D30: زبدة 30 كيس * 12قطعه | E30: كرتونة | S30: 61 | T30: 48 | V30: 109 | W30: قهوة 12 ع * 240 ق | X30: 27 | Y30: 0 | Z30: 0 | AA30: 0 | AB30: 0 | AC30: 0 | AD30: 0 | AE30: 0 | AF30: 0 | AG30: 0 | AH30: 0 | AI30: 0 | AJ30: 0 | AK30: 0 | AL30: 27 | AM30: 0 | AN30: 27 | AO30: قهوة 12 ع * 240 ق
A31: 28 | B31: 6222000909884 | C31: سنة | D31: زبدة 30 كيس * 15 قطعه | E31: كرتونة | V31: 0 | W31: قهوه20كيس*150جرام | X31: 0 | Y31: 0 | Z31: 0 | AA31: 0 | AB31: 0 | AC31: 0 | AD31: 0 | AE31: 0 | AF31: 0 | AG31: 0 | AH31: 0 | AI31: 0 | AJ31: 0 | AK31: 0 | AL31: 0 | AM31: 0 | AN31: 0 | AO31: قهوه20كيس*150جرام
A32: 29 | B32: 6222000905688 | C32: سنة | D32: زبدة 12 كيس * 55 قطعه | E32: كرتونة | V32: 0 | W32: سولا زبده 10 كيلو | X32: 18 | Y32: 0 | Z32: 0 | AA32: 0 | AB32: 0 | AC32: 0 | AD32: 0 | AE32: 0 | AF32: 0 | AG32: 0 | AH32: 0 | AI32: 0 | AJ32: 0 | AK32: 0 | AL32: 18 | AM32: 0 | AN32: 18 | AO32: سولا زبده 10 كيلو
A33: 30 | B33: 171 | C33: سنة | D33: زبدة 12 كيس * 120 ق | E33: كرتونة | S33: 41 | U33: 45 | V33: 86 | W33: زبدة 5 ك | X33: 0 | Y33: 0 | Z33: 0 | AA33: 0 | AB33: 0 | AC33: 0 | AD33: 0 | AE33: 0 | AF33: 0 | AG33: 0 | AH33: 0 | AI33: 0 | AJ33: 0 | AK33: 0 | AL33: 0 | AM33: 0 | AN33: 0 | AO33: زبدة 5 ك
A34: 31 | B34: 6222000910064 | C34: سنة | D34: زبدة 10 شنطة * 800 جم | E34: كرتونة | V34: 0 | W34: زبدة 30 كيس * 12قطعه | X34: 109 | Y34: 0 | Z34: 0 | AA34: 0 | AB34: 0 | AC34: 0 | AD34: 0 | AE34: 0 | AF34: 0 | AG34: 0 | AH34: 0 | AI34: 0 | AJ34: 0 | AK34: 61 | AL34: 48 | AM34: 0 | AN34: 109 | AO34: زبدة 30 كيس * 12قطعه
A35: 32 | B35: 6222000912501 | C35: 9 أشهر | D35: عسلية 12 ع * 200 ق | E35: كرتونة | V35: 0 | W35: زبدة 30 كيس * 15 قطعه | X35: 0 | Y35: 0 | Z35: 0 | AA35: 0 | AB35: 0 | AC35: 0 | AD35: 0 | AE35: 0 | AF35: 0 | AG35: 0 | AH35: 0 | AI35: 0 | AJ35: 0 | AK35: 0 | AL35: 0 | AM35: 0 | AN35: 0 | AO35: زبدة 30 كيس * 15 قطعه
A36: 33 | B36: 6222000912457 | C36: 9 أشهر | D36: عسلية 5 ك | E36: كرتونة | V36: 0 | W36: زبدة 30 كيس * 18 ق / 25 ق | X36: 110 | Y36: =IFERROR(VLOOKUP(TRIM(CLEAN($W36)), $D$4:$U$94, MATCH(Y$3, $D$3:$U$3, 0), FALSE), "") -> 0 | Z36: 0 | AA36: 0 | AB36: 0 | AC36: 0 | AD36: 0 | AE36: 0 | AF36: 0 | AG36: 0 | AH36: 110 | AI36: 0 | AJ36: 0 | AK36: 0 | AL36: 0 | AM36: 0 | AN36: 110 | AO36: زبدة 30 كيس * 18 ق / 25 ق
A37: 34 | B37: 6222000901611 | C37: سنة | D37: اكلير سايب 10 كيلو | E37: كرتونة | S37: 43 | T37: 55 | V37: 98 | W37: زبدة 12 كيس * 55 قطعه | X37: 0 | Y37: 0 | Z37: 0 | AA37: 0 | AB37: 0 | AC37: 0 | AD37: 0 | AE37: 0 | AF37: 0 | AG37: 0 | AH37: 0 | AI37: 0 | AJ37: 0 | AK37: 0 | AL37: 0 | AM37: 0 | AN37: 0 | AO37: زبدة 12 كيس * 55 قطعه
A38: 35 | B38: 6222000909907 | C38: سنة | D38: اكلير 30 كيس * 9 ق / 10 ق | E38: كرتونة | S38: 134 | V38: 134 | W38: زبدة 12 كيس * 80 ق / 90 ق | X38: 0 | Y38: 0 | Z38: 0 | AA38: 0 | AB38: 0 | AC38: 0 | AD38: 0 | AE38: 0 | AF38: 0 | AG38: 0 | AH38: 0 | AI38: 0 | AJ38: 0 | AK38: 0 | AL38: 0 | AM38: 0 | AN38: 0 | AO38: زبدة 12 كيس * 80 ق / 90 ق
A39: 36 | B39: 6222000909907 | C39: سنة | D39: اكلير 30 كيس * 12 قطعه | E39: كرتونة | V39: 0 | W39: زبدة 12 كيس * 120 ق | X39: 86 | Y39: 0 | Z39: 0 | AA39: 0 | AB39: 0 | AC39: 0 | AD39: 0 | AE39: 0 | AF39: 0 | AG39: 0 | AH39: 0 | AI39: 0 | AJ39: 0 | AK39: 41 | AL39: 0 | AM39: 45 | AN39: 86 | AO39: زبدة 12 كيس * 120 ق
A40: 37 | B40: 6222000911498 | C40: سنة | D40: اكلير سولا 5 كيلو | E40: كرتونة | V40: 0 | W40: زبدة 12 ع * 200 ق | X40: 64 | Y40: 0 | Z40: 0 | AA40: 0 | AB40: 0 | AC40: 0 | AD40: 0 | AE40: 0 | AF40: 0 | AG40: 0 | AH40: 0 | AI40: 0 | AJ40: 0 | AK40: 64 | AL40: 0 | AM40: 0 | AN40: 64 | AO40: زبدة 12 ع * 200 ق
A41: 38 | B41: 6222000912778 | C41: سنة | D41: اكلير 12كيس * 65 ق / 70 ق | E41: كرتونة | V41: 0 | W41: زبدة 10 شنطة * 800 جم | X41: 0 | Y41: 0 | Z41: 0 | AA41: 0 | AB41: 0 | AC41: 0 | AD41: 0 | AE41: 0 | AF41: 0 | AG41: 0 | AH41: 0 | AI41: 0 | AJ41: 0 | AK41: 0 | AL41: 0 | AM41: 0 | AN41: 0 | AO41: زبدة 10 شنطة * 800 جم
A42: 39 | B42: 6222000912778 | C42: سنة | D42: اكلير 12 كيس * 100 قطعة | E42: كرتونة | S42: 137 | V42: 137 | W42: زبدة بالشيكولاته 10 ك | X42: 34 | Y42: 0 | Z42: 0 | AA42: 0 | AB42: 0 | AC42: 0 | AD42: 0 | AE42: 0 | AF42: 0 | AG42: 0 | AH42: 0 | AI42: 0 | AJ42: 0 | AK42: 0 | AL42: 34 | AM42: 0 | AN42: 34 | AO42: زبدة بالشيكولاته 10 ك
A43: 40 | B43: 6222000912822 | C43: سنة | D43: اكلير 30 كيس * 15 ق / 20 ق | E43: كرتونة | V43: 0 | W43: زبدة بالشيكولاته 30 كيس * 15 قطعه | X43: 0 | AN43: 0 | AO43: زبدة بالشيكولاته 30 كيس * 15 قطعه
A44: 41 | B44: 6222000905701 | C44: سنة | D44: اكلير 12كيس 45 ق | E44: كرتونة | S44: 220 | V44: 220 | W44: زبدة بالشيكولاته 12 كيس * 55 قطعه | X44: 0 | AN44: 0 | AO44: زبدة بالشيكولاته 12 كيس * 55 قطعه
A45: 42 | B45: 6222000912532 | C45: سنة | D45: اكلير 12 علبة * 160 ق | E45: كرتونة | V45: 0 | W45: زبدة بالشيكولاته 12 كيس * 120 ق | X45: 0 | AN45: 0 | AO45: زبدة بالشيكولاته 12 كيس * 120 ق
A46: 43 | B46: 6222000912532 | C46: سنة | D46: اكلير 12 علبة 200 ق | E46: كرتونة | S46: 35 | V46: 35 | W46: زبدة بالشيكولاته 12 علبة * 240 ق | X46: 64 | Y46: 0 | Z46: 0 | AA46: 0 | AB46: 0 | AC46: 0 | AD46: 0 | AE46: 0 | AF46: 0 | AG46: 0 | AH46: 0 | AI46: 0 | AJ46: 0 | AK46: 0 | AL46: 64 | AM46: 0 | AN46: 64 | AO46: زبدة بالشيكولاته 12 علبة * 240 ق
A47: 44 | B47: 6222000901697 | C47: سنة | D47: طوفي 10 كجم | E47: كرتونة | S47: 38 | T47: 46 | U47: 55 | V47: 139 | W47: عسلية 5 ك | X47: 0 | AN47: 0 | AO47: عسلية 5 ك
A48: 45 | B48: 6222000911481 | C48: سنة | D48: طوفي بردايس 5كيلو | E48: كرتونة | V48: 0 | W48: عسلية 12 ع * 200 ق | X48: 0 | Y48: 0 | Z48: 0 | AA48: 0 | AB48: 0 | AC48: 0 | AD48: 0 | AE48: 0 | AF48: 0 | AG48: 0 | AH48: 0 | AI48: 0 | AJ48: 0 | AK48: 0 | AL48: 0 | AM48: 0 | AN48: 0 | AO48: عسلية 12 ع * 200 ق
A49: 46 | B49: 6222000908276 | C49: سنة | D49: طوفي 30 كيس * 25 قطعه | E49: كرتونة | V49: 0 | W49: اكلير سايب 10 كيلو | X49: 98 | Y49: 0 | Z49: 0 | AA49: 0 | AB49: 0 | AC49: 0 | AD49: 0 | AE49: 0 | AF49: 0 | AG49: 0 | AH49: 0 | AI49: 0 | AJ49: 0 | AK49: 43 | AL49: 55 | AM49: 0 | AN49: 98 | AO49: اكلير سايب 10 كيلو
A50: 47 | B50: 6222000908276 | C50: سنة | D50: طوفى 30 كيس * 28 ق | E50: كرتونة | T50: 100 | V50: 100 | W50: اكلير 30 كيس * 9 ق / 10 ق | X50: 0 | AN50: 0 | AO50: اكلير 30 كيس * 9 ق / 10 ق
A51: 48 | B51: 6222000909921 | C51: سنة | D51: طوفي 30 كيس * 12قطعه | E51: كرتونة | V51: 0 | W51: اكلير 30 كيس * 12 قطعه | X51: 0 | Y51: 0 | Z51: 0 | AA51: 0 | AB51: 0 | AC51: 0 | AD51: 0 | AE51: 0 | AF51: 0 | AG51: 0 | AH51: 0 | AI51: 0 | AJ51: 0 | AK51: 0 | AL51: 0 | AM51: 0 | AN51: 0 | AO51: اكلير 30 كيس * 12 قطعه
A52: 49 | B52: 6222000909839 | C52: سنة | D52: طوفي 12 كيس * 90 ق | E52: كرتونة | T52: 11 | V52: 11 | W52: اكلير 30 كيس * 15 ق / 20 ق | X52: 0 | Y52: 0 | Z52: 0 | AA52: 0 | AB52: 0 | AC52: 0 | AD52: 0 | AE52: 0 | AF52: 0 | AG52: 0 | AH52: 0 | AI52: 0 | AJ52: 0 | AK52: 0 | AL52: 0 | AM52: 0 | AN52: 0 | AO52: اكلير 30 كيس * 15 ق / 20 ق
A53: 50 | B53: 6222000905718 | C53: سنة | D53: طوفى 12كيس * 100 ق | E53: كرتونة | T53: 97 | V53: 97 | W53: اكلير 12كيس 45 ق | X53: 220 | Y53: =IFERROR(VLOOKUP(TRIM(CLEAN($W53)), $D$4:$U$94, MATCH(Y$3, $D$3:$U$3, 0), FALSE), "") -> 0 | Z53: 0 | AA53: 0 | AB53: 0 | AC53: 0 | AD53: 0 | AE53: 0 | AF53: 0 | AG53: 0 | AH53: 0 | AI53: 0 | AJ53: 0 | AK53: 220 | AL53: 0 | AM53: 0 | AN53: 220 | AO53: اكلير 12كيس 45 ق
A54: 51 | B54: 6222000908825 | C54: سنة | D54: طوفى 12 ع * 200 ق | E54: كرتونة | V54: 0 | W54: اكلير 12كيس * 65 ق / 70 ق | X54: 0 | Y54: 0 | Z54: 0 | AA54: 0 | AB54: 0 | AC54: 0 | AD54: 0 | AE54: 0 | AF54: 0 | AG54: 0 | AH54: 0 | AI54: 0 | AJ54: 0 | AK54: 0 | AL54: 0 | AM54: 0 | AN54: 0 | AO54: اكلير 12كيس * 65 ق / 70 ق
A55: 52 | B55: 6222000912556 | C55: سنة | D55: طوفي 12 علبه * 240 ق | E55: كرتونة | S55: 29 | T55: 45 | V55: 74 | W55: اكلير 12 كيس * 100 قطعة | X55: 137 | Y55: 0 | Z55: 0 | AA55: 0 | AB55: 0 | AC55: 0 | AD55: 0 | AE55: 0 | AF55: 0 | AG55: 0 | AH55: 0 | AI55: 0 | AJ55: 0 | AK55: 137 | AL55: 0 | AM55: 0 | AN55: 137 | AO55: اكلير 12 كيس * 100 قطعة
A56: 53 | B56: 6222000907637 | C56: سنة | D56: شيكولاته بوتيك 16 علبه * 50 قطعة | E56: كرتونة | O56: 6 | V56: 6 | W56: اكلير 12 علبة * 160 ق | X56: 0 | Y56: 0 | Z56: 0 | AA56: 0 | AB56: 0 | AC56: 0 | AD56: 0 | AE56: 0 | AF56: 0 | AG56: 0 | AH56: 0 | AI56: 0 | AJ56: 0 | AK56: 0 | AL56: 0 | AM56: 0 | AN56: 0 | AO56: اكلير 12 علبة * 160 ق
A57: 54 | B57: 6222000903295 | C57: سنة | D57: شيكولاته بوتيك 6 علبه * 1.25 كيلو | E57: كرتونة | V57: 0 | W57: اكلير 12 علبة 200 ق | X57: 35 | Y57: 0 | Z57: 0 | AA57: 0 | AB57: 0 | AC57: 0 | AD57: 0 | AE57: 0 | AF57: 0 | AG57: 0 | AH57: 0 | AI57: 0 | AJ57: 0 | AK57: 35 | AL57: 0 | AM57: 0 | AN57: 35 | AO57: اكلير 12 علبة 200 ق
A58: 55 | B58: 6222000912006 | C58: سنة | D58: شيكولاته بوتيك حليب 4 ك | E58: كرتونة | V58: 0 | W58: طوفي 10 كجم | X58: 139 | Y58: 0 | Z58: 0 | AA58: 0 | AB58: 0 | AC58: 0 | AD58: 0 | AE58: 0 | AF58: 0 | AG58: 0 | AH58: 0 | AI58: 0 | AJ58: 0 | AK58: 38 | AL58: 46 | AM58: 55 | AN58: 139 | AO58: طوفي 10 كجم
A59: 56 | B59: 6222000911993 | C59: سنة | D59: شيكولاته بوتيك كراميل 4 ك | E59: كرتونة | V59: 0 | W59: طوفي 30 كيس * 12قطعه | X59: 0 | Y59: 0 | Z59: 0 | AA59: 0 | AB59: 0 | AC59: 0 | AD59: 0 | AE59: 0 | AF59: 0 | AG59: 0 | AH59: 0 | AI59: 0 | AJ59: 0 | AK59: 0 | AL59: 0 | AM59: 0 | AN59: 0 | AO59: طوفي 30 كيس * 12قطعه
A60: 57 | B60: 6222000912013 | C60: سنة | D60: شيكولاته بوتيك بندق 4 ك | E60: كرتونة | V60: 0 | W60: طوفي 30 كيس * 25 قطعه | X60: 0 | Y60: 0 | Z60: 0 | AA60: 0 | AB60: 0 | AC60: 0 | AD60: 0 | AE60: 0 | AF60: 0 | AG60: 0 | AH60: 0 | AI60: 0 | AJ60: 0 | AK60: 0 | AL60: 0 | AM60: 0 | AN60: 0 | AO60: طوفي 30 كيس * 25 قطعه
A61: 58 | B61: 6222000964197 | C61: سنة | D61: شيكوهند سايب 10 كجم | E61: كرتونة | V61: 0 | W61: طوفى 30 كيس * 28 ق | X61: 100 | Y61: 0 | Z61: 0 | AA61: 0 | AB61: 0 | AC61: 0 | AD61: 0 | AE61: 0 | AF61: 0 | AG61: 0 | AH61: 0 | AI61: 0 | AJ61: 0 | AK61: 0 | AL61: 100 | AM61: 0 | AN61: 100 | AO61: طوفى 30 كيس * 28 ق
A62: 59 | B62: 6222000906630 | C62: سنة | D62: سوفت شيكوهند 5 ك | E62: كرتونة | T62: 40 | V62: 40 | W62: طوفي 12 كيس * 90 ق | X62: 11 | Y62: 0 | Z62: 0 | AA62: 0 | AB62: 0 | AC62: 0 | AD62: 0 | AE62: 0 | AF62: 0 | AG62: 0 | AH62: 0 | AI62: 0 | AJ62: 0 | AK62: 0 | AL62: 11 | AM62: 0 | AN62: 11 | AO62: طوفي 12 كيس * 90 ق
A63: 60 | B63: 6222000612549 | C63: سنة | D63: شيكوهند سوفت 12 ع * 100 ق | E63: كرتونة | V63: 0 | W63: طوفى 12كيس * 100 ق | X63: 97 | Y63: 0 | Z63: 0 | AA63: 0 | AB63: 0 | AC63: 0 | AD63: 0 | AE63: 0 | AF63: 0 | AG63: 0 | AH63: 0 | AI63: 0 | AJ63: 0 | AK63: 0 | AL63: 97 | AM63: 0 | AN63: 97 | AO63: طوفى 12كيس * 100 ق
A64: 61 | B64: 6222000915243 | C64: سنة | D64: بار شيكوهند 3 ك | E64: كرتونة | U64: 50 | V64: 50 | W64: طوفى 12 ع * 200 ق | X64: 0 | Y64: 0 | Z64: 0 | AA64: 0 | AB64: 0 | AC64: 0 | AD64: 0 | AE64: 0 | AF64: 0 | AG64: 0 | AH64: 0 | AI64: 0 | AJ64: 0 | AK64: 0 | AL64: 0 | AM64: 0 | AN64: 0 | AO64: طوفى 12 ع * 200 ق
A65: 62 | B65: 6222000902519 | C65: 9 أشهر | D65: ويفر ايليت مغطس بنى 12 *12 | E65: كرتونة | V65: 0 | W65: طوفي 12 علبه * 240 ق | X65: 74 | Y65: 0 | Z65: 0 | AA65: 0 | AB65: 0 | AC65: 0 | AD65: 0 | AE65: 0 | AF65: 0 | AG65: 0 | AH65: 0 | AI65: 0 | AJ65: 0 | AK65: 29 | AL65: 45 | AM65: 0 | AN65: 74 | AO65: طوفي 12 علبه * 240 ق
A66: 63 | B66: 6222000902557 | C66: 9 أشهر | D66: ويفر ايليت مغطس ابيض 12 * 12 | E66: كرتونة | V66: 0 | W66: طوفي شيكولاته 12 كيس * 25 ق | X66: 0 | AN66: 0 | AO66: طوفي شيكولاته 12 كيس * 25 ق
A67: 64 | B67: 6222000902564 | C67: 9 أشهر | D67: ويفر ايليت مغطس فراولة 12*12 | E67: كرتونة | V67: 0 | W67: طوفي شيكولاته 12 علبة * 100 ق | X67: 0 | AN67: 0 | AO67: طوفي شيكولاته 12 علبة * 100 ق
A68: 65 | B68: 6222000910200 | C68: 9 أشهر | D68: ايليت ماكس سادة ش 12 باكو 6 قطع | E68: كرتونة | S68: 263 | V68: 263 | W68: طوفي زبدة 12 كيس * 25 ق | X68: 0 | AN68: 0 | AO68: طوفي زبدة 12 كيس * 25 ق
A69: 66 | B69: 6222000910514 | C69: 9 أشهر | D69: ايليت ماكس سادة فانيليا 12 باكو * 6 قطع | E69: كرتونة | S69: 215 | V69: =SUM(G69:U69) -> 215 | W69: طوفي زبدة 12 علبة * 100 ق | X69: =AN69 -> 0 | AN69: =SUM(Y69:AM69) -> 0 | AO69: =TRIM(CLEAN(SUBSTITUTE(SUBSTITUTE(SUBSTITUTE(W69,CHAR(10),""),CHAR(13),""),CHAR(9),""))) -> طوفي زبدة 12 علبة * 100 ق
A70: 67 | B70: 6222000909976 | C70: 9 أشهر | D70: ويفر مربع 3 كيلو ايليت ابيض | E70: كرتونة | Q70: 74 | T70: 50 | V70: 124 | W70: شيكولاته بوتيك 16 علبه * 50 قطعة | X70: 6 | Y70: =IFERROR(VLOOKUP(TRIM(CLEAN($W70)), $D$4:$U$94, MATCH(Y$3, $D$3:$U$3, 0), FALSE), "") -> 0 | Z70: 0 | AA70: 0 | AB70: 0 | AC70: 0 | AD70: 0 | AE70: 0 | AF70: 0 | AG70: 6 | AH70: 0 | AI70: 0 | AJ70: 0 | AK70: 0 | AL70: 0 | AM70: 0 | AN70: 6 | AO70: شيكولاته بوتيك 16 علبه * 50 قطعة
A71: 68 | B71: 6222000909983 | C71: 9 أشهر | D71: ويفر مربع 3 كيلو ايليت شيكولاته | E71: كرتونة | V71: 0 | W71: شيكولاته بوتيك 6 علبه * 1.25 كيلو | X71: 0 | Y71: 0 | Z71: 0 | AA71: 0 | AB71: 0 | AC71: 0 | AD71: 0 | AE71: 0 | AF71: 0 | AG71: 0 | AH71: 0 | AI71: 0 | AJ71: 0 | AK71: 0 | AL71: 0 | AM71: 0 | AN71: 0 | AO71: شيكولاته بوتيك 6 علبه * 1.25 كيلو
A72: 69 | B72: 6222000909969 | C72: 9 أشهر | D72: ويفر مربع 3 كيلو ايليت فراوله | E72: كرتونة | Q72: 69 | T72: 50 | V72: 119 | W72: شيكولاته بوتيك حليب 4 ك | X72: 0 | Y72: 0 | Z72: 0 | AA72: 0 | AB72: 0 | AC72: 0 | AD72: 0 | AE72: 0 | AF72: 0 | AG72: 0 | AH72: 0 | AI72: 0 | AJ72: 0 | AK72: 0 | AL72: 0 | AM72: 0 | AN72: 0 | AO72: شيكولاته بوتيك حليب 4 ك
A73: 70 | B73: 6888000909953 | C73: 9 أشهر | D73: ويفر مربع 3 كيلو ايليت جوز هند | E73: كرتونة | V73: 0 | W73: شيكولاته بوتيك كراميل 4 ك | X73: 0 | Y73: 0 | Z73: 0 | AA73: 0 | AB73: 0 | AC73: 0 | AD73: 0 | AE73: 0 | AF73: 0 | AG73: 0 | AH73: 0 | AI73: 0 | AJ73: 0 | AK73: 0 | AL73: 0 | AM73: 0 | AN73: 0 | AO73: شيكولاته بوتيك كراميل 4 ك
A74: 71 | B74: 622200097116 | C74: 9 أشهر | D74: ويفر فرحه 5 كيلو | E74: كرتونة | Q74: 36 | V74: 36 | W74: شيكولاته بوتيك بندق 4 ك | X74: 0 | Y74: 0 | Z74: 0 | AA74: 0 | AB74: 0 | AC74: 0 | AD74: 0 | AE74: 0 | AF74: 0 | AG74: 0 | AH74: 0 | AI74: 0 | AJ74: 0 | AK74: 0 | AL74: 0 | AM74: 0 | AN74: 0 | AO74: شيكولاته بوتيك بندق 4 ك
A75: 72 | B75: 6222000912372 | C75: 9 أشهر | D75: ويفر ايليت مربع بايتس 3 ك بني | E75: كرتونة | V75: 0 | W75: شيكوهند سايب 10 كجم | X75: 0 | Y75: 0 | Z75: 0 | AA75: 0 | AB75: 0 | AC75: 0 | AD75: 0 | AE75: 0 | AF75: 0 | AG75: 0 | AH75: 0 | AI75: 0 | AJ75: 0 | AK75: 0 | AL75: 0 | AM75: 0 | AN75: 0 | AO75: شيكوهند سايب 10 كجم
A76: 73 | B76: 6222000912488 | C76: 9 أشهر | D76: بسكوت اكشن سادة شاي 6 ع * 12 ق | E76: كرتونة | V76: 0 | W76: سوفت شيكوهند 5 ك | X76: 40 | Y76: 0 | Z76: 0 | AA76: 0 | AB76: 0 | AC76: 0 | AD76: 0 | AE76: 0 | AF76: 0 | AG76: 0 | AH76: 0 | AI76: 0 | AJ76: 0 | AK76: 0 | AL76: 40 | AM76: 0 | AN76: 40 | AO76: سوفت شيكوهند 5 ك
A77: 74 | B77: 6222000914383 | C77: 9 أشهر | D77: بسكوت اكشن سادة شاي 6 ع * 12 ق ( نباتى ) | E77: كرتونة | V77: 0 | W77: شيكوهند سوفت 12 كيس * 28 ق | X77: 0 | AN77: 0 | AO77: شيكوهند سوفت 12 كيس * 28 ق
A78: 75 | B78: 6222000916165 | C78: 9 أشهر | D78: ويفر اكشن مغطس بنى 12ع * 12 ق ( 5 جنية ) | E78: كرتونة | P78: 28 | V78: 28 | W78: شيكوهند سوفت 12 كيس * 60 ق | X78: 0 | AN78: 0 | AO78: شيكوهند سوفت 12 كيس * 60 ق
A79: 76 | B79: 6222000916172 | C79: 9 أشهر | D79: ويفر اكشن مغطس أبيض 12ع * 12 ق ( 5 جنية ) | E79: كرتونة | V79: 0 | W79: شيكوهند سوفت 12 ع * 100 ق | X79: 0 | Y79: 0 | Z79: 0 | AA79: 0 | AB79: 0 | AC79: 0 | AD79: 0 | AE79: 0 | AF79: 0 | AG79: 0 | AH79: 0 | AI79: 0 | AJ79: 0 | AK79: 0 | AL79: 0 | AM79: 0 | AN79: 0 | AO79: شيكوهند سوفت 12 ع * 100 ق
A80: 77 | B80: 2810 | C80: 9 أشهر | D80: ويفر اكشن مغطس أبيض 8ع * 12 ق ( 5 جنية ) | E80: كرتونة | V80: 0 | W80: بار شيكوهند 3 ك | X80: 50 | Y80: 0 | Z80: 0 | AA80: 0 | AB80: 0 | AC80: 0 | AD80: 0 | AE80: 0 | AF80: 0 | AG80: 0 | AH80: 0 | AI80: 0 | AJ80: 0 | AK80: 0 | AL80: 0 | AM80: 50 | AN80: 50 | AO80: بار شيكوهند 3 ك
A81: 78 | B81: 6222000912365 | C81: 9 أشهر | D81: بايتس مربع 6ع * 50ق بنى | E81: كرتونة | P81: 29 | V81: 29 | W81: ويفر ايليت مغطس بنى 12 *12 | X81: 0 | AN81: 0 | AO81: ويفر ايليت مغطس بنى 12 *12
A82: 79 | B82: 6222000902083 | C82: 9 أشهر | D82: بايتس مربع 6 ع * 50 ق ابيض | E82: كرتونة | V82: 0 | W82: ويفر ايليت مغطس ابيض 12 * 12 | X82: 0 | AN82: 0 | AO82: ويفر ايليت مغطس ابيض 12 * 12
A83: 80 | B83: 6222000913904 | C83: 9 أشهر | D83: بايتس مربع 6 ع * 50 ق فراولة | E83: كرتونة | V83: 0 | W83: ويفر ايليت مغطس فراولة 12*12 | X83: 0 | AN83: 0 | AO83: ويفر ايليت مغطس فراولة 12*12
A84: 81 | B84: 6222000916738 | C84: 9 أشهر | D84: ويفر بوتيك مربع 9 كيس * 500 جم | E84: كرتونة | V84: 0 | W84: ايليت ماكس سادة ش 12 باكو 6 قطع | X84: 263 | Y84: 0 | Z84: 0 | AA84: 0 | AB84: 0 | AC84: 0 | AD84: 0 | AE84: 0 | AF84: 0 | AG84: 0 | AH84: 0 | AI84: 0 | AJ84: 0 | AK84: 263 | AL84: 0 | AM84: 0 | AN84: 263 | AO84: ايليت ماكس سادة ش 12 باكو 6 قطع
A85: 82 | B85: 002797 | C85: 4 أشهر | D85: كورن عائلي 15 كيس | E85: كرتونة | S85: 211 | V85: =SUM(G85:U85) -> 211 | W85: ايليت ماكس سادة فانيليا 12 باكو * 6 قطع | X85: 0 | AN85: 0 | AO85: ايليت ماكس سادة فانيليا 12 باكو * 6 قطع
A86: 83 | B86: 002796 | C86: 6 أشهر | D86: فاير فنجرز 15 كيس | E86: كرتونة | S86: 254 | V86: 254 | W86: ويفر مربع 3 كيلو ايليت ابيض | X86: 0 | AN86: 0 | AO86: ويفر مربع 3 كيلو ايليت ابيض
A87: 84 | B87: 001766 | C87: 6 أشهر | D87: اسبيشيال أطعم 15 كيس | E87: كرتونة | Q87: 213 | V87: 213 | W87: ويفر مربع 3 كيلو ايليت شيكولاته | X87: 0 | Y87: =IFERROR(VLOOKUP(TRIM(CLEAN($W87)), $D$4:$U$94, MATCH(Y$3, $D$3:$U$3, 0), FALSE), "") ->  | AN87: 0 | AO87: ويفر مربع 3 كيلو ايليت شيكولاته
A88: 85 | B88: EG-670026743-3002 | C88: 6 أشهر | D88: شيل أوت شيبس 15 كيس سعر الكيس 10 جنية | E88: كرتونة | Q88: 2 | S88: 187 | V88: 189 | W88: ويفر مربع 3 كيلو ايليت فراوله | X88: 0 | AN88: 0 | AO88: ويفر مربع 3 كيلو ايليت فراوله
A89: 86 | B89: 6224001574221 | C89: سنة | D89: زى كولا مشروب غازى 275 حلى | E89: كرتونة | P89: 254 | S89: 700 | V89: 954 | W89: ويفر مربع 3 كيلو ايليت جوز هند | X89: 0 | Y89: 0 | Z89: 0 | AA89: 0 | AB89: 0 | AC89: 0 | AD89: 0 | AE89: 0 | AF89: 0 | AG89: 0 | AH89: 0 | AI89: 0 | AJ89: 0 | AK89: 0 | AL89: 0 | AM89: 0 | AN89: 0 | AO89: ويفر مربع 3 كيلو ايليت جوز هند
A90: 87 | B90: 2798 | C90: 9 أشهر | D90: اهلا بالعيد 8 كيس * 660 جم | E90: كرتونة | V90: 0 | W90: ويفر فرحه 5 كيلو | X90: 36 | Y90: 0 | Z90: 0 | AA90: 0 | AB90: 0 | AC90: 0 | AD90: 0 | AE90: 0 | AF90: 0 | AG90: 0 | AH90: 0 | AI90: 36 | AJ90: 0 | AK90: 0 | AL90: 0 | AM90: 0 | AN90: 36 | AO90: ويفر فرحه 5 كيلو
A91: 88 | B91: 00695 | C91: سنة | D91: قهوه20كيس*150جرام | E91: كرتونة | V91: 0 | W91: ويفر ايليت مربع بايتس 3 ك بني | X91: 0 | Y91: 0 | Z91: 0 | AA91: 0 | AB91: 0 | AC91: 0 | AD91: 0 | AE91: 0 | AF91: 0 | AG91: 0 | AH91: 0 | AI91: 0 | AJ91: 0 | AK91: 0 | AL91: 0 | AM91: 0 | AN91: 0 | AO91: ويفر ايليت مربع بايتس 3 ك بني
A92: 89 | B92: 6222000912518 | C92: سنتان | D92: نعناع 12 ع * 240 ق | E92: كرتونة | V92: 0 | W92: بسكوت اكشن سادة شاي 6 ع * 12 ق | X92: 0 | Y92: 0 | Z92: 0 | AA92: 0 | AB92: 0 | AC92: 0 | AD92: 0 | AE92: 0 | AF92: 0 | AG92: 0 | AH92: 0 | AI92: 0 | AJ92: 0 | AK92: 0 | AL92: 0 | AM92: 0 | AN92: 0 | AO92: بسكوت اكشن سادة شاي 6 ع * 12 ق
A93: 90 | B93: 002827 | D93: سولا فواكة فلوباك 10 ك | E93: كرتونة | T93: 55 | V93: 55 | W93: بسكوت اكشن سادة شاي 6 ع * 12 ق ( نباتى ) | X93: 0 | Y93: 0 | Z93: 0 | AA93: 0 | AB93: 0 | AC93: 0 | AD93: 0 | AE93: 0 | AF93: 0 | AG93: 0 | AH93: 0 | AI93: 0 | AJ93: 0 | AK93: 0 | AL93: 0 | AM93: 0 | AN93: 0 | AO93: بسكوت اكشن سادة شاي 6 ع * 12 ق ( نباتى )
A94: 91 | V94: 0 | W94: ويفر اكشن مغطس بنى 12ع * 12 ق ( 5 جنية ) | X94: 28 | Y94: 0 | Z94: 0 | AA94: 0 | AB94: 0 | AC94: 0 | AD94: 0 | AE94: 0 | AF94: 0 | AG94: 0 | AH94: 28 | AI94: 0 | AJ94: 0 | AK94: 0 | AL94: 0 | AM94: 0 | AN94: 28 | AO94: ويفر اكشن مغطس بنى 12ع * 12 ق ( 5 جنية )
A95: 92 | V95: 0 | W95: ويفر اكشن مغطس أبيض 12ع * 12 ق ( 5 جنية ) | X95: 0 | Y95: 0 | Z95: 0 | AA95: 0 | AB95: 0 | AC95: 0 | AD95: 0 | AE95: 0 | AF95: 0 | AG95: 0 | AH95: 0 | AI95: 0 | AJ95: 0 | AK95: 0 | AL95: 0 | AM95: 0 | AN95: 0 | AO95: ويفر اكشن مغطس أبيض 12ع * 12 ق ( 5 جنية )
A96: 93 | V96: 0 | W96: ويفر اكشن مغطس أبيض 8ع * 12 ق ( 5 جنية ) | X96: 0 | Y96: 0 | Z96: 0 | AA96: 0 | AB96: 0 | AC96: 0 | AD96: 0 | AE96: 0 | AF96: 0 | AG96: 0 | AH96: 0 | AI96: 0 | AJ96: 0 | AK96: 0 | AL96: 0 | AM96: 0 | AN96: 0 | AO96: ويفر اكشن مغطس أبيض 8ع * 12 ق ( 5 جنية )
A97: 94 | V97: 0 | W97: بايتس مربع 6ع * 50ق بنى | X97: 0 | AN97: 0 | AO97: بايتس مربع 6ع * 50ق بنى
A98: 95 | V98: 0 | W98: بايتس مربع 6 ع * 50 ق ابيض | X98: 0 | AN98: 0 | AO98: بايتس مربع 6 ع * 50 ق ابيض
A99: 96 | V99: 0 | W99: ويفر 4 علبه * 50 قطعه ابيض بايتس | X99: 0 | AN99: 0 | AO99: ويفر 4 علبه * 50 قطعه ابيض بايتس
A100: 97 | V100: 0 | W100: ويفر 5 علبه * 50 قطعه ابيض بايتس | X100: 0 | AN100: 0 | AO100: ويفر 5 علبه * 50 قطعه ابيض بايتس
A101: 98 | V101: 0 | W101: ويفر 7 علبه * 50 قطعه ابيض بايتس | X101: 0 | AN101: 0 | AO101: ويفر 7 علبه * 50 قطعه ابيض بايتس
A102: 99 | V102: 0 | W102: بايتس مربع 6 ع * 50 ق فراولة | X102: 0 | AN102: 0 | AO102: بايتس مربع 6 ع * 50 ق فراولة
A103: 100 | V103: 0 | W103: ويفر 4 علبه * 50 قطعه فراولة بايتس | X103: 0 | AN103: 0 | AO103: ويفر 4 علبه * 50 قطعه فراولة بايتس
A104: 101 | V104: 0 | W104: ويفر بوتيك مربع 9 كيس * 500 جم | X104: 0 | Y104: =IFERROR(VLOOKUP(TRIM(CLEAN($W104)), $D$4:$U$94, MATCH(Y$3, $D$3:$U$3, 0), FALSE), "") -> 0 | Z104: 0 | AA104: 0 | AB104: 0 | AC104: 0 | AD104: 0 | AE104: 0 | AF104: 0 | AG104: 0 | AH104: 0 | AI104: 0 | AJ104: 0 | AK104: 0 | AL104: 0 | AM104: 0 | AN104: 0 | AO104: ويفر بوتيك مربع 9 كيس * 500 جم
A105: 102 | V105: 0 | W105: ايليت عرض خاص | X105: 0 | AN105: 0 | AO105: ايليت عرض خاص
A106: 103 | V106: 0 | W106: اهلا بالعيد 8 كيس * 660 جم | X106: 0 | Y106: 0 | Z106: 0 | AA106: 0 | AB106: 0 | AC106: 0 | AD106: 0 | AE106: 0 | AF106: 0 | AG106: 0 | AH106: 0 | AI106: 0 | AJ106: 0 | AK106: 0 | AL106: 0 | AM106: 0 | AN106: 0 | AO106: اهلا بالعيد 8 كيس * 660 جم
A107: 104 | V107: 0 | W107: كورن عائلي 15 كيس | X107: 211 | Y107: 0 | Z107: 0 | AA107: 0 | AB107: 0 | AC107: 0 | AD107: 0 | AE107: 0 | AF107: 0 | AG107: 0 | AH107: 0 | AI107: 0 | AJ107: 0 | AK107: 211 | AL107: 0 | AM107: 0 | AN107: 211 | AO107: كورن عائلي 15 كيس
A108: 105 | V108: 0 | W108: فاير فنجرز 15 كيس | X108: 254 | Y108: 0 | Z108: 0 | AA108: 0 | AB108: 0 | AC108: 0 | AD108: 0 | AE108: 0 | AF108: 0 | AG108: 0 | AH108: 0 | AI108: 0 | AJ108: 0 | AK108: 254 | AL108: 0 | AM108: 0 | AN108: 254 | AO108: فاير فنجرز 15 كيس
A109: 106 | V109: 0 | W109: اسبيشيال أطعم 15 كيس | X109: 0 | AN109: 0 | AO109: اسبيشيال أطعم 15 كيس
A110: 107 | V110: 0 | W110: شيل أوت شيبس 15 كيس سعر الكيس 10 جنية | X110: 189 | Y110: 0 | Z110: 0 | AA110: 0 | AB110: 0 | AC110: 0 | AD110: 0 | AE110: 0 | AF110: 0 | AG110: 0 | AH110: 0 | AI110: 2 | AJ110: 0 | AK110: 187 | AL110: 0 | AM110: 0 | AN110: 189 | AO110: شيل أوت شيبس 15 كيس سعر الكيس 10 جنية
V111: 0 | W111: زى كولا مشروب غازى 275 حلى | X111: 954 | Y111: 0 | Z111: 0 | AA111: 0 | AB111: 0 | AC111: 0 | AD111: 0 | AE111: 0 | AF111: 0 | AG111: 0 | AH111: 254 | AI111: 0 | AJ111: 0 | AK111: 700 | AL111: 0 | AM111: 0 | AN111: 954 | AO111: زى كولا مشروب غازى 275 حلى
A112: 108 | V112: 0 | W112: زبدة 12 علبة * 240 ق | X112: 0 | AN112: 0 | AO112: زبدة 12 علبة * 240 ق
A113: الاجمالى | F113: =SUM(F4:F112) -> 0 | G113: 0 | H113: 0 | I113: 0 | J113: 0 | K113: 0 | L113: 0 | M113: 0 | N113: 59 | O113: 6 | P113: 421 | Q113: 416 | R113: 85 | S113: 2723.5 | T113: 1012 | U113: =SUM(U4:U112) -> 405 | V113: =SUM(V4:V111) -> 5127.5 | X113: =SUM(X4:X112) -> 4293.5 | Y113: =SUM(Y4:Y112) -> 0 | Z113: =SUM(Z4:Z112) -> 0 | AA113: 0 | AB113: 0 | AC113: 0 | AD113: 0 | AE113: 0 | AF113: 59 | AG113: 6 | AH113: 392 | AI113: 60 | AJ113: 85 | AK113: 2374.5 | AL113: 912 | AM113: 405 | AN113: =SUM(AN4:AN112) -> 4293.5
AH115: =P113-AH113 -> 29 | AI115: =Q113-AI113 -> 356 | AK115: =S113-AK113 -> 349 | AL115: =T113-AL113 -> 100
V117: =V113-AN113 -> 834

Sheet Sheet11
A4: بايتس مربع 6ع * 50ق بنى | B4: بايتس مربع 6ع * 50ق بنى | D4: =TRIM(CLEAN(A4:A4)) -> بايتس مربع 6ع * 50ق بنى | E4: =A4=D4 -> FALSE | F4: =LEN(TRIM(CLEAN(E4))) -> 5
E7: FALSE

Sheet الرصيد 3 (8)
A1: رصيد توكيل ( توكيل نجع حمادى ) عن يوم ( الخميس 9/13 ) | W1: شيت به معادلات عادية
A2: م | B2: الكود | C2: مدة الصلاحية | D2: الصنف | E2: الوحدة | F2: الرصيد الدفترى بالكرتونة | V2: الرصيد الفعلى بالكرتونة | W2: تنسيق الارقام مع اسم الصنف والتاريخ المقابل لها | AN2: الرصيد الفعلى بالكرتونة
G3: 2024-07-01 | H3: 2024-08-01 | I3: 2024-09-01 | J3: 2024-10-01 | K3: 2024-11-01 | L3: 2024-12-01 | M3: 2025-01-01 | N3: 2025-02-01 | O3: 2025-03-01 | P3: 2025-04-01 | Q3: 2025-05-01 | R3: 2025-06-01 | S3: 2025-07-01 | T3: 2025-08-01 | U3: 2025-09-01 | W3: اسم الصنف | X3: الرصيد | Y3: 2024-07-01 | Z3: 2024-08-01 | AA3: 2024-09-01 | AB3: 2024-10-01 | AC3: 2024-11-01 | AD3: 2024-12-01 | AE3: 2025-01-01 | AF3: 2025-02-01 | AG3: 2025-03-01 | AH3: 2025-04-01 | AI3: 2025-05-01 | AJ3: 2025-06-01 | AK3: 2025-07-01 | AL3: 2025-08-01 | AM3: 2025-09-01 | AO3: =IFERROR(IF(INDEX($G$4:$U$94,MATCH(SUBSTITUTE(TRIM($W4),CHAR(160)," "),SUBSTITUTE(TRIM($D$4:$D$94),CHAR(160)," "),0),MATCH(Y$3,$G$3:$U$3,0))=0,"",INDEX($G$4:$U$94,MATCH(SUBSTITUTE(TRIM($W4),CHAR(160)," "),SUBSTITUTE(TRIM($D$4:$D$94),CHAR(160)," "),0),MATCH(Y$3,$G$3:$U$3,0))),"") -> 
A4: 1 | B4: 6222000901529 | C4: سنتان | D4: سوبر فينا 10 كيلو | E4: كرتونة | S4: 52 | T4: 50 | U4: 100 | V4: =SUM(G4:U4) -> 202 | W4: سوبر فينا 10 كيلو | X4: =AN4 -> 0 | Y4: =IFERROR(IF(OR(INDEX($G$4:$U$94, MATCH(TRIM(CLEAN($W4)), $F$4:$F$94, 0), MATCH(Y$3, $G$3:$U$3, 0))=0, INDEX($G$4:$U$94, MATCH(TRIM(CLEAN($W4)), $F$4:$F$94, 0), MATCH(Y$3, $G$3:$U$3, 0))=""), "", INDEX($G$4:$U$94, MATCH(TRIM(CLEAN($W4)), $F$4:$F$94, 0), MATCH(Y$3, $G$3:$U$3, 0))), "") ->  | Z4: =IFERROR(IF(OR(INDEX($G$4:$U$94, MATCH(TRIM(CLEAN($W4)), $F$4:$F$94, 0), MATCH(Z$3, $G$3:$U$3, 0))=0, INDEX($G$4:$U$94, MATCH(TRIM(CLEAN($W4)), $F$4:$F$94, 0), MATCH(Z$3, $G$3:$U$3, 0))=""), "", INDEX($G$4:$U$94, MATCH(TRIM(CLEAN($W4)), $F$4:$F$94, 0), MATCH(Z$3, $G$3:$U$3, 0))), "") ->  | AN4: =SUM(Y4:AM4) -> 0 | AO4: =TRIM(CLEAN(SUBSTITUTE(SUBSTITUTE(SUBSTITUTE(W4,CHAR(10),""),CHAR(13),""),CHAR(9),""))) -> سوبر فينا 10 كيلو
A5: 2 | B5: 6222000901536 | C5: سنتان | D5: سوبر فينا 10 كيلو نعناع | E5: كرتونة | S5: 24 | U5: 155 | V5: =SUM(G5:U5) -> 179 | W5: سولا فواكة فلوباك 10 ك | X5: =AN5 -> 55 | Y5: =IFERROR(IF(OR(INDEX($G$4:$U$94, MATCH(TRIM(CLEAN($W5)), $D$4:$D$94, 0), MATCH(Y$3, $G$3:$U$3, 0))=0, INDEX($G$4:$U$94, MATCH(TRIM(CLEAN($W5)), $D$4:$D$94, 0), MATCH(Y$3, $G$3:$U$3, 0))=""), "", INDEX($G$4:$U$94, MATCH(TRIM(CLEAN($W5)), $D$4:$D$94, 0), MATCH(Y$3, $G$3:$U$3, 0))), "") ->  | Z5: =IFERROR(IF(OR(INDEX($G$4:$U$94, MATCH(TRIM(CLEAN($W5)), $D$4:$D$94, 0), MATCH(Z$3, $G$3:$U$3, 0))=0, INDEX($G$4:$U$94, MATCH(TRIM(CLEAN($W5)), $D$4:$D$94, 0), MATCH(Z$3, $G$3:$U$3, 0))=""), "", INDEX($G$4:$U$94, MATCH(TRIM(CLEAN($W5)), $D$4:$D$94, 0), MATCH(Z$3, $G$3:$U$3, 0))), "") ->  | AL5: 55 | AN5: =SUM(Y5:AM5) -> 55 | AO5: =TRIM(CLEAN(SUBSTITUTE(SUBSTITUTE(SUBSTITUTE(W5,CHAR(10),""),CHAR(13),""),CHAR(9),""))) -> سولا فواكة فلوباك 10 ك
A6: 3 | B6: 6222000911733 | C6: سنتان | D6: نعناع 12كيس 50 ق 4جم | E6: كرتونة | T6: 3 | V6: 3 | W6: سولا فواكة 5 ك | X6: 0 | AN6: 0 | AO6: سولا فواكة 5 ك
A7: 4 | B7: 6222000911764 | C7: سنتان | D7: سولا فواكه 12 كيس * 50 ق | E7: كرتونة | V7: 0 | W7: سولا فواكه 30 كيس * 28 ق | X7: 0 | AN7: 0 | AO7: سولا فواكه 30 كيس * 28 ق
A8: 5 | B8: 6222000917773 | C8: سنتان | D8: سولا فواكه 30 كيس * 28 ق | E8: كرتونة | V8: 0 | W8: سولا فواكه 12 كيس * 50 ق | X8: 0 | AN8: 0 | AO8: سولا فواكه 12 كيس * 50 ق
A9: 6 | B9: 6222000917780 | C9: سنتان | D9: سولا فواكه 12 كيس * 100 ق | E9: كرتونة | T9: 104 | V9: 104 | W9: سولا فواكه 12 كيس * 100 ق | X9: 104 | AL9: 104 | AN9: 104 | AO9: سولا فواكه 12 كيس * 100 ق
A10: 7 | B10: 6222000916295 | C10: سنتان | D10: سولا فواكة 6 كيس * 800 جم | E10: كرتونة | V10: 0 | W10: سولا ف 12 ع * 200 ق | X10: 0 | AN10: 0 | AO10: سولا ف 12 ع * 200 ق
A11: 8 | B11: 6222000912525 | C11: سنتان | D11: سولا ف 12 ع * 200 ق | E11: كرتونة | V11: 0 | W11: سولا ف 12 ع * 240 ق | X11: 0 | AN11: 0 | AO11: سولا ف 12 ع * 240 ق
A12: 9 | B12: 6222000912518 | C12: سنتان | D12: سولا نعناع 12 ع * 200 ق | E12: كرتونة | Q12: 22 | V12: 22 | W12: سولا فواكة 6 كيس * 800 جم | X12: 0 | AN12: 0 | AO12: سولا فواكة 6 كيس * 800 جم
A13: 10 | B13: 6222000912525 | C13: سنتان | D13: سولا ف 12 ع * 240 ق | E13: كرتونة | V13: 0 | W13: سوبر فينا 10 كيلو نعناع | X13: 179 | AK13: 24 | AM13: 155 | AN13: 179 | AO13: سوبر فينا 10 كيلو نعناع
A14: 11 | B14: 6222000908566 | C14: سنتان | D14: سولا فواكة 5 ك | E14: كرتونة | V14: 0 | W14: سولا نعناع فلوباك 10 ك | X14: 0 | AN14: 0 | AO14: سولا نعناع فلوباك 10 ك
A15: 12 | B15: 6222000908573 | C15: سنتان | D15: سولا نعناع 5 ك | E15: كرتونة | N15: 59 | V15: 59 | W15: سولا نعناع 5 ك | X15: 59 | AF15: 59 | AN15: 59 | AO15: سولا نعناع 5 ك
A16: 13 | B16: 00743 | C16: سنة | D16: قهوة 12 ع * 200 ق | E16: كرتونة | V16: 0 | W16: سولا نعناع 30 كيس * 28 ق | X16: 0 | AN16: 0 | AO16: سولا نعناع 30 كيس * 28 ق
A17: 14 | B17: 6222000917452 | C17: سنة | D17: قهوة 12 ع * 240 ق | E17: كرتونة | T17: 27 | V17: 27 | W17: نعناع 12كيس 50 ق 4جم | X17: 3 | AL17: 3 | AN17: 3 | AO17: نعناع 12كيس 50 ق 4جم
A18: 15 | B18: 6222000901758 | C18: سنة | D18: سولا قهوه 10 كيلو | E18: كرتونة | S18: 15.5 | T18: 50 | V18: 65.5 | W18: سولا نعناع 12 كيس * 100 ق | X18: 0 | AN18: 0 | AO18: سولا نعناع 12 كيس * 100 ق
A19: 16 | B19: 6222000912020 | C19: سنة | D19: قهوة 5 ك | E19: كرتونة | V19: 0 | W19: سولا نعناع 12 ع * 200 ق | X19: 22 | AI19: 22 | AN19: 22 | AO19: سولا نعناع 12 ع * 200 ق
A20: 17 | B20: 6222000909815 | C20: سنة | D20: قهوة 12 كيس * 80 ق / 90 ق | E20: كرتونة | R20: 85 | T20: 65 | V20: 150 | W20: نعناع 12 ع * 240 ق | X20: 0 | AN20: 0 | AO20: نعناع 12 ع * 240 ق
A21: 18 | B21: 6222000908610 | C21: سنة | D21: قهوة 30 كيس * 18 ق / 25 ق | E21: كرتونة | V21: 0 | W21: سولا قهوه 10 كيلو | X21: 65.5 | AK21: 15.5 | AL21: 50 | AN21: 65.5 | AO21: سولا قهوه 10 كيلو
A22: 19 | B22: 6222000909891 | C22: سنة | D22: قهوة 30 كيس * 12قطعه | E22: كرتونة | V22: 0 | W22: قهوة 5 ك | X22: 0 | AN22: 0 | AO22: قهوة 5 ك
A23: 20 | B23: 00744 | C23: سنة | D23: زبدة 12 ع * 200 ق | E23: كرتونة | S23: 64 | V23: 64 | W23: قهوة 30 كيس * 12قطعه | X23: 0 | AN23: 0 | AO23: قهوة 30 كيس * 12قطعه
A24: 21 | B24: 6222000901642 | C24: سنة | D24: سولا زبده 10 كيلو | E24: كرتونة | T24: 18 | V24: 18 | W24: قهوة 30 كيس * 15قطعه | X24: 0 | AN24: 0 | AO24: قهوة 30 كيس * 15قطعه
A25: 22 | B25: 6222000912037 | C25: سنة | D25: زبدة 5 ك | E25: كرتونة | V25: 0 | W25: قهوة 30 كيس * 18 ق / 25 ق | X25: 0 | AN25: 0 | AO25: قهوة 30 كيس * 18 ق / 25 ق
A26: 23 | B26: 6222000917124 | C26: سنة | D26: زبدة بالشيكولاته 12 علبة * 240 ق | E26: كرتونة | T26: 64 | V26: 64 | W26: قهوة 12 كيس * 55 ق | X26: 0 | AN26: 0 | AO26: قهوة 12 كيس * 55 ق
A27: 24 | B27: 6222000918732 | C27: سنة | D27: زبدة بالشيكولاته 10 ك | E27: كرتونة | T27: 34 | V27: 34 | W27: قهوة 12 كيس * 80 ق / 90 ق | X27: 150 | AJ27: 85 | AL27: 65 | AN27: 150 | AO27: قهوة 12 كيس * 80 ق / 90 ق
A28: 25 | B28: 6222000909808 | C28: سنة | D28: زبدة 12 كيس * 80 ق / 90 ق | E28: كرتونة | V28: 0 | W28: قهوة 12 كيس * 120 ق | X28: 0 | AN28: 0 | AO28: قهوة 12 كيس * 120 ق
A29: 26 | B29: 6222000907583 | C29: سنة | D29: زبدة 30 كيس * 18 ق / 25 ق | E29: كرتونة | P29: 110 | V29: 110 | W29: قهوة 12 ع * 200 ق | X29: 0 | AN29: 0 | AO29: قهوة 12 ع * 200 ق
A30: 27 | B30: 6222000909884 | C30: سنة | D30: زبدة 30 كيس * 12قطعه | E30: كرتونة | S30: 61 | T30: 48 | V30: 109 | W30: قهوة 12 ع * 240 ق | X30: 27 | AL30: 27 | AN30: 27 | AO30: قهوة 12 ع * 240 ق
A31: 28 | B31: 6222000909884 | C31: سنة | D31: زبدة 30 كيس * 15 قطعه | E31: كرتونة | V31: 0 | W31: قهوه20كيس*150جرام | X31: 0 | AN31: 0 | AO31: قهوه20كيس*150جرام
A32: 29 | B32: 6222000905688 | C32: سنة | D32: زبدة 12 كيس * 55 قطعه | E32: كرتونة | V32: 0 | W32: سولا زبده 10 كيلو | X32: 18 | AL32: 18 | AN32: 18 | AO32: سولا زبده 10 كيلو
A33: 30 | B33: 171 | C33: سنة | D33: زبدة 12 كيس * 120 ق | E33: كرتونة | S33: 41 | U33: 45 | V33: 86 | W33: زبدة 5 ك | X33: 0 | AN33: 0 | AO33: زبدة 5 ك
A34: 31 | B34: 6222000910064 | C34: سنة | D34: زبدة 10 شنطة * 800 جم | E34: كرتونة | V34: 0 | W34: زبدة 30 كيس * 12قطعه | X34: 109 | AK34: 61 | AL34: 48 | AN34: 109 | AO34: زبدة 30 كيس * 12قطعه
A35: 32 | B35: 6222000912501 | C35: 9 أشهر | D35: عسلية 12 ع * 200 ق | E35: كرتونة | V35: 0 | W35: زبدة 30 كيس * 15 قطعه | X35: 0 | AN35: 0 | AO35: زبدة 30 كيس * 15 قطعه
A36: 33 | B36: 6222000912457 | C36: 9 أشهر | D36: عسلية 5 ك | E36: كرتونة | V36: 0 | W36: زبدة 30 كيس * 18 ق / 25 ق | X36: 110 | Y36: =IFERROR(IF(OR(INDEX($G$4:$U$94, MATCH(TRIM(CLEAN($W36)), $D$4:$D$94, 0), MATCH(Y$3, $G$3:$U$3, 0))=0, INDEX($G$4:$U$94, MATCH(TRIM(CLEAN($W36)), $D$4:$D$94, 0), MATCH(Y$3, $G$3:$U$3, 0))=""), "", INDEX($G$4:$U$94, MATCH(TRIM(CLEAN($W36)), $D$4:$D$94, 0), MATCH(Y$3, $G$3:$U$3, 0))), "") ->  | AH36: 110 | AN36: 110 | AO36: زبدة 30 كيس * 18 ق / 25 ق
A37: 34 | B37: 6222000901611 | C37: سنة | D37: اكلير سايب 10 كيلو | E37: كرتونة | S37: 43 | T37: 55 | V37: 98 | W37: زبدة 12 كيس * 55 قطعه | X37: 0 | AN37: 0 | AO37: زبدة 12 كيس * 55 قطعه
A38: 35 | B38: 6222000909907 | C38: سنة | D38: اكلير 30 كيس * 9 ق / 10 ق | E38: كرتونة | S38: 134 | V38: 134 | W38: زبدة 12 كيس * 80 ق / 90 ق | X38: 0 | AN38: 0 | AO38: زبدة 12 كيس * 80 ق / 90 ق
A39: 36 | B39: 6222000909907 | C39: سنة | D39: اكلير 30 كيس * 12 قطعه | E39: كرتونة | V39: 0 | W39: زبدة 12 كيس * 120 ق | X39: 86 | AK39: 41 | AM39: 45 | AN39: 86 | AO39: زبدة 12 كيس * 120 ق
A40: 37 | B40: 6222000911498 | C40: سنة | D40: اكلير سولا 5 كيلو | E40: كرتونة | V40: 0 | W40: زبدة 12 ع * 200 ق | X40: 64 | AK40: 64 | AN40: 64 | AO40: زبدة 12 ع * 200 ق
A41: 38 | B41: 6222000912778 | C41: سنة | D41: اكلير 12كيس * 65 ق / 70 ق | E41: كرتونة | V41: 0 | W41: زبدة 10 شنطة * 800 جم | X41: 0 | AN41: 0 | AO41: زبدة 10 شنطة * 800 جم
A42: 39 | B42: 6222000912778 | C42: سنة | D42: اكلير 12 كيس * 100 قطعة | E42: كرتونة | S42: 137 | V42: 137 | W42: زبدة بالشيكولاته 10 ك | X42: 34 | AL42: 34 | AN42: 34 | AO42: زبدة بالشيكولاته 10 ك
A43: 40 | B43: 6222000912822 | C43: سنة | D43: اكلير 30 كيس * 15 ق / 20 ق | E43: كرتونة | V43: 0 | W43: زبدة بالشيكولاته 30 كيس * 15 قطعه | X43: 0 | AN43: 0 | AO43: زبدة بالشيكولاته 30 كيس * 15 قطعه
A44: 41 | B44: 6222000905701 | C44: سنة | D44: اكلير 12كيس 45 ق | E44: كرتونة | S44: 220 | V44: 220 | W44: زبدة بالشيكولاته 12 كيس * 55 قطعه | X44: 0 | AN44: 0 | AO44: زبدة بالشيكولاته 12 كيس * 55 قطعه
A45: 42 | B45: 6222000912532 | C45: سنة | D45: اكلير 12 علبة * 160 ق | E45: كرتونة | V45: 0 | W45: زبدة بالشيكولاته 12 كيس * 120 ق | X45: 0 | AN45: 0 | AO45: زبدة بالشيكولاته 12 كيس * 120 ق
A46: 43 | B46: 6222000912532 | C46: سنة | D46: اكلير 12 علبة 200 ق | E46: كرتونة | S46: 35 | V46: 35 | W46: زبدة بالشيكولاته 12 علبة * 240 ق | X46: 64 | AL46: 64 | AN46: 64 | AO46: زبدة بالشيكولاته 12 علبة * 240 ق
A47: 44 | B47: 6222000901697 | C47: سنة | D47: طوفي 10 كجم | E47: كرتونة | S47: 38 | T47: 46 | U47: 55 | V47: 139 | W47: عسلية 5 ك | X47: 0 | AN47: 0 | AO47: عسلية 5 ك
A48: 45 | B48: 6222000911481 | C48: سنة | D48: طوفي بردايس 5كيلو | E48: كرتونة | V48: 0 | W48: عسلية 12 ع * 200 ق | X48: 0 | AN48: 0 | AO48: عسلية 12 ع * 200 ق
A49: 46 | B49: 6222000908276 | C49: سنة | D49: طوفي 30 كيس * 25 قطعه | E49: كرتونة | V49: 0 | W49: اكلير سايب 10 كيلو | X49: 98 | AK49: 43 | AL49: 55 | AN49: 98 | AO49: اكلير سايب 10 كيلو
A50: 47 | B50: 6222000908276 | C50: سنة | D50: طوفى 30 كيس * 28 ق | E50: كرتونة | T50: 100 | V50: 100 | W50: اكلير 30 كيس * 9 ق / 10 ق | X50: 0 | AN50: 0 | AO50: اكلير 30 كيس * 9 ق / 10 ق
A51: 48 | B51: 6222000909921 | C51: سنة | D51: طوفي 30 كيس * 12قطعه | E51: كرتونة | V51: 0 | W51: اكلير 30 كيس * 12 قطعه | X51: 0 | AN51: 0 | AO51: اكلير 30 كيس * 12 قطعه
A52: 49 | B52: 6222000909839 | C52: سنة | D52: طوفي 12 كيس * 90 ق | E52: كرتونة | T52: 11 | V52: 11 | W52: اكلير 30 كيس * 15 ق / 20 ق | X52: 0 | AN52: 0 | AO52: اكلير 30 كيس * 15 ق / 20 ق
A53: 50 | B53: 6222000905718 | C53: سنة | D53: طوفى 12كيس * 100 ق | E53: كرتونة | T53: 97 | V53: 97 | W53: اكلير 12كيس 45 ق | X53: 220 | Y53: =IFERROR(IF(OR(INDEX($G$4:$U$94, MATCH(TRIM(CLEAN($W53)), $D$4:$D$94, 0), MATCH(Y$3, $G$3:$U$3, 0))=0, INDEX($G$4:$U$94, MATCH(TRIM(CLEAN($W53)), $D$4:$D$94, 0), MATCH(Y$3, $G$3:$U$3, 0))=""), "", INDEX($G$4:$U$94, MATCH(TRIM(CLEAN($W53)), $D$4:$D$94, 0), MATCH(Y$3, $G$3:$U$3, 0))), "") ->  | AK53: 220 | AN53: 220 | AO53: اكلير 12كيس 45 ق
A54: 51 | B54: 6222000908825 | C54: سنة | D54: طوفى 12 ع * 200 ق | E54: كرتونة | V54: 0 | W54: اكلير 12كيس * 65 ق / 70 ق | X54: 0 | AN54: 0 | AO54: اكلير 12كيس * 65 ق / 70 ق
A55: 52 | B55: 6222000912556 | C55: سنة | D55: طوفي 12 علبه * 240 ق | E55: كرتونة | S55: 29 | T55: 45 | V55: 74 | W55: اكلير 12 كيس * 100 قطعة | X55: 137 | AK55: 137 | AN55: 137 | AO55: اكلير 12 كيس * 100 قطعة
A56: 53 | B56: 6222000907637 | C56: سنة | D56: شيكولاته بوتيك 16 علبه * 50 قطعة | E56: كرتونة | O56: 6 | V56: 6 | W56: اكلير 12 علبة * 160 ق | X56: 0 | AN56: 0 | AO56: اكلير 12 علبة * 160 ق
A57: 54 | B57: 6222000903295 | C57: سنة | D57: شيكولاته بوتيك 6 علبه * 1.25 كيلو | E57: كرتونة | V57: 0 | W57: اكلير 12 علبة 200 ق | X57: 35 | AK57: 35 | AN57: 35 | AO57: اكلير 12 علبة 200 ق
A58: 55 | B58: 6222000912006 | C58: سنة | D58: شيكولاته بوتيك حليب 4 ك | E58: كرتونة | V58: 0 | W58: طوفي 10 كجم | X58: 139 | AK58: 38 | AL58: 46 | AM58: 55 | AN58: 139 | AO58: طوفي 10 كجم
A59: 56 | B59: 6222000911993 | C59: سنة | D59: شيكولاته بوتيك كراميل 4 ك | E59: كرتونة | V59: 0 | W59: طوفي 30 كيس * 12قطعه | X59: 0 | AN59: 0 | AO59: طوفي 30 كيس * 12قطعه
A60: 57 | B60: 6222000912013 | C60: سنة | D60: شيكولاته بوتيك بندق 4 ك | E60: كرتونة | V60: 0 | W60: طوفي 30 كيس * 25 قطعه | X60: 0 | AN60: 0 | AO60: طوفي 30 كيس * 25 قطعه
A61: 58 | B61: 6222000964197 | C61: سنة | D61: شيكوهند سايب 10 كجم | E61: كرتونة | V61: 0 | W61: طوفى 30 كيس * 28 ق | X61: 100 | AL61: 100 | AN61: 100 | AO61: طوفى 30 كيس * 28 ق
A62: 59 | B62: 6222000906630 | C62: سنة | D62: سوفت شيكوهند 5 ك | E62: كرتونة | T62: 40 | V62: 40 | W62: طوفي 12 كيس * 90 ق | X62: 11 | AL62: 11 | AN62: 11 | AO62: طوفي 12 كيس * 90 ق
A63: 60 | B63: 6222000612549 | C63: سنة | D63: شيكوهند سوفت 12 ع * 100 ق | E63: كرتونة | V63: 0 | W63: طوفى 12كيس * 100 ق | X63: 97 | AL63: 97 | AN63: 97 | AO63: طوفى 12كيس * 100 ق
A64: 61 | B64: 6222000915243 | C64: سنة | D64: بار شيكوهند 3 ك | E64: كرتونة | U64: 50 | V64: 50 | W64: طوفى 12 ع * 200 ق | X64: 0 | AN64: 0 | AO64: طوفى 12 ع * 200 ق
A65: 62 | B65: 6222000902519 | C65: 9 أشهر | D65: ويفر ايليت مغطس بنى 12 *12 | E65: كرتونة | V65: 0 | W65: طوفي 12 علبه * 240 ق | X65: 74 | AK65: 29 | AL65: 45 | AN65: 74 | AO65: طوفي 12 علبه * 240 ق
A66: 63 | B66: 6222000902557 | C66: 9 أشهر | D66: ويفر ايليت مغطس ابيض 12 * 12 | E66: كرتونة | V66: 0 | W66: طوفي شيكولاته 12 كيس * 25 ق | X66: 0 | AN66: 0 | AO66: طوفي شيكولاته 12 كيس * 25 ق
A67: 64 | B67: 6222000902564 | C67: 9 أشهر | D67: ويفر ايليت مغطس فراولة 12*12 | E67: كرتونة | V67: 0 | W67: طوفي شيكولاته 12 علبة * 100 ق | X67: 0 | AN67: 0 | AO67: طوفي شيكولاته 12 علبة * 100 ق
A68: 65 | B68: 6222000910200 | C68: 9 أشهر | D68: ايليت ماكس سادة ش 12 باكو 6 قطع | E68: كرتونة | S68: 263 | V68: 263 | W68: طوفي زبدة 12 كيس * 25 ق | X68: 0 | AN68: 0 | AO68: طوفي زبدة 12 كيس * 25 ق
A69: 66 | B69: 6222000910514 | C69: 9 أشهر | D69: ايليت ماكس سادة فانيليا 12 باكو * 6 قطع | E69: كرتونة | S69: 215 | V69: =SUM(G69:U69) -> 215 | W69: طوفي زبدة 12 علبة * 100 ق | X69: =AN69 -> 0 | AN69: =SUM(Y69:AM69) -> 0 | AO69: =TRIM(CLEAN(SUBSTITUTE(SUBSTITUTE(SUBSTITUTE(W69,CHAR(10),""),CHAR(13),""),CHAR(9),""))) -> طوفي زبدة 12 علبة * 100 ق
A70: 67 | B70: 6222000909976 | C70: 9 أشهر | D70: ويفر مربع 3 كيلو ايليت ابيض | E70: كرتونة | Q70: 74 | T70: 50 | V70: 124 | W70: شيكولاته بوتيك 16 علبه * 50 قطعة | X70: 6 | Y70: =IFERROR(IF(OR(INDEX($G$4:$U$94, MATCH(TRIM(CLEAN($W70)), $D$4:$D$94, 0), MATCH(Y$3, $G$3:$U$3, 0))=0, INDEX($G$4:$U$94, MATCH(TRIM(CLEAN($W70)), $D$4:$D$94, 0), MATCH(Y$3, $G$3:$U$3, 0))=""), "", INDEX($G$4:$U$94, MATCH(TRIM(CLEAN($W70)), $D$4:$D$94, 0), MATCH(Y$3, $G$3:$U$3, 0))), "") ->  | AG70: 6 | AN70: 6 | AO70: شيكولاته بوتيك 16 علبه * 50 قطعة
A71: 68 | B71: 6222000909983 | C71: 9 أشهر | D71: ويفر مربع 3 كيلو ايليت شيكولاته | E71: كرتونة | V71: 0 | W71: شيكولاته بوتيك 6 علبه * 1.25 كيلو | X71: 0 | AN71: 0 | AO71: شيكولاته بوتيك 6 علبه * 1.25 كيلو
A72: 69 | B72: 6222000909969 | C72: 9 أشهر | D72: ويفر مربع 3 كيلو ايليت فراوله | E72: كرتونة | Q72: 69 | T72: 50 | V72: 119 | W72: شيكولاته بوتيك حليب 4 ك | X72: 0 | AN72: 0 | AO72: شيكولاته بوتيك حليب 4 ك
A73: 70 | B73: 6888000909953 | C73: 9 أشهر | D73: ويفر مربع 3 كيلو ايليت جوز هند | E73: كرتونة | V73: 0 | W73: شيكولاته بوتيك كراميل 4 ك | X73: 0 | AN73: 0 | AO73: شيكولاته بوتيك كراميل 4 ك
A74: 71 | B74: 622200097116 | C74: 9 أشهر | D74: ويفر فرحه 5 كيلو | E74: كرتونة | Q74: 36 | V74: 36 | W74: شيكولاته بوتيك بندق 4 ك | X74: 0 | AN74: 0 | AO74: شيكولاته بوتيك بندق 4 ك
A75: 72 | B75: 6222000912372 | C75: 9 أشهر | D75: ويفر ايليت مربع بايتس 3 ك بني | E75: كرتونة | V75: 0 | W75: شيكوهند سايب 10 كجم | X75: 0 | AN75: 0 | AO75: شيكوهند سايب 10 كجم
A76: 73 | B76: 6222000912488 | C76: 9 أشهر | D76: بسكوت اكشن سادة شاي 6 ع * 12 ق | E76: كرتونة | V76: 0 | W76: سوفت شيكوهند 5 ك | X76: 40 | AL76: 40 | AN76: 40 | AO76: سوفت شيكوهند 5 ك
A77: 74 | B77: 6222000914383 | C77: 9 أشهر | D77: بسكوت اكشن سادة شاي 6 ع * 12 ق ( نباتى ) | E77: كرتونة | V77: 0 | W77: شيكوهند سوفت 12 كيس * 28 ق | X77: 0 | AN77: 0 | AO77: شيكوهند سوفت 12 كيس * 28 ق
A78: 75 | B78: 6222000916165 | C78: 9 أشهر | D78: ويفر اكشن مغطس بنى 12ع * 12 ق ( 5 جنية ) | E78: كرتونة | P78: 28 | V78: 28 | W78: شيكوهند سوفت 12 كيس * 60 ق | X78: 0 | AN78: 0 | AO78: شيكوهند سوفت 12 كيس * 60 ق
A79: 76 | B79: 6222000916172 | C79: 9 أشهر | D79: ويفر اكشن مغطس أبيض 12ع * 12 ق ( 5 جنية ) | E79: كرتونة | V79: 0 | W79: شيكوهند سوفت 12 ع * 100 ق | X79: 0 | AN79: 0 | AO79: شيكوهند سوفت 12 ع * 100 ق
A80: 77 | B80: 2810 | C80: 9 أشهر | D80: ويفر اكشن مغطس أبيض 8ع * 12 ق ( 5 جنية ) | E80: كرتونة | V80: 0 | W80: بار شيكوهند 3 ك | X80: 50 | AM80: 50 | AN80: 50 | AO80: بار شيكوهند 3 ك
A81: 78 | B81: 6222000912365 | C81: 9 أشهر | D81: بايتس مربع 6ع * 50ق بنى | E81: كرتونة | P81: 29 | V81: 29 | W81: ويفر ايليت مغطس بنى 12 *12 | X81: 0 | AN81: 0 | AO81: ويفر ايليت مغطس بنى 12 *12
A82: 79 | B82: 6222000902083 | C82: 9 أشهر | D82: بايتس مربع 6 ع * 50 ق ابيض | E82: كرتونة | V82: 0 | W82: ويفر ايليت مغطس ابيض 12 * 12 | X82: 0 | AN82: 0 | AO82: ويفر ايليت مغطس ابيض 12 * 12
A83: 80 | B83: 6222000913904 | C83: 9 أشهر | D83: بايتس مربع 6 ع * 50 ق فراولة | E83: كرتونة | V83: 0 | W83: ويفر ايليت مغطس فراولة 12*12 | X83: 0 | AN83: 0 | AO83: ويفر ايليت مغطس فراولة 12*12
A84: 81 | B84: 6222000916738 | C84: 9 أشهر | D84: ويفر بوتيك مربع 9 كيس * 500 جم | E84: كرتونة | V84: 0 | W84: ايليت ماكس سادة ش 12 باكو 6 قطع | X84: 263 | AK84: 263 | AN84: 263 | AO84: ايليت ماكس سادة ش 12 باكو 6 قطع
A85: 82 | B85: 002797 | C85: 4 أشهر | D85: كورن عائلي 15 كيس | E85: كرتونة | S85: 211 | V85: =SUM(G85:U85) -> 211 | W85: ايليت ماكس سادة فانيليا 12 باكو * 6 قطع | X85: 0 | AN85: 0 | AO85: ايليت ماكس سادة فانيليا 12 باكو * 6 قطع
A86: 83 | B86: 002796 | C86: 6 أشهر | D86: فاير فنجرز 15 كيس | E86: كرتونة | S86: 254 | V86: 254 | W86: ويفر مربع 3 كيلو ايليت ابيض | X86: 0 | AN86: 0 | AO86: ويفر مربع 3 كيلو ايليت ابيض
A87: 84 | B87: 001766 | C87: 6 أشهر | D87: اسبيشيال أطعم 15 كيس | E87: كرتونة | Q87: 213 | V87: 213 | W87: ويفر مربع 3 كيلو ايليت شيكولاته | X87: 0 | Y87: =IFERROR(IF(OR(INDEX($G$4:$U$94, MATCH(TRIM(CLEAN($W87)), $D$4:$D$94, 0), MATCH(Y$3, $G$3:$U$3, 0))=0, INDEX($G$4:$U$94, MATCH(TRIM(CLEAN($W87)), $D$4:$D$94, 0), MATCH(Y$3, $G$3:$U$3, 0))=""), "", INDEX($G$4:$U$94, MATCH(TRIM(CLEAN($W87)), $D$4:$D$94, 0), MATCH(Y$3, $G$3:$U$3, 0))), "") ->  | AN87: 0 | AO87: ويفر مربع 3 كيلو ايليت شيكولاته
A88: 85 | B88: EG-670026743-3002 | C88: 6 أشهر | D88: شيل أوت شيبس 15 كيس سعر الكيس 10 جنية | E88: كرتونة | Q88: 2 | S88: 187 | V88: 189 | W88: ويفر مربع 3 كيلو ايليت فراوله | X88: 0 | AN88: 0 | AO88: ويفر مربع 3 كيلو ايليت فراوله
A89: 86 | B89: 6224001574221 | C89: سنة | D89: زى كولا مشروب غازى 275 حلى | E89: كرتونة | P89: 254 | S89: 700 | V89: 954 | W89: ويفر مربع 3 كيلو ايليت جوز هند | X89: 0 | AN89: 0 | AO89: ويفر مربع 3 كيلو ايليت جوز هند
A90: 87 | B90: 2798 | C90: 9 أشهر | D90: اهلا بالعيد 8 كيس * 660 جم | E90: كرتونة | V90: 0 | W90: ويفر فرحه 5 كيلو | X90: 36 | AI90: 36 | AN90: 36 | AO90: ويفر فرحه 5 كيلو
A91: 88 | B91: 00695 | C91: سنة | D91: قهوه20كيس*150جرام | E91: كرتونة | V91: 0 | W91: ويفر ايليت مربع بايتس 3 ك بني | X91: 0 | AN91: 0 | AO91: ويفر ايليت مربع بايتس 3 ك بني
A92: 89 | B92: 6222000912518 | C92: سنتان | D92: نعناع 12 ع * 240 ق | E92: كرتونة | V92: 0 | W92: بسكوت اكشن سادة شاي 6 ع * 12 ق | X92: 0 | AN92: 0 | AO92: بسكوت اكشن سادة شاي 6 ع * 12 ق
A93: 90 | B93: 002827 | D93: سولا فواكة فلوباك 10 ك | E93: كرتونة | T93: 55 | V93: 55 | W93: بسكوت اكشن سادة شاي 6 ع * 12 ق ( نباتى ) | X93: 0 | AN93: 0 | AO93: بسكوت اكشن سادة شاي 6 ع * 12 ق ( نباتى )
A94: 91 | V94: 0 | W94: ويفر اكشن مغطس بنى 12ع * 12 ق ( 5 جنية ) | X94: 28 | AH94: 28 | AN94: 28 | AO94: ويفر اكشن مغطس بنى 12ع * 12 ق ( 5 جنية )
A95: 92 | V95: 0 | W95: ويفر اكشن مغطس أبيض 12ع * 12 ق ( 5 جنية ) | X95: 0 | AN95: 0 | AO95: ويفر اكشن مغطس أبيض 12ع * 12 ق ( 5 جنية )
A96: 93 | V96: 0 | W96: ويفر اكشن مغطس أبيض 8ع * 12 ق ( 5 جنية ) | X96: 0 | AN96: 0 | AO96: ويفر اكشن مغطس أبيض 8ع * 12 ق ( 5 جنية )
A97: 94 | V97: 0 | W97: بايتس مربع 6ع * 50ق بنى | X97: 0 | AN97: 0 | AO97: بايتس مربع 6ع * 50ق بنى
A98: 95 | V98: 0 | W98: بايتس مربع 6 ع * 50 ق ابيض | X98: 0 | AN98: 0 | AO98: بايتس مربع 6 ع * 50 ق ابيض
A99: 96 | V99: 0 | W99: ويفر 4 علبه * 50 قطعه ابيض بايتس | X99: 0 | AN99: 0 | AO99: ويفر 4 علبه * 50 قطعه ابيض بايتس
A100: 97 | V100: 0 | W100: ويفر 5 علبه * 50 قطعه ابيض بايتس | X100: 0 | AN100: 0 | AO100: ويفر 5 علبه * 50 قطعه ابيض بايتس
A101: 98 | V101: 0 | W101: ويفر 7 علبه * 50 قطعه ابيض بايتس | X101: 0 | AN101: 0 | AO101: ويفر 7 علبه * 50 قطعه ابيض بايتس
A102: 99 | V102: 0 | W102: بايتس مربع 6 ع * 50 ق فراولة | X102: 0 | AN102: 0 | AO102: بايتس مربع 6 ع * 50 ق فراولة
A103: 100 | V103: 0 | W103: ويفر 4 علبه * 50 قطعه فراولة بايتس | X103: 0 | AN103: 0 | AO103: ويفر 4 علبه * 50 قطعه فراولة بايتس
A104: 101 | V104: 0 | W104: ويفر بوتيك مربع 9 كيس * 500 جم | X104: 0 | Y104: =IFERROR(IF(OR(INDEX($G$4:$U$94, MATCH(TRIM(CLEAN($W104)), $D$4:$D$94, 0), MATCH(Y$3, $G$3:$U$3, 0))=0, INDEX($G$4:$U$94, MATCH(TRIM(CLEAN($W104)), $D$4:$D$94, 0), MATCH(Y$3, $G$3:$U$3, 0))=""), "", INDEX($G$4:$U$94, MATCH(TRIM(CLEAN($W104)), $D$4:$D$94, 0), MATCH(Y$3, $G$3:$U$3, 0))), "") ->  | AN104: 0 | AO104: ويفر بوتيك مربع 9 كيس * 500 جم
A105: 102 | V105: 0 | W105: ايليت عرض خاص | X105: 0 | AN105: 0 | AO105: ايليت عرض خاص
A106: 103 | V106: 0 | W106: اهلا بالعيد 8 كيس * 660 جم | X106: 0 | AN106: 0 | AO106: اهلا بالعيد 8 كيس * 660 جم
A107: 104 | V107: 0 | W107: كورن عائلي 15 كيس | X107: 211 | AK107: 211 | AN107: 211 | AO107: كورن عائلي 15 كيس
A108: 105 | V108: 0 | W108: فاير فنجرز 15 كيس | X108: 254 | AK108: 254 | AN108: 254 | AO108: فاير فنجرز 15 كيس
A109: 106 | V109: 0 | W109: اسبيشيال أطعم 15 كيس | X109: 0 | AN109: 0 | AO109: اسبيشيال أطعم 15 كيس
A110: 107 | V110: 0 | W110: شيل أوت شيبس 15 كيس سعر الكيس 10 جنية | X110: 189 | AI110: 2 | AK110: 187 | AN110: 189 | AO110: شيل أوت شيبس 15 كيس سعر الكيس 10 جنية
V111: 0 | W111: زى كولا مشروب غازى 275 حلى | X111: 954 | AH111: 254 | AK111: 700 | AN111: 954 | AO111: زى كولا مشروب غازى 275 حلى
A112: 108 | V112: 0 | W112: زبدة 12 علبة * 240 ق | X112: 0 | AN112: 0 | AO112: زبدة 12 علبة * 240 ق
A113: الاجمالى | F113: =SUM(F4:F112) -> 0 | G113: 0 | H113: 0 | I113: 0 | J113: 0 | K113: 0 | L113: 0 | M113: 0 | N113: 59 | O113: 6 | P113: 421 | Q113: 416 | R113: 85 | S113: 2723.5 | T113: 1012 | U113: =SUM(U4:U112) -> 405 | V113: =SUM(V4:V111) -> 5127.5 | X113: =SUM(X4:X112) -> 4091.5 | Y113: =SUM(Y4:Y112) -> 0 | Z113: =SUM(Z4:Z112) -> 0 | AA113: 0 | AB113: 0 | AC113: 0 | AD113: 0 | AE113: 0 | AF113: 59 | AG113: 6 | AH113: 392 | AI113: 60 | AJ113: 85 | AK113: 2322.5 | AL113: 862 | AM113: 305 | AN113: =SUM(AN4:AN112) -> 4091.5
AH115: =P113-AH113 -> 29 | AI115: =Q113-AI113 -> 356 | AK115: =S113-AK113 -> 401 | AL115: =T113-AL113 -> 150
V117: =V113-AN113 -> 1036

Sheet الرصيد 3 (7)
A1: رصيد توكيل ( توكيل نجع حمادى ) عن يوم ( الخميس 9/13 ) | W1: شيت به معادلات عادية
A2: م | B2: الكود | C2: مدة الصلاحية | D2: الصنف | E2: الوحدة | F2: الرصيد الدفترى بالكرتونة | V2: الرصيد الفعلى بالكرتونة | W2: تنسيق الارقام مع اسم الصنف والتاريخ المقابل لها | AN2: الرصيد الفعلى بالكرتونة
G3: 2024-07-01 | H3: 2024-08-01 | I3: 2024-09-01 | J3: 2024-10-01 | K3: 2024-11-01 | L3: 2024-12-01 | M3: 2025-01-01 | N3: 2025-02-01 | O3: 2025-03-01 | P3: 2025-04-01 | Q3: 2025-05-01 | R3: 2025-06-01 | S3: 2025-07-01 | T3: 2025-08-01 | U3: 2025-09-01 | W3: اسم الصنف | X3: الرصيد | Y3: 2024-07-01 | Z3: 2024-08-01 | AA3: 2024-09-01 | AB3: 2024-10-01 | AC3: 2024-11-01 | AD3: 2024-12-01 | AE3: 2025-01-01 | AF3: 2025-02-01 | AG3: 2025-03-01 | AH3: 2025-04-01 | AI3: 2025-05-01 | AJ3: 2025-06-01 | AK3: 2025-07-01 | AL3: 2025-08-01 | AM3: 2025-09-01 | AO3: =IFERROR(IF(INDEX($G$4:$U$94,MATCH(SUBSTITUTE(TRIM($W4),CHAR(160)," "),SUBSTITUTE(TRIM($D$4:$D$94),CHAR(160)," "),0),MATCH(Y$3,$G$3:$U$3,0))=0,"",INDEX($G$4:$U$94,MATCH(SUBSTITUTE(TRIM($W4),CHAR(160)," "),SUBSTITUTE(TRIM($D$4:$D$94),CHAR(160)," "),0),MATCH(Y$3,$G$3:$U$3,0))),"") -> 
A4: 1 | B4: 6222000901529 | C4: سنتان | D4: سوبر فينا 10 كيلو | E4: كرتونة | S4: 52 | T4: 50 | U4: 100 | V4: =SUM(G4:U4) -> 202 | W4: سوبر فينا 10 كيلو | X4: =AN4 -> 202 | Y4: =IFERROR(IF(OR(INDEX($G$4:$U$94, MATCH(TRIM(CLEAN($W4)), $D$4:$D$94, 0), MATCH(Y$3, $G$3:$U$3, 0))=0, INDEX($G$4:$U$94, MATCH(TRIM(CLEAN($W4)), $D$4:$D$94, 0), MATCH(Y$3, $G$3:$U$3, 0))=""), "", INDEX($G$4:$U$94, MATCH(TRIM(CLEAN($W4)), $D$4:$D$94, 0), MATCH(Y$3, $G$3:$U$3, 0))), "") ->  | Z4: =IFERROR(IF(OR(INDEX($G$4:$U$94, MATCH(TRIM(CLEAN($W4)), $D$4:$D$94, 0), MATCH(Z$3, $G$3:$U$3, 0))=0, INDEX($G$4:$U$94, MATCH(TRIM(CLEAN($W4)), $D$4:$D$94, 0), MATCH(Z$3, $G$3:$U$3, 0))=""), "", INDEX($G$4:$U$94, MATCH(TRIM(CLEAN($W4)), $D$4:$D$94, 0), MATCH(Z$3, $G$3:$U$3, 0))), "") ->  | AK4: 52 | AL4: 50 | AM4: 100 | AN4: =SUM(Y4:AM4) -> 202 | AO4: =TRIM(CLEAN(SUBSTITUTE(SUBSTITUTE(SUBSTITUTE(W4,CHAR(10),""),CHAR(13),""),CHAR(9),""))) -> سوبر فينا 10 كيلو
A5: 2 | B5: 6222000901536 | C5: سنتان | D5: سوبر فينا 10 كيلو نعناع | E5: كرتونة | S5: 24 | U5: 155 | V5: =SUM(G5:U5) -> 179 | W5: سولا فواكة فلوباك 10 ك | X5: =AN5 -> 55 | Y5: =IFERROR(IF(OR(INDEX($G$4:$U$94, MATCH(TRIM(CLEAN($W5)), $D$4:$D$94, 0), MATCH(Y$3, $G$3:$U$3, 0))=0, INDEX($G$4:$U$94, MATCH(TRIM(CLEAN($W5)), $D$4:$D$94, 0), MATCH(Y$3, $G$3:$U$3, 0))=""), "", INDEX($G$4:$U$94, MATCH(TRIM(CLEAN($W5)), $D$4:$D$94, 0), MATCH(Y$3, $G$3:$U$3, 0))), "") ->  | AL5: 55 | AN5: =SUM(Y5:AM5) -> 55 | AO5: =TRIM(CLEAN(SUBSTITUTE(SUBSTITUTE(SUBSTITUTE(W5,CHAR(10),""),CHAR(13),""),CHAR(9),""))) -> سولا فواكة فلوباك 10 ك
A6: 3 | B6: 6222000911733 | C6: سنتان | D6: نعناع 12كيس 50 ق 4جم | E6: كرتونة | T6: 3 | V6: 3 | W6: سولا فواكة 5 ك | X6: 0 | AN6: 0 | AO6: سولا فواكة 5 ك
A7: 4 | B7: 6222000911764 | C7: سنتان | D7: سولا فواكه 12 كيس * 50 ق | E7: كرتونة | V7: 0 | W7: سولا فواكه 30 كيس * 28 ق | X7: 0 | AN7: 0 | AO7: سولا فواكه 30 كيس * 28 ق
A8: 5 | B8: 6222000917773 | C8: سنتان | D8: سولا فواكه 30 كيس * 28 ق | E8: كرتونة | V8: 0 | W8: سولا فواكه 12 كيس * 50 ق | X8: 0 | AN8: 0 | AO8: سولا فواكه 12 كيس * 50 ق
A9: 6 | B9: 6222000917780 | C9: سنتان | D9: سولا فواكه 12 كيس * 100 ق | E9: كرتونة | T9: 104 | V9: 104 | W9: سولا فواكه 12 كيس * 100 ق | X9: 104 | AL9: 104 | AN9: 104 | AO9: سولا فواكه 12 كيس * 100 ق
A10: 7 | B10: 6222000916295 | C10: سنتان | D10: سولا فواكة 6 كيس * 800 جم | E10: كرتونة | V10: 0 | W10: سولا ف 12 ع * 200 ق | X10: 0 | AN10: 0 | AO10: سولا ف 12 ع * 200 ق
A11: 8 | B11: 6222000912525 | C11: سنتان | D11: سولا ف 12 ع * 200 ق | E11: كرتونة | V11: 0 | W11: سولا ف 12 ع * 240 ق | X11: 0 | AN11: 0 | AO11: سولا ف 12 ع * 240 ق
A12: 9 | B12: 6222000912518 | C12: سنتان | D12: سولا نعناع 12 ع * 200 ق | E12: كرتونة | Q12: 22 | V12: 22 | W12: سولا فواكة 6 كيس * 800 جم | X12: 0 | AN12: 0 | AO12: سولا فواكة 6 كيس * 800 جم
A13: 10 | B13: 6222000912525 | C13: سنتان | D13: سولا ف 12 ع * 240 ق | E13: كرتونة | V13: 0 | W13: سوبر فينا 10 كيلو نعناع | X13: 179 | AK13: 24 | AM13: 155 | AN13: 179 | AO13: سوبر فينا 10 كيلو نعناع
A14: 11 | B14: 6222000908566 | C14: سنتان | D14: سولا فواكة 5 ك | E14: كرتونة | V14: 0 | W14: سولا نعناع فلوباك 10 ك | X14: 0 | AN14: 0 | AO14: سولا نعناع فلوباك 10 ك
A15: 12 | B15: 6222000908573 | C15: سنتان | D15: سولا نعناع 5 ك | E15: كرتونة | N15: 59 | V15: 59 | W15: سولا نعناع 5 ك | X15: 59 | AF15: 59 | AN15: 59 | AO15: سولا نعناع 5 ك
A16: 13 | B16: 00743 | C16: سنة | D16: قهوة 12 ع * 200 ق | E16: كرتونة | V16: 0 | W16: سولا نعناع 30 كيس * 28 ق | X16: 0 | AN16: 0 | AO16: سولا نعناع 30 كيس * 28 ق
A17: 14 | B17: 6222000917452 | C17: سنة | D17: قهوة 12 ع * 240 ق | E17: كرتونة | T17: 27 | V17: 27 | W17: نعناع 12كيس 50 ق 4جم | X17: 3 | AL17: 3 | AN17: 3 | AO17: نعناع 12كيس 50 ق 4جم
A18: 15 | B18: 6222000901758 | C18: سنة | D18: سولا قهوه 10 كيلو | E18: كرتونة | S18: 15.5 | T18: 50 | V18: 65.5 | W18: سولا نعناع 12 كيس * 100 ق | X18: 0 | AN18: 0 | AO18: سولا نعناع 12 كيس * 100 ق
A19: 16 | B19: 6222000912020 | C19: سنة | D19: قهوة 5 ك | E19: كرتونة | V19: 0 | W19: سولا نعناع 12 ع * 200 ق | X19: 22 | AI19: 22 | AN19: 22 | AO19: سولا نعناع 12 ع * 200 ق
A20: 17 | B20: 6222000909815 | C20: سنة | D20: قهوة 12 كيس * 80 ق / 90 ق | E20: كرتونة | R20: 85 | T20: 65 | V20: 150 | W20: نعناع 12 ع * 240 ق | X20: 0 | AN20: 0 | AO20: نعناع 12 ع * 240 ق
A21: 18 | B21: 6222000908610 | C21: سنة | D21: قهوة 30 كيس * 18 ق / 25 ق | E21: كرتونة | V21: 0 | W21: سولا قهوه 10 كيلو | X21: 65.5 | AK21: 15.5 | AL21: 50 | AN21: 65.5 | AO21: سولا قهوه 10 كيلو
A22: 19 | B22: 6222000909891 | C22: سنة | D22: قهوة 30 كيس * 12قطعه | E22: كرتونة | V22: 0 | W22: قهوة 5 ك | X22: 0 | AN22: 0 | AO22: قهوة 5 ك
A23: 20 | B23: 00744 | C23: سنة | D23: زبدة 12 ع * 200 ق | E23: كرتونة | S23: 64 | V23: 64 | W23: قهوة 30 كيس * 12قطعه | X23: 0 | AN23: 0 | AO23: قهوة 30 كيس * 12قطعه
A24: 21 | B24: 6222000901642 | C24: سنة | D24: سولا زبده 10 كيلو | E24: كرتونة | T24: 18 | V24: 18 | W24: قهوة 30 كيس * 15قطعه | X24: 0 | AN24: 0 | AO24: قهوة 30 كيس * 15قطعه
A25: 22 | B25: 6222000912037 | C25: سنة | D25: زبدة 5 ك | E25: كرتونة | V25: 0 | W25: قهوة 30 كيس * 18 ق / 25 ق | X25: 0 | AN25: 0 | AO25: قهوة 30 كيس * 18 ق / 25 ق
A26: 23 | B26: 6222000917124 | C26: سنة | D26: زبدة بالشيكولاته 12 علبة * 240 ق | E26: كرتونة | T26: 64 | V26: 64 | W26: قهوة 12 كيس * 55 ق | X26: 0 | AN26: 0 | AO26: قهوة 12 كيس * 55 ق
A27: 24 | B27: 6222000918732 | C27: سنة | D27: زبدة بالشيكولاته 10 ك | E27: كرتونة | T27: 34 | V27: 34 | W27: قهوة 12 كيس * 80 ق / 90 ق | X27: 150 | AJ27: 85 | AL27: 65 | AN27: 150 | AO27: قهوة 12 كيس * 80 ق / 90 ق
A28: 25 | B28: 6222000909808 | C28: سنة | D28: زبدة 12 كيس * 80 ق / 90 ق | E28: كرتونة | V28: 0 | W28: قهوة 12 كيس * 120 ق | X28: 0 | AN28: 0 | AO28: قهوة 12 كيس * 120 ق
A29: 26 | B29: 6222000907583 | C29: سنة | D29: زبدة 30 كيس * 18 ق / 25 ق | E29: كرتونة | P29: 110 | V29: 110 | W29: قهوة 12 ع * 200 ق | X29: 0 | AN29: 0 | AO29: قهوة 12 ع * 200 ق
A30: 27 | B30: 6222000909884 | C30: سنة | D30: زبدة 30 كيس * 12قطعه | E30: كرتونة | S30: 61 | T30: 48 | V30: 109 | W30: قهوة 12 ع * 240 ق | X30: 27 | AL30: 27 | AN30: 27 | AO30: قهوة 12 ع * 240 ق
A31: 28 | B31: 6222000909884 | C31: سنة | D31: زبدة 30 كيس * 15 قطعه | E31: كرتونة | V31: 0 | W31: قهوه20كيس*150جرام | X31: 0 | AN31: 0 | AO31: قهوه20كيس*150جرام
A32: 29 | B32: 6222000905688 | C32: سنة | D32: زبدة 12 كيس * 55 قطعه | E32: كرتونة | V32: 0 | W32: سولا زبده 10 كيلو | X32: 18 | AL32: 18 | AN32: 18 | AO32: سولا زبده 10 كيلو
A33: 30 | B33: 171 | C33: سنة | D33: زبدة 12 كيس * 120 ق | E33: كرتونة | S33: 41 | U33: 45 | V33: 86 | W33: زبدة 5 ك | X33: 0 | AN33: 0 | AO33: زبدة 5 ك
A34: 31 | B34: 6222000910064 | C34: سنة | D34: زبدة 10 شنطة * 800 جم | E34: كرتونة | V34: 0 | W34: زبدة 30 كيس * 12قطعه | X34: 109 | AK34: 61 | AL34: 48 | AN34: 109 | AO34: زبدة 30 كيس * 12قطعه
A35: 32 | B35: 6222000912501 | C35: 9 أشهر | D35: عسلية 12 ع * 200 ق | E35: كرتونة | V35: 0 | W35: زبدة 30 كيس * 15 قطعه | X35: 0 | AN35: 0 | AO35: زبدة 30 كيس * 15 قطعه
A36: 33 | B36: 6222000912457 | C36: 9 أشهر | D36: عسلية 5 ك | E36: كرتونة | V36: 0 | W36: زبدة 30 كيس * 18 ق / 25 ق | X36: 110 | Y36: =IFERROR(IF(OR(INDEX($G$4:$U$94, MATCH(TRIM(CLEAN($W36)), $D$4:$D$94, 0), MATCH(Y$3, $G$3:$U$3, 0))=0, INDEX($G$4:$U$94, MATCH(TRIM(CLEAN($W36)), $D$4:$D$94, 0), MATCH(Y$3, $G$3:$U$3, 0))=""), "", INDEX($G$4:$U$94, MATCH(TRIM(CLEAN($W36)), $D$4:$D$94, 0), MATCH(Y$3, $G$3:$U$3, 0))), "") ->  | AH36: 110 | AN36: 110 | AO36: زبدة 30 كيس * 18 ق / 25 ق
A37: 34 | B37: 6222000901611 | C37: سنة | D37: اكلير سايب 10 كيلو | E37: كرتونة | S37: 43 | T37: 55 | V37: 98 | W37: زبدة 12 كيس * 55 قطعه | X37: 0 | AN37: 0 | AO37: زبدة 12 كيس * 55 قطعه
A38: 35 | B38: 6222000909907 | C38: سنة | D38: اكلير 30 كيس * 9 ق / 10 ق | E38: كرتونة | S38: 134 | V38: 134 | W38: زبدة 12 كيس * 80 ق / 90 ق | X38: 0 | AN38: 0 | AO38: زبدة 12 كيس * 80 ق / 90 ق
A39: 36 | B39: 6222000909907 | C39: سنة | D39: اكلير 30 كيس * 12 قطعه | E39: كرتونة | V39: 0 | W39: زبدة 12 كيس * 120 ق | X39: 86 | AK39: 41 | AM39: 45 | AN39: 86 | AO39: زبدة 12 كيس * 120 ق
A40: 37 | B40: 6222000911498 | C40: سنة | D40: اكلير سولا 5 كيلو | E40: كرتونة | V40: 0 | W40: زبدة 12 ع * 200 ق | X40: 64 | AK40: 64 | AN40: 64 | AO40: زبدة 12 ع * 200 ق
A41: 38 | B41: 6222000912778 | C41: سنة | D41: اكلير 12كيس * 65 ق / 70 ق | E41: كرتونة | V41: 0 | W41: زبدة 10 شنطة * 800 جم | X41: 0 | AN41: 0 | AO41: زبدة 10 شنطة * 800 جم
A42: 39 | B42: 6222000912778 | C42: سنة | D42: اكلير 12 كيس * 100 قطعة | E42: كرتونة | S42: 137 | V42: 137 | W42: زبدة بالشيكولاته 10 ك | X42: 34 | AL42: 34 | AN42: 34 | AO42: زبدة بالشيكولاته 10 ك
A43: 40 | B43: 6222000912822 | C43: سنة | D43: اكلير 30 كيس * 15 ق / 20 ق | E43: كرتونة | V43: 0 | W43: زبدة بالشيكولاته 30 كيس * 15 قطعه | X43: 0 | AN43: 0 | AO43: زبدة بالشيكولاته 30 كيس * 15 قطعه
A44: 41 | B44: 6222000905701 | C44: سنة | D44: اكلير 12كيس 45 ق | E44: كرتونة | S44: 220 | V44: 220 | W44: زبدة بالشيكولاته 12 كيس * 55 قطعه | X44: 0 | AN44: 0 | AO44: زبدة بالشيكولاته 12 كيس * 55 قطعه
A45: 42 | B45: 6222000912532 | C45: سنة | D45: اكلير 12 علبة * 160 ق | E45: كرتونة | V45: 0 | W45: زبدة بالشيكولاته 12 كيس * 120 ق | X45: 0 | AN45: 0 | AO45: زبدة بالشيكولاته 12 كيس * 120 ق
A46: 43 | B46: 6222000912532 | C46: سنة | D46: اكلير 12 علبة 200 ق | E46: كرتونة | S46: 35 | V46: 35 | W46: زبدة بالشيكولاته 12 علبة * 240 ق | X46: 64 | AL46: 64 | AN46: 64 | AO46: زبدة بالشيكولاته 12 علبة * 240 ق
A47: 44 | B47: 6222000901697 | C47: سنة | D47: طوفي 10 كجم | E47: كرتونة | S47: 38 | T47: 46 | U47: 55 | V47: 139 | W47: عسلية 5 ك | X47: 0 | AN47: 0 | AO47: عسلية 5 ك
A48: 45 | B48: 6222000911481 | C48: سنة | D48: طوفي بردايس 5كيلو | E48: كرتونة | V48: 0 | W48: عسلية 12 ع * 200 ق | X48: 0 | AN48: 0 | AO48: عسلية 12 ع * 200 ق
A49: 46 | B49: 6222000908276 | C49: سنة | D49: طوفي 30 كيس * 25 قطعه | E49: كرتونة | V49: 0 | W49: اكلير سايب 10 كيلو | X49: 98 | AK49: 43 | AL49: 55 | AN49: 98 | AO49: اكلير سايب 10 كيلو
A50: 47 | B50: 6222000908276 | C50: سنة | D50: طوفى 30 كيس * 28 ق | E50: كرتونة | T50: 100 | V50: 100 | W50: اكلير 30 كيس * 9 ق / 10 ق | X50: 0 | AN50: 0 | AO50: اكلير 30 كيس * 9 ق / 10 ق
A51: 48 | B51: 6222000909921 | C51: سنة | D51: طوفي 30 كيس * 12قطعه | E51: كرتونة | V51: 0 | W51: اكلير 30 كيس * 12 قطعه | X51: 0 | AN51: 0 | AO51: اكلير 30 كيس * 12 قطعه
A52: 49 | B52: 6222000909839 | C52: سنة | D52: طوفي 12 كيس * 90 ق | E52: كرتونة | T52: 11 | V52: 11 | W52: اكلير 30 كيس * 15 ق / 20 ق | X52: 0 | AN52: 0 | AO52: اكلير 30 كيس * 15 ق / 20 ق
A53: 50 | B53: 6222000905718 | C53: سنة | D53: طوفى 12كيس * 100 ق | E53: كرتونة | T53: 97 | V53: 97 | W53: اكلير 12كيس 45 ق | X53: 220 | Y53: =IFERROR(IF(OR(INDEX($G$4:$U$94, MATCH(TRIM(CLEAN($W53)), $D$4:$D$94, 0), MATCH(Y$3, $G$3:$U$3, 0))=0, INDEX($G$4:$U$94, MATCH(TRIM(CLEAN($W53)), $D$4:$D$94, 0), MATCH(Y$3, $G$3:$U$3, 0))=""), "", INDEX($G$4:$U$94, MATCH(TRIM(CLEAN($W53)), $D$4:$D$94, 0), MATCH(Y$3, $G$3:$U$3, 0))), "") ->  | AK53: 220 | AN53: 220 | AO53: اكلير 12كيس 45 ق
A54: 51 | B54: 6222000908825 | C54: سنة | D54: طوفى 12 ع * 200 ق | E54: كرتونة | V54: 0 | W54: اكلير 12كيس * 65 ق / 70 ق | X54: 0 | AN54: 0 | AO54: اكلير 12كيس * 65 ق / 70 ق
A55: 52 | B55: 6222000912556 | C55: سنة | D55: طوفي 12 علبه * 240 ق | E55: كرتونة | S55: 29 | T55: 45 | V55: 74 | W55: اكلير 12 كيس * 100 قطعة | X55: 137 | AK55: 137 | AN55: 137 | AO55: اكلير 12 كيس * 100 قطعة
A56: 53 | B56: 6222000907637 | C56: سنة | D56: شيكولاته بوتيك 16 علبه * 50 قطعة | E56: كرتونة | O56: 6 | V56: 6 | W56: اكلير 12 علبة * 160 ق | X56: 0 | AN56: 0 | AO56: اكلير 12 علبة * 160 ق
A57: 54 | B57: 6222000903295 | C57: سنة | D57: شيكولاته بوتيك 6 علبه * 1.25 كيلو | E57: كرتونة | V57: 0 | W57: اكلير 12 علبة 200 ق | X57: 35 | AK57: 35 | AN57: 35 | AO57: اكلير 12 علبة 200 ق
A58: 55 | B58: 6222000912006 | C58: سنة | D58: شيكولاته بوتيك حليب 4 ك | E58: كرتونة | V58: 0 | W58: طوفي 10 كجم | X58: 139 | AK58: 38 | AL58: 46 | AM58: 55 | AN58: 139 | AO58: طوفي 10 كجم
A59: 56 | B59: 6222000911993 | C59: سنة | D59: شيكولاته بوتيك كراميل 4 ك | E59: كرتونة | V59: 0 | W59: طوفي 30 كيس * 12قطعه | X59: 0 | AN59: 0 | AO59: طوفي 30 كيس * 12قطعه
A60: 57 | B60: 6222000912013 | C60: سنة | D60: شيكولاته بوتيك بندق 4 ك | E60: كرتونة | V60: 0 | W60: طوفي 30 كيس * 25 قطعه | X60: 0 | AN60: 0 | AO60: طوفي 30 كيس * 25 قطعه
A61: 58 | B61: 6222000964197 | C61: سنة | D61: شيكوهند سايب 10 كجم | E61: كرتونة | V61: 0 | W61: طوفى 30 كيس * 28 ق | X61: 100 | AL61: 100 | AN61: 100 | AO61: طوفى 30 كيس * 28 ق
A62: 59 | B62: 6222000906630 | C62: سنة | D62: سوفت شيكوهند 5 ك | E62: كرتونة | T62: 40 | V62: 40 | W62: طوفي 12 كيس * 90 ق | X62: 11 | AL62: 11 | AN62: 11 | AO62: طوفي 12 كيس * 90 ق
A63: 60 | B63: 6222000612549 | C63: سنة | D63: شيكوهند سوفت 12 ع * 100 ق | E63: كرتونة | V63: 0 | W63: طوفى 12كيس * 100 ق | X63: 97 | AL63: 97 | AN63: 97 | AO63: طوفى 12كيس * 100 ق
A64: 61 | B64: 6222000915243 | C64: سنة | D64: بار شيكوهند 3 ك | E64: كرتونة | U64: 50 | V64: 50 | W64: طوفى 12 ع * 200 ق | X64: 0 | AN64: 0 | AO64: طوفى 12 ع * 200 ق
A65: 62 | B65: 6222000902519 | C65: 9 أشهر | D65: ويفر ايليت مغطس بنى 12 *12 | E65: كرتونة | V65: 0 | W65: طوفي 12 علبه * 240 ق | X65: 74 | AK65: 29 | AL65: 45 | AN65: 74 | AO65: طوفي 12 علبه * 240 ق
A66: 63 | B66: 6222000902557 | C66: 9 أشهر | D66: ويفر ايليت مغطس ابيض 12 * 12 | E66: كرتونة | V66: 0 | W66: طوفي شيكولاته 12 كيس * 25 ق | X66: 0 | AN66: 0 | AO66: طوفي شيكولاته 12 كيس * 25 ق
A67: 64 | B67: 6222000902564 | C67: 9 أشهر | D67: ويفر ايليت مغطس فراولة 12*12 | E67: كرتونة | V67: 0 | W67: طوفي شيكولاته 12 علبة * 100 ق | X67: 0 | AN67: 0 | AO67: طوفي شيكولاته 12 علبة * 100 ق
A68: 65 | B68: 6222000910200 | C68: 9 أشهر | D68: ايليت ماكس سادة ش 12 باكو 6 قطع | E68: كرتونة | S68: 263 | V68: 263 | W68: طوفي زبدة 12 كيس * 25 ق | X68: 0 | AN68: 0 | AO68: طوفي زبدة 12 كيس * 25 ق
A69: 66 | B69: 6222000910514 | C69: 9 أشهر | D69: ايليت ماكس سادة فانيليا 12 باكو * 6 قطع | E69: كرتونة | S69: 215 | V69: =SUM(G69:U69) -> 215 | W69: طوفي زبدة 12 علبة * 100 ق | X69: =AN69 -> 0 | AN69: =SUM(Y69:AM69) -> 0 | AO69: =TRIM(CLEAN(SUBSTITUTE(SUBSTITUTE(SUBSTITUTE(W69,CHAR(10),""),CHAR(13),""),CHAR(9),""))) -> طوفي زبدة 12 علبة * 100 ق
A70: 67 | B70: 6222000909976 | C70: 9 أشهر | D70: ويفر مربع 3 كيلو ايليت ابيض | E70: كرتونة | Q70: 74 | T70: 50 | V70: 124 | W70: شيكولاته بوتيك 16 علبه * 50 قطعة | X70: 6 | Y70: =IFERROR(IF(OR(INDEX($G$4:$U$94, MATCH(TRIM(CLEAN($W70)), $D$4:$D$94, 0), MATCH(Y$3, $G$3:$U$3, 0))=0, INDEX($G$4:$U$94, MATCH(TRIM(CLEAN($W70)), $D$4:$D$94, 0), MATCH(Y$3, $G$3:$U$3, 0))=""), "", INDEX($G$4:$U$94, MATCH(TRIM(CLEAN($W70)), $D$4:$D$94, 0), MATCH(Y$3, $G$3:$U$3, 0))), "") ->  | AG70: 6 | AN70: 6 | AO70: شيكولاته بوتيك 16 علبه * 50 قطعة
A71: 68 | B71: 6222000909983 | C71: 9 أشهر | D71: ويفر مربع 3 كيلو ايليت شيكولاته | E71: كرتونة | V71: 0 | W71: شيكولاته بوتيك 6 علبه * 1.25 كيلو | X71: 0 | AN71: 0 | AO71: شيكولاته بوتيك 6 علبه * 1.25 كيلو
A72: 69 | B72: 6222000909969 | C72: 9 أشهر | D72: ويفر مربع 3 كيلو ايليت فراوله | E72: كرتونة | Q72: 69 | T72: 50 | V72: 119 | W72: شيكولاته بوتيك حليب 4 ك | X72: 0 | AN72: 0 | AO72: شيكولاته بوتيك حليب 4 ك
A73: 70 | B73: 6888000909953 | C73: 9 أشهر | D73: ويفر مربع 3 كيلو ايليت جوز هند | E73: كرتونة | V73: 0 | W73: شيكولاته بوتيك كراميل 4 ك | X73: 0 | AN73: 0 | AO73: شيكولاته بوتيك كراميل 4 ك
A74: 71 | B74: 622200097116 | C74: 9 أشهر | D74: ويفر فرحه 5 كيلو | E74: كرتونة | Q74: 36 | V74: 36 | W74: شيكولاته بوتيك بندق 4 ك | X74: 0 | AN74: 0 | AO74: شيكولاته بوتيك بندق 4 ك
A75: 72 | B75: 6222000912372 | C75: 9 أشهر | D75: ويفر ايليت مربع بايتس 3 ك بني | E75: كرتونة | V75: 0 | W75: شيكوهند سايب 10 كجم | X75: 0 | AN75: 0 | AO75: شيكوهند سايب 10 كجم
A76: 73 | B76: 6222000912488 | C76: 9 أشهر | D76: بسكوت اكشن سادة شاي 6 ع * 12 ق | E76: كرتونة | V76: 0 | W76: سوفت شيكوهند 5 ك | X76: 40 | AL76: 40 | AN76: 40 | AO76: سوفت شيكوهند 5 ك
A77: 74 | B77: 6222000914383 | C77: 9 أشهر | D77: بسكوت اكشن سادة شاي 6 ع * 12 ق ( نباتى ) | E77: كرتونة | V77: 0 | W77: شيكوهند سوفت 12 كيس * 28 ق | X77: 0 | AN77: 0 | AO77: شيكوهند سوفت 12 كيس * 28 ق
A78: 75 | B78: 6222000916165 | C78: 9 أشهر | D78: ويفر اكشن مغطس بنى 12ع * 12 ق ( 5 جنية ) | E78: كرتونة | P78: 28 | V78: 28 | W78: شيكوهند سوفت 12 كيس * 60 ق | X78: 0 | AN78: 0 | AO78: شيكوهند سوفت 12 كيس * 60 ق
A79: 76 | B79: 6222000916172 | C79: 9 أشهر | D79: ويفر اكشن مغطس أبيض 12ع * 12 ق ( 5 جنية ) | E79: كرتونة | V79: 0 | W79: شيكوهند سوفت 12 ع * 100 ق | X79: 0 | AN79: 0 | AO79: شيكوهند سوفت 12 ع * 100 ق
A80: 77 | B80: 2810 | C80: 9 أشهر | D80: ويفر اكشن مغطس أبيض 8ع * 12 ق ( 5 جنية ) | E80: كرتونة | V80: 0 | W80: بار شيكوهند 3 ك | X80: 50 | AM80: 50 | AN80: 50 | AO80: بار شيكوهند 3 ك
A81: 78 | B81: 6222000912365 | C81: 9 أشهر | D81: بايتس مربع 6ع * 50ق بنى | E81: كرتونة | P81: 29 | V81: 29 | W81: ويفر ايليت مغطس بنى 12 *12 | X81: 0 | AN81: 0 | AO81: ويفر ايليت مغطس بنى 12 *12
A82: 79 | B82: 6222000902083 | C82: 9 أشهر | D82: بايتس مربع 6 ع * 50 ق ابيض | E82: كرتونة | V82: 0 | W82: ويفر ايليت مغطس ابيض 12 * 12 | X82: 0 | AN82: 0 | AO82: ويفر ايليت مغطس ابيض 12 * 12
A83: 80 | B83: 6222000913904 | C83: 9 أشهر | D83: بايتس مربع 6 ع * 50 ق فراولة | E83: كرتونة | V83: 0 | W83: ويفر ايليت مغطس فراولة 12*12 | X83: 0 | AN83: 0 | AO83: ويفر ايليت مغطس فراولة 12*12
A84: 81 | B84: 6222000916738 | C84: 9 أشهر | D84: ويفر بوتيك مربع 9 كيس * 500 جم | E84: كرتونة | V84: 0 | W84: ايليت ماكس سادة ش 12 باكو 6 قطع | X84: 263 | AK84: 263 | AN84: 263 | AO84: ايليت ماكس سادة ش 12 باكو 6 قطع
A85: 82 | B85: 002797 | C85: 4 أشهر | D85: كورن عائلي 15 كيس | E85: كرتونة | S85: 211 | V85: =SUM(G85:U85) -> 211 | W85: ايليت ماكس سادة فانيليا 12 باكو * 6 قطع | X85: 0 | AN85: 0 | AO85: ايليت ماكس سادة فانيليا 12 باكو * 6 قطع
A86: 83 | B86: 002796 | C86: 6 أشهر | D86: فاير فنجرز 15 كيس | E86: كرتونة | S86: 254 | V86: 254 | W86: ويفر مربع 3 كيلو ايليت ابيض | X86: 0 | AN86: 0 | AO86: ويفر مربع 3 كيلو ايليت ابيض
A87: 84 | B87: 001766 | C87: 6 أشهر | D87: اسبيشيال أطعم 15 كيس | E87: كرتونة | Q87: 213 | V87: 213 | W87: ويفر مربع 3 كيلو ايليت شيكولاته | X87: 0 | Y87: =IFERROR(IF(OR(INDEX($G$4:$U$94, MATCH(TRIM(CLEAN($W87)), $D$4:$D$94, 0), MATCH(Y$3, $G$3:$U$3, 0))=0, INDEX($G$4:$U$94, MATCH(TRIM(CLEAN($W87)), $D$4:$D$94, 0), MATCH(Y$3, $G$3:$U$3, 0))=""), "", INDEX($G$4:$U$94, MATCH(TRIM(CLEAN($W87)), $D$4:$D$94, 0), MATCH(Y$3, $G$3:$U$3, 0))), "") ->  | AN87: 0 | AO87: ويفر مربع 3 كيلو ايليت شيكولاته
A88: 85 | B88: EG-670026743-3002 | C88: 6 أشهر | D88: شيل أوت شيبس 15 كيس سعر الكيس 10 جنية | E88: كرتونة | Q88: 2 | S88: 187 | V88: 189 | W88: ويفر مربع 3 كيلو ايليت فراوله | X88: 0 | AN88: 0 | AO88: ويفر مربع 3 كيلو ايليت فراوله
A89: 86 | B89: 6224001574221 | C89: سنة | D89: زى كولا مشروب غازى 275 حلى | E89: كرتونة | P89: 254 | S89: 700 | V89: 954 | W89: ويفر مربع 3 كيلو ايليت جوز هند | X89: 0 | AN89: 0 | AO89: ويفر مربع 3 كيلو ايليت جوز هند
A90: 87 | B90: 2798 | C90: 9 أشهر | D90: اهلا بالعيد 8 كيس * 660 جم | E90: كرتونة | V90: 0 | W90: ويفر فرحه 5 كيلو | X90: 36 | AI90: 36 | AN90: 36 | AO90: ويفر فرحه 5 كيلو
A91: 88 | B91: 00695 | C91: سنة | D91: قهوه20كيس*150جرام | E91: كرتونة | V91: 0 | W91: ويفر ايليت مربع بايتس 3 ك بني | X91: 0 | AN91: 0 | AO91: ويفر ايليت مربع بايتس 3 ك بني
A92: 89 | B92: 6222000912518 | C92: سنتان | D92: نعناع 12 ع * 240 ق | E92: كرتونة | V92: 0 | W92: بسكوت اكشن سادة شاي 6 ع * 12 ق | X92: 0 | AN92: 0 | AO92: بسكوت اكشن سادة شاي 6 ع * 12 ق
A93: 90 | B93: 002827 | D93: سولا فواكة فلوباك 10 ك | E93: كرتونة | T93: 55 | V93: 55 | W93: بسكوت اكشن سادة شاي 6 ع * 12 ق ( نباتى ) | X93: 0 | AN93: 0 | AO93: بسكوت اكشن سادة شاي 6 ع * 12 ق ( نباتى )
A94: 91 | V94: 0 | W94: ويفر اكشن مغطس بنى 12ع * 12 ق ( 5 جنية ) | X94: 28 | AH94: 28 | AN94: 28 | AO94: ويفر اكشن مغطس بنى 12ع * 12 ق ( 5 جنية )
A95: 92 | V95: 0 | W95: ويفر اكشن مغطس أبيض 12ع * 12 ق ( 5 جنية ) | X95: 0 | AN95: 0 | AO95: ويفر اكشن مغطس أبيض 12ع * 12 ق ( 5 جنية )
A96: 93 | V96: 0 | W96: ويفر اكشن مغطس أبيض 8ع * 12 ق ( 5 جنية ) | X96: 0 | AN96: 0 | AO96: ويفر اكشن مغطس أبيض 8ع * 12 ق ( 5 جنية )
A97: 94 | V97: 0 | W97: بايتس مربع 6ع * 50ق بنى | X97: 0 | AN97: 0 | AO97: بايتس مربع 6ع * 50ق بنى
A98: 95 | V98: 0 | W98: بايتس مربع 6 ع * 50 ق ابيض | X98: 0 | AN98: 0 | AO98: بايتس مربع 6 ع * 50 ق ابيض
A99: 96 | V99: 0 | W99: ويفر 4 علبه * 50 قطعه ابيض بايتس | X99: 0 | AN99: 0 | AO99: ويفر 4 علبه * 50 قطعه ابيض بايتس
A100: 97 | V100: 0 | W100: ويفر 5 علبه * 50 قطعه ابيض بايتس | X100: 0 | AN100: 0 | AO100: ويفر 5 علبه * 50 قطعه ابيض بايتس
A101: 98 | V101: 0 | W101: ويفر 7 علبه * 50 قطعه ابيض بايتس | X101: 0 | AN101: 0 | AO101: ويفر 7 علبه * 50 قطعه ابيض بايتس
A102: 99 | V102: 0 | W102: بايتس مربع 6 ع * 50 ق فراولة | X102: 0 | AN102: 0 | AO102: بايتس مربع 6 ع * 50 ق فراولة
A103: 100 | V103: 0 | W103: ويفر 4 علبه * 50 قطعه فراولة بايتس | X103: 0 | AN103: 0 | AO103: ويفر 4 علبه * 50 قطعه فراولة بايتس
A104: 101 | V104: 0 | W104: ويفر بوتيك مربع 9 كيس * 500 جم | X104: 0 | Y104: =IFERROR(IF(OR(INDEX($G$4:$U$94, MATCH(TRIM(CLEAN($W104)), $D$4:$D$94, 0), MATCH(Y$3, $G$3:$U$3, 0))=0, INDEX($G$4:$U$94, MATCH(TRIM(CLEAN($W104)), $D$4:$D$94, 0), MATCH(Y$3, $G$3:$U$3, 0))=""), "", INDEX($G$4:$U$94, MATCH(TRIM(CLEAN($W104)), $D$4:$D$94, 0), MATCH(Y$3, $G$3:$U$3, 0))), "") ->  | AN104: 0 | AO104: ويفر بوتيك مربع 9 كيس * 500 جم
A105: 102 | V105: 0 | W105: ايليت عرض خاص | X105: 0 | AN105: 0 | AO105: ايليت عرض خاص
A106: 103 | V106: 0 | W106: اهلا بالعيد 8 كيس * 660 جم | X106: 0 | AN106: 0 | AO106: اهلا بالعيد 8 كيس * 660 جم
A107: 104 | V107: 0 | W107: كورن عائلي 15 كيس | X107: 211 | AK107: 211 | AN107: 211 | AO107: كورن عائلي 15 كيس
A108: 105 | V108: 0 | W108: فاير فنجرز 15 كيس | X108: 254 | AK108: 254 | AN108: 254 | AO108: فاير فنجرز 15 كيس
A109: 106 | V109: 0 | W109: اسبيشيال أطعم 15 كيس | X109: 0 | AN109: 0 | AO109: اسبيشيال أطعم 15 كيس
A110: 107 | V110: 0 | W110: شيل أوت شيبس 15 كيس سعر الكيس 10 جنية | X110: 189 | AI110: 2 | AK110: 187 | AN110: 189 | AO110: شيل أوت شيبس 15 كيس سعر الكيس 10 جنية
V111: 0 | W111: زى كولا مشروب غازى 275 حلى | X111: 954 | AH111: 254 | AK111: 700 | AN111: 954 | AO111: زى كولا مشروب غازى 275 حلى
A112: 108 | V112: 0 | W112: زبدة 12 علبة * 240 ق | X112: 0 | AN112: 0 | AO112: زبدة 12 علبة * 240 ق
A113: الاجمالى | F113: =SUM(F4:F112) -> 0 | G113: 0 | H113: 0 | I113: 0 | J113: 0 | K113: 0 | L113: 0 | M113: 0 | N113: 59 | O113: 6 | P113: 421 | Q113: 416 | R113: 85 | S113: 2723.5 | T113: 1012 | U113: =SUM(U4:U112) -> 405 | V113: =SUM(V4:V111) -> 5127.5 | X113: =SUM(X4:X112) -> 4293.5 | Y113: =SUM(Y4:Y112) -> 0 | Z113: =SUM(Z4:Z112) -> 0 | AA113: 0 | AB113: 0 | AC113: 0 | AD113: 0 | AE113: 0 | AF113: 59 | AG113: 6 | AH113: 392 | AI113: 60 | AJ113: 85 | AK113: 2374.5 | AL113: 912 | AM113: 405 | AN113: =SUM(AN4:AN112) -> 4293.5
AH115: =P113-AH113 -> 29 | AI115: =Q113-AI113 -> 356 | AK115: =S113-AK113 -> 349 | AL115: =T113-AL113 -> 100
V117: =V113-AN113 -> 834

Sheet الرصيد 3 (6)
A1: رصيد توكيل ( توكيل نجع حمادى ) عن يوم ( الخميس 9/13 ) | W1: شيت به معادلات عادية
A2: م | B2: الكود | C2: مدة الصلاحية | D2: الصنف | E2: الوحدة | F2: الرصيد الدفترى بالكرتونة | V2: الرصيد الفعلى بالكرتونة | W2: تنسيق الارقام مع اسم الصنف والتاريخ المقابل لها | AN2: الرصيد الفعلى بالكرتونة
G3: 2024-07-01 | H3: 2024-08-01 | I3: 2024-09-01 | J3: 2024-10-01 | K3: 2024-11-01 | L3: 2024-12-01 | M3: 2025-01-01 | N3: 2025-02-01 | O3: 2025-03-01 | P3: 2025-04-01 | Q3: 2025-05-01 | R3: 2025-06-01 | S3: 2025-07-01 | T3: 2025-08-01 | U3: 2025-09-01 | W3: اسم الصنف | X3: الرصيد | Y3: 2024-07-01 | Z3: 2024-08-01 | AA3: 2024-09-01 | AB3: 2024-10-01 | AC3: 2024-11-01 | AD3: 2024-12-01 | AE3: 2025-01-01 | AF3: 2025-02-01 | AG3: 2025-03-01 | AH3: 2025-04-01 | AI3: 2025-05-01 | AJ3: 2025-06-01 | AK3: 2025-07-01 | AL3: 2025-08-01 | AM3: 2025-09-01 | AO3: =IFERROR(IF(INDEX($G$4:$U$94,MATCH(SUBSTITUTE(TRIM($W4),CHAR(160)," "),SUBSTITUTE(TRIM($D$4:$D$94),CHAR(160)," "),0),MATCH(Y$3,$G$3:$U$3,0))=0,"",INDEX($G$4:$U$94,MATCH(SUBSTITUTE(TRIM($W4),CHAR(160)," "),SUBSTITUTE(TRIM($D$4:$D$94),CHAR(160)," "),0),MATCH(Y$3,$G$3:$U$3,0))),"") -> 
A4: 1 | B4: 6222000901529 | C4: سنتان | D4: سوبر فينا 10 كيلو | E4: كرتونة | S4: 52 | T4: 50 | U4: 100 | V4: =SUM(G4:U4) -> 202 | W4: سوبر فينا 10 كيلو | X4: =AN4 -> 202 | Y4: =IFERROR(IF(OR(INDEX($G$4:$U$94, MATCH(TRIM(CLEAN($W4)), $D$4:$D$94, 0), MATCH(Y$3, $G$3:$U$3, 0))=0, INDEX($G$4:$U$94, MATCH(TRIM(CLEAN($W4)), $D$4:$D$94, 0), MATCH(Y$3, $G$3:$U$3, 0))=""), "", INDEX($G$4:$U$94, MATCH(TRIM(CLEAN($W4)), $D$4:$D$94, 0), MATCH(Y$3, $G$3:$U$3, 0))), "") ->  | Z4: =IFERROR(IF(OR(INDEX($G$4:$U$94, MATCH(TRIM(CLEAN($W4)), $D$4:$D$94, 0), MATCH(Z$3, $G$3:$U$3, 0))=0, INDEX($G$4:$U$94, MATCH(TRIM(CLEAN($W4)), $D$4:$D$94, 0), MATCH(Z$3, $G$3:$U$3, 0))=""), "", INDEX($G$4:$U$94, MATCH(TRIM(CLEAN($W4)), $D$4:$D$94, 0), MATCH(Z$3, $G$3:$U$3, 0))), "") ->  | AK4: 52 | AL4: 50 | AM4: 100 | AN4: =SUM(Y4:AM4) -> 202 | AO4: =TRIM(CLEAN(SUBSTITUTE(SUBSTITUTE(SUBSTITUTE(W4,CHAR(10),""),CHAR(13),""),CHAR(9),""))) -> سوبر فينا 10 كيلو
A5: 2 | B5: 6222000901536 | C5: سنتان | D5: سوبر فينا 10 كيلو نعناع | E5: كرتونة | S5: 24 | U5: 155 | V5: =SUM(G5:U5) -> 179 | W5: سولا فواكة فلوباك 10 ك | X5: =AN5 -> 55 | Y5: =IFERROR(IF(OR(INDEX($G$4:$U$94, MATCH(TRIM(CLEAN($W5)), $D$4:$D$94, 0), MATCH(Y$3, $G$3:$U$3, 0))=0, INDEX($G$4:$U$94, MATCH(TRIM(CLEAN($W5)), $D$4:$D$94, 0), MATCH(Y$3, $G$3:$U$3, 0))=""), "", INDEX($G$4:$U$94, MATCH(TRIM(CLEAN($W5)), $D$4:$D$94, 0), MATCH(Y$3, $G$3:$U$3, 0))), "") ->  | AL5: 55 | AN5: =SUM(Y5:AM5) -> 55 | AO5: =TRIM(CLEAN(SUBSTITUTE(SUBSTITUTE(SUBSTITUTE(W5,CHAR(10),""),CHAR(13),""),CHAR(9),""))) -> سولا فواكة فلوباك 10 ك
A6: 3 | B6: 6222000911733 | C6: سنتان | D6: نعناع 12كيس 50 ق 4جم | E6: كرتونة | T6: 3 | V6: 3 | W6: سولا فواكة 5 ك | X6: 0 | AN6: 0 | AO6: سولا فواكة 5 ك
A7: 4 | B7: 6222000911764 | C7: سنتان | D7: سولا فواكه 12 كيس * 50 ق | E7: كرتونة | V7: 0 | W7: سولا فواكه 30 كيس * 28 ق | X7: 0 | AN7: 0 | AO7: سولا فواكه 30 كيس * 28 ق
A8: 5 | B8: 6222000917773 | C8: سنتان | D8: سولا فواكه 30 كيس * 28 ق | E8: كرتونة | V8: 0 | W8: سولا فواكه 12 كيس * 50 ق | X8: 0 | AN8: 0 | AO8: سولا فواكه 12 كيس * 50 ق
A9: 6 | B9: 6222000917780 | C9: سنتان | D9: سولا فواكه 12 كيس * 100 ق | E9: كرتونة | T9: 104 | V9: 104 | W9: سولا فواكه 12 كيس * 100 ق | X9: 104 | AL9: 104 | AN9: 104 | AO9: سولا فواكه 12 كيس * 100 ق
A10: 7 | B10: 6222000916295 | C10: سنتان | D10: سولا فواكة 6 كيس * 800 جم | E10: كرتونة | V10: 0 | W10: سولا ف 12 ع * 200 ق | X10: 0 | AN10: 0 | AO10: سولا ف 12 ع * 200 ق
A11: 8 | B11: 6222000912525 | C11: سنتان | D11: سولا ف 12 ع * 200 ق | E11: كرتونة | V11: 0 | W11: سولا ف 12 ع * 240 ق | X11: 0 | AN11: 0 | AO11: سولا ف 12 ع * 240 ق
A12: 9 | B12: 6222000912518 | C12: سنتان | D12: سولا نعناع 12 ع * 200 ق | E12: كرتونة | Q12: 22 | V12: 22 | W12: سولا فواكة 6 كيس * 800 جم | X12: 0 | AN12: 0 | AO12: سولا فواكة 6 كيس * 800 جم
A13: 10 | B13: 6222000912525 | C13: سنتان | D13: سولا ف 12 ع * 240 ق | E13: كرتونة | V13: 0 | W13: سوبر فينا 10 كيلو نعناع | X13: 179 | AK13: 24 | AM13: 155 | AN13: 179 | AO13: سوبر فينا 10 كيلو نعناع
A14: 11 | B14: 6222000908566 | C14: سنتان | D14: سولا فواكة 5 ك | E14: كرتونة | V14: 0 | W14: سولا نعناع فلوباك 10 ك | X14: 0 | AN14: 0 | AO14: سولا نعناع فلوباك 10 ك
A15: 12 | B15: 6222000908573 | C15: سنتان | D15: سولا نعناع 5 ك | E15: كرتونة | N15: 59 | V15: 59 | W15: سولا نعناع 5 ك | X15: 59 | AF15: 59 | AN15: 59 | AO15: سولا نعناع 5 ك
A16: 13 | B16: 00743 | C16: سنة | D16: قهوة 12 ع * 200 ق | E16: كرتونة | V16: 0 | W16: سولا نعناع 30 كيس * 28 ق | X16: 0 | AN16: 0 | AO16: سولا نعناع 30 كيس * 28 ق
A17: 14 | B17: 6222000917452 | C17: سنة | D17: قهوة 12 ع * 240 ق | E17: كرتونة | T17: 27 | V17: 27 | W17: نعناع 12كيس 50 ق 4جم | X17: 3 | AL17: 3 | AN17: 3 | AO17: نعناع 12كيس 50 ق 4جم
A18: 15 | B18: 6222000901758 | C18: سنة | D18: سولا قهوه 10 كيلو | E18: كرتونة | S18: 15.5 | T18: 50 | V18: 65.5 | W18: سولا نعناع 12 كيس * 100 ق | X18: 0 | AN18: 0 | AO18: سولا نعناع 12 كيس * 100 ق
A19: 16 | B19: 6222000912020 | C19: سنة | D19: قهوة 5 ك | E19: كرتونة | V19: 0 | W19: سولا نعناع 12 ع * 200 ق | X19: 22 | AI19: 22 | AN19: 22 | AO19: سولا نعناع 12 ع * 200 ق
A20: 17 | B20: 6222000909815 | C20: سنة | D20: قهوة 12 كيس * 80 ق / 90 ق | E20: كرتونة | R20: 85 | T20: 65 | V20: 150 | W20: نعناع 12 ع * 240 ق | X20: 0 | AN20: 0 | AO20: نعناع 12 ع * 240 ق
A21: 18 | B21: 6222000908610 | C21: سنة | D21: قهوة 30 كيس * 18 ق / 25 ق | E21: كرتونة | V21: 0 | W21: سولا قهوه 10 كيلو | X21: 65.5 | AK21: 15.5 | AL21: 50 | AN21: 65.5 | AO21: سولا قهوه 10 كيلو
A22: 19 | B22: 6222000909891 | C22: سنة | D22: قهوة 30 كيس * 12قطعه | E22: كرتونة | V22: 0 | W22: قهوة 5 ك | X22: 0 | AN22: 0 | AO22: قهوة 5 ك
A23: 20 | B23: 00744 | C23: سنة | D23: زبدة 12 ع * 200 ق | E23: كرتونة | S23: 64 | V23: 64 | W23: قهوة 30 كيس * 12قطعه | X23: 0 | AN23: 0 | AO23: قهوة 30 كيس * 12قطعه
A24: 21 | B24: 6222000901642 | C24: سنة | D24: سولا زبده 10 كيلو | E24: كرتونة | T24: 18 | V24: 18 | W24: قهوة 30 كيس * 15قطعه | X24: 0 | AN24: 0 | AO24: قهوة 30 كيس * 15قطعه
A25: 22 | B25: 6222000912037 | C25: سنة | D25: زبدة 5 ك | E25: كرتونة | V25: 0 | W25: قهوة 30 كيس * 18 ق / 25 ق | X25: 0 | AN25: 0 | AO25: قهوة 30 كيس * 18 ق / 25 ق
A26: 23 | B26: 6222000917124 | C26: سنة | D26: زبدة بالشيكولاته 12 علبة * 240 ق | E26: كرتونة | T26: 64 | V26: 64 | W26: قهوة 12 كيس * 55 ق | X26: 0 | AN26: 0 | AO26: قهوة 12 كيس * 55 ق
A27: 24 | B27: 6222000918732 | C27: سنة | D27: زبدة بالشيكولاته 10 ك | E27: كرتونة | T27: 34 | V27: 34 | W27: قهوة 12 كيس * 80 ق / 90 ق | X27: 150 | AJ27: 85 | AL27: 65 | AN27: 150 | AO27: قهوة 12 كيس * 80 ق / 90 ق
A28: 25 | B28: 6222000909808 | C28: سنة | D28: زبدة 12 كيس * 80 ق / 90 ق | E28: كرتونة | V28: 0 | W28: قهوة 12 كيس * 120 ق | X28: 0 | AN28: 0 | AO28: قهوة 12 كيس * 120 ق
A29: 26 | B29: 6222000907583 | C29: سنة | D29: زبدة 30 كيس * 18 ق / 25 ق | E29: كرتونة | P29: 110 | V29: 110 | W29: قهوة 12 ع * 200 ق | X29: 0 | AN29: 0 | AO29: قهوة 12 ع * 200 ق
A30: 27 | B30: 6222000909884 | C30: سنة | D30: زبدة 30 كيس * 12قطعه | E30: كرتونة | S30: 61 | T30: 48 | V30: 109 | W30: قهوة 12 ع * 240 ق | X30: 27 | AL30: 27 | AN30: 27 | AO30: قهوة 12 ع * 240 ق
A31: 28 | B31: 6222000909884 | C31: سنة | D31: زبدة 30 كيس * 15 قطعه | E31: كرتونة | V31: 0 | W31: قهوه20كيس*150جرام | X31: 0 | AN31: 0 | AO31: قهوه20كيس*150جرام
A32: 29 | B32: 6222000905688 | C32: سنة | D32: زبدة 12 كيس * 55 قطعه | E32: كرتونة | V32: 0 | W32: سولا زبده 10 كيلو | X32: 18 | AL32: 18 | AN32: 18 | AO32: سولا زبده 10 كيلو
A33: 30 | B33: 171 | C33: سنة | D33: زبدة 12 كيس * 120 ق | E33: كرتونة | S33: 41 | U33: 45 | V33: 86 | W33: زبدة 5 ك | X33: 0 | AN33: 0 | AO33: زبدة 5 ك
A34: 31 | B34: 6222000910064 | C34: سنة | D34: زبدة 10 شنطة * 800 جم | E34: كرتونة | V34: 0 | W34: زبدة 30 كيس * 12قطعه | X34: 109 | AK34: 61 | AL34: 48 | AN34: 109 | AO34: زبدة 30 كيس * 12قطعه
A35: 32 | B35: 6222000912501 | C35: 9 أشهر | D35: عسلية 12 ع * 200 ق | E35: كرتونة | V35: 0 | W35: زبدة 30 كيس * 15 قطعه | X35: 0 | AN35: 0 | AO35: زبدة 30 كيس * 15 قطعه
A36: 33 | B36: 6222000912457 | C36: 9 أشهر | D36: عسلية 5 ك | E36: كرتونة | V36: 0 | W36: زبدة 30 كيس * 18 ق / 25 ق | X36: 110 | Y36: =IFERROR(IF(OR(INDEX($G$4:$U$94, MATCH(TRIM(CLEAN($W36)), $D$4:$D$94, 0), MATCH(Y$3, $G$3:$U$3, 0))=0, INDEX($G$4:$U$94, MATCH(TRIM(CLEAN($W36)), $D$4:$D$94, 0), MATCH(Y$3, $G$3:$U$3, 0))=""), "", INDEX($G$4:$U$94, MATCH(TRIM(CLEAN($W36)), $D$4:$D$94, 0), MATCH(Y$3, $G$3:$U$3, 0))), "") ->  | AH36: 110 | AN36: 110 | AO36: زبدة 30 كيس * 18 ق / 25 ق
A37: 34 | B37: 6222000901611 | C37: سنة | D37: اكلير سايب 10 كيلو | E37: كرتونة | S37: 43 | T37: 55 | V37: 98 | W37: زبدة 12 كيس * 55 قطعه | X37: 0 | AN37: 0 | AO37: زبدة 12 كيس * 55 قطعه
A38: 35 | B38: 6222000909907 | C38: سنة | D38: اكلير 30 كيس * 9 ق / 10 ق | E38: كرتونة | S38: 134 | V38: 134 | W38: زبدة 12 كيس * 80 ق / 90 ق | X38: 0 | AN38: 0 | AO38: زبدة 12 كيس * 80 ق / 90 ق
A39: 36 | B39: 6222000909907 | C39: سنة | D39: اكلير 30 كيس * 12 قطعه | E39: كرتونة | V39: 0 | W39: زبدة 12 كيس * 120 ق | X39: 86 | AK39: 41 | AM39: 45 | AN39: 86 | AO39: زبدة 12 كيس * 120 ق
A40: 37 | B40: 6222000911498 | C40: سنة | D40: اكلير سولا 5 كيلو | E40: كرتونة | V40: 0 | W40: زبدة 12 ع * 200 ق | X40: 64 | AK40: 64 | AN40: 64 | AO40: زبدة 12 ع * 200 ق
A41: 38 | B41: 6222000912778 | C41: سنة | D41: اكلير 12كيس * 65 ق / 70 ق | E41: كرتونة | V41: 0 | W41: زبدة 10 شنطة * 800 جم | X41: 0 | AN41: 0 | AO41: زبدة 10 شنطة * 800 جم
A42: 39 | B42: 6222000912778 | C42: سنة | D42: اكلير 12 كيس * 100 قطعة | E42: كرتونة | S42: 137 | V42: 137 | W42: زبدة بالشيكولاته 10 ك | X42: 34 | AL42: 34 | AN42: 34 | AO42: زبدة بالشيكولاته 10 ك
A43: 40 | B43: 6222000912822 | C43: سنة | D43: اكلير 30 كيس * 15 ق / 20 ق | E43: كرتونة | V43: 0 | W43: زبدة بالشيكولاته 30 كيس * 15 قطعه | X43: 0 | AN43: 0 | AO43: زبدة بالشيكولاته 30 كيس * 15 قطعه
A44: 41 | B44: 6222000905701 | C44: سنة | D44: اكلير 12كيس 45 ق | E44: كرتونة | S44: 220 | V44: 220 | W44: زبدة بالشيكولاته 12 كيس * 55 قطعه | X44: 0 | AN44: 0 | AO44: زبدة بالشيكولاته 12 كيس * 55 قطعه
A45: 42 | B45: 6222000912532 | C45: سنة | D45: اكلير 12 علبة * 160 ق | E45: كرتونة | V45: 0 | W45: زبدة بالشيكولاته 12 كيس * 120 ق | X45: 0 | AN45: 0 | AO45: زبدة بالشيكولاته 12 كيس * 120 ق
A46: 43 | B46: 6222000912532 | C46: سنة | D46: اكلير 12 علبة 200 ق | E46: كرتونة | S46: 35 | V46: 35 | W46: زبدة بالشيكولاته 12 علبة * 240 ق | X46: 64 | AL46: 64 | AN46: 64 | AO46: زبدة بالشيكولاته 12 علبة * 240 ق
A47: 44 | B47: 6222000901697 | C47: سنة | D47: طوفي 10 كجم | E47: كرتونة | S47: 38 | T47: 46 | U47: 55 | V47: 139 | W47: عسلية 5 ك | X47: 0 | AN47: 0 | AO47: عسلية 5 ك
A48: 45 | B48: 6222000911481 | C48: سنة | D48: طوفي بردايس 5كيلو | E48: كرتونة | V48: 0 | W48: عسلية 12 ع * 200 ق | X48: 0 | AN48: 0 | AO48: عسلية 12 ع * 200 ق
A49: 46 | B49: 6222000908276 | C49: سنة | D49: طوفي 30 كيس * 25 قطعه | E49: كرتونة | V49: 0 | W49: اكلير سايب 10 كيلو | X49: 98 | AK49: 43 | AL49: 55 | AN49: 98 | AO49: اكلير سايب 10 كيلو
A50: 47 | B50: 6222000908276 | C50: سنة | D50: طوفى 30 كيس * 28 ق | E50: كرتونة | T50: 100 | V50: 100 | W50: اكلير 30 كيس * 9 ق / 10 ق | X50: 0 | AN50: 0 | AO50: اكلير 30 كيس * 9 ق / 10 ق
A51: 48 | B51: 6222000909921 | C51: سنة | D51: طوفي 30 كيس * 12قطعه | E51: كرتونة | V51: 0 | W51: اكلير 30 كيس * 12 قطعه | X51: 0 | AN51: 0 | AO51: اكلير 30 كيس * 12 قطعه
A52: 49 | B52: 6222000909839 | C52: سنة | D52: طوفي 12 كيس * 90 ق | E52: كرتونة | T52: 11 | V52: 11 | W52: اكلير 30 كيس * 15 ق / 20 ق | X52: 0 | AN52: 0 | AO52: اكلير 30 كيس * 15 ق / 20 ق
A53: 50 | B53: 6222000905718 | C53: سنة | D53: طوفى 12كيس * 100 ق | E53: كرتونة | T53: 97 | V53: 97 | W53: اكلير 12كيس 45 ق | X53: 220 | Y53: =IFERROR(IF(OR(INDEX($G$4:$U$94, MATCH(TRIM(CLEAN($W53)), $D$4:$D$94, 0), MATCH(Y$3, $G$3:$U$3, 0))=0, INDEX($G$4:$U$94, MATCH(TRIM(CLEAN($W53)), $D$4:$D$94, 0), MATCH(Y$3, $G$3:$U$3, 0))=""), "", INDEX($G$4:$U$94, MATCH(TRIM(CLEAN($W53)), $D$4:$D$94, 0), MATCH(Y$3, $G$3:$U$3, 0))), "") ->  | AK53: 220 | AN53: 220 | AO53: اكلير 12كيس 45 ق
A54: 51 | B54: 6222000908825 | C54: سنة | D54: طوفى 12 ع * 200 ق | E54: كرتونة | V54: 0 | W54: اكلير 12كيس * 65 ق / 70 ق | X54: 0 | AN54: 0 | AO54: اكلير 12كيس * 65 ق / 70 ق
A55: 52 | B55: 6222000912556 | C55: سنة | D55: طوفي 12 علبه * 240 ق | E55: كرتونة | S55: 29 | T55: 45 | V55: 74 | W55: اكلير 12 كيس * 100 قطعة | X55: 137 | AK55: 137 | AN55: 137 | AO55: اكلير 12 كيس * 100 قطعة
A56: 53 | B56: 6222000907637 | C56: سنة | D56: شيكولاته بوتيك 16 علبه * 50 قطعة | E56: كرتونة | O56: 6 | V56: 6 | W56: اكلير 12 علبة * 160 ق | X56: 0 | AN56: 0 | AO56: اكلير 12 علبة * 160 ق
A57: 54 | B57: 6222000903295 | C57: سنة | D57: شيكولاته بوتيك 6 علبه * 1.25 كيلو | E57: كرتونة | V57: 0 | W57: اكلير 12 علبة 200 ق | X57: 35 | AK57: 35 | AN57: 35 | AO57: اكلير 12 علبة 200 ق
A58: 55 | B58: 6222000912006 | C58: سنة | D58: شيكولاته بوتيك حليب 4 ك | E58: كرتونة | V58: 0 | W58: طوفي 10 كجم | X58: 139 | AK58: 38 | AL58: 46 | AM58: 55 | AN58: 139 | AO58: طوفي 10 كجم
A59: 56 | B59: 6222000911993 | C59: سنة | D59: شيكولاته بوتيك كراميل 4 ك | E59: كرتونة | V59: 0 | W59: طوفي 30 كيس * 12قطعه | X59: 0 | AN59: 0 | AO59: طوفي 30 كيس * 12قطعه
A60: 57 | B60: 6222000912013 | C60: سنة | D60: شيكولاته بوتيك بندق 4 ك | E60: كرتونة | V60: 0 | W60: طوفي 30 كيس * 25 قطعه | X60: 0 | AN60: 0 | AO60: طوفي 30 كيس * 25 قطعه
A61: 58 | B61: 6222000964197 | C61: سنة | D61: شيكوهند سايب 10 كجم | E61: كرتونة | V61: 0 | W61: طوفى 30 كيس * 28 ق | X61: 100 | AL61: 100 | AN61: 100 | AO61: طوفى 30 كيس * 28 ق
A62: 59 | B62: 6222000906630 | C62: سنة | D62: سوفت شيكوهند 5 ك | E62: كرتونة | T62: 40 | V62: 40 | W62: طوفي 12 كيس * 90 ق | X62: 11 | AL62: 11 | AN62: 11 | AO62: طوفي 12 كيس * 90 ق
A63: 60 | B63: 6222000612549 | C63: سنة | D63: شيكوهند سوفت 12 ع * 100 ق | E63: كرتونة | V63: 0 | W63: طوفى 12كيس * 100 ق | X63: 97 | AL63: 97 | AN63: 97 | AO63: طوفى 12كيس * 100 ق
A64: 61 | B64: 6222000915243 | C64: سنة | D64: بار شيكوهند 3 ك | E64: كرتونة | U64: 50 | V64: 50 | W64: طوفى 12 ع * 200 ق | X64: 0 | AN64: 0 | AO64: طوفى 12 ع * 200 ق
A65: 62 | B65: 6222000902519 | C65: 9 أشهر | D65: ويفر ايليت مغطس بنى 12 *12 | E65: كرتونة | V65: 0 | W65: طوفي 12 علبه * 240 ق | X65: 74 | AK65: 29 | AL65: 45 | AN65: 74 | AO65: طوفي 12 علبه * 240 ق
A66: 63 | B66: 6222000902557 | C66: 9 أشهر | D66: ويفر ايليت مغطس ابيض 12 * 12 | E66: كرتونة | V66: 0 | W66: طوفي شيكولاته 12 كيس * 25 ق | X66: 0 | AN66: 0 | AO66: طوفي شيكولاته 12 كيس * 25 ق
A67: 64 | B67: 6222000902564 | C67: 9 أشهر | D67: ويفر ايليت مغطس فراولة 12*12 | E67: كرتونة | V67: 0 | W67: طوفي شيكولاته 12 علبة * 100 ق | X67: 0 | AN67: 0 | AO67: طوفي شيكولاته 12 علبة * 100 ق
A68: 65 | B68: 6222000910200 | C68: 9 أشهر | D68: ايليت ماكس سادة ش 12 باكو 6 قطع | E68: كرتونة | S68: 263 | V68: 263 | W68: طوفي زبدة 12 كيس * 25 ق | X68: 0 | AN68: 0 | AO68: طوفي زبدة 12 كيس * 25 ق
A69: 66 | B69: 6222000910514 | C69: 9 أشهر | D69: ايليت ماكس سادة فانيليا 12 باكو * 6 قطع | E69: كرتونة | S69: 215 | V69: =SUM(G69:U69) -> 215 | W69: طوفي زبدة 12 علبة * 100 ق | X69: =AN69 -> 0 | AN69: =SUM(Y69:AM69) -> 0 | AO69: =TRIM(CLEAN(SUBSTITUTE(SUBSTITUTE(SUBSTITUTE(W69,CHAR(10),""),CHAR(13),""),CHAR(9),""))) -> طوفي زبدة 12 علبة * 100 ق
A70: 67 | B70: 6222000909976 | C70: 9 أشهر | D70: ويفر مربع 3 كيلو ايليت ابيض | E70: كرتونة | Q70: 74 | T70: 50 | V70: 124 | W70: شيكولاته بوتيك 16 علبه * 50 قطعة | X70: 6 | Y70: =IFERROR(IF(OR(INDEX($G$4:$U$94, MATCH(TRIM(CLEAN($W70)), $D$4:$D$94, 0), MATCH(Y$3, $G$3:$U$3, 0))=0, INDEX($G$4:$U$94, MATCH(TRIM(CLEAN($W70)), $D$4:$D$94, 0), MATCH(Y$3, $G$3:$U$3, 0))=""), "", INDEX($G$4:$U$94, MATCH(TRIM(CLEAN($W70)), $D$4:$D$94, 0), MATCH(Y$3, $G$3:$U$3, 0))), "") ->  | AG70: 6 | AN70: 6 | AO70: شيكولاته بوتيك 16 علبه * 50 قطعة
A71: 68 | B71: 6222000909983 | C71: 9 أشهر | D71: ويفر مربع 3 كيلو ايليت شيكولاته | E71: كرتونة | V71: 0 | W71: شيكولاته بوتيك 6 علبه * 1.25 كيلو | X71: 0 | AN71: 0 | AO71: شيكولاته بوتيك 6 علبه * 1.25 كيلو
A72: 69 | B72: 6222000909969 | C72: 9 أشهر | D72: ويفر مربع 3 كيلو ايليت فراوله | E72: كرتونة | Q72: 69 | T72: 50 | V72: 119 | W72: شيكولاته بوتيك حليب 4 ك | X72: 0 | AN72: 0 | AO72: شيكولاته بوتيك حليب 4 ك
A73: 70 | B73: 6888000909953 | C73: 9 أشهر | D73: ويفر مربع 3 كيلو ايليت جوز هند | E73: كرتونة | V73: 0 | W73: شيكولاته بوتيك كراميل 4 ك | X73: 0 | AN73: 0 | AO73: شيكولاته بوتيك كراميل 4 ك
A74: 71 | B74: 622200097116 | C74: 9 أشهر | D74: ويفر فرحه 5 كيلو | E74: كرتونة | Q74: 36 | V74: 36 | W74: شيكولاته بوتيك بندق 4 ك | X74: 0 | AN74: 0 | AO74: شيكولاته بوتيك بندق 4 ك
A75: 72 | B75: 6222000912372 | C75: 9 أشهر | D75: ويفر ايليت مربع بايتس 3 ك بني | E75: كرتونة | V75: 0 | W75: شيكوهند سايب 10 كجم | X75: 0 | AN75: 0 | AO75: شيكوهند سايب 10 كجم
A76: 73 | B76: 6222000912488 | C76: 9 أشهر | D76: بسكوت اكشن سادة شاي 6 ع * 12 ق | E76: كرتونة | V76: 0 | W76: سوفت شيكوهند 5 ك | X76: 40 | AL76: 40 | AN76: 40 | AO76: سوفت شيكوهند 5 ك
A77: 74 | B77: 6222000914383 | C77: 9 أشهر | D77: بسكوت اكشن سادة شاي 6 ع * 12 ق ( نباتى ) | E77: كرتونة | V77: 0 | W77: شيكوهند سوفت 12 كيس * 28 ق | X77: 0 | AN77: 0 | AO77: شيكوهند سوفت 12 كيس * 28 ق
A78: 75 | B78: 6222000916165 | C78: 9 أشهر | D78: ويفر اكشن مغطس بنى 12ع * 12 ق ( 5 جنية ) | E78: كرتونة | P78: 28 | V78: 28 | W78: شيكوهند سوفت 12 كيس * 60 ق | X78: 0 | AN78: 0 | AO78: شيكوهند سوفت 12 كيس * 60 ق
A79: 76 | B79: 6222000916172 | C79: 9 أشهر | D79: ويفر اكشن مغطس أبيض 12ع * 12 ق ( 5 جنية ) | E79: كرتونة | V79: 0 | W79: شيكوهند سوفت 12 ع * 100 ق | X79: 0 | AN79: 0 | AO79: شيكوهند سوفت 12 ع * 100 ق
A80: 77 | B80: 2810 | C80: 9 أشهر | D80: ويفر اكشن مغطس أبيض 8ع * 12 ق ( 5 جنية ) | E80: كرتونة | V80: 0 | W80: بار شيكوهند 3 ك | X80: 50 | AM80: 50 | AN80: 50 | AO80: بار شيكوهند 3 ك
A81: 78 | B81: 6222000912365 | C81: 9 أشهر | D81: بايتس مربع 6ع * 50ق بنى | E81: كرتونة | P81: 29 | V81: 29 | W81: ويفر ايليت مغطس بنى 12 *12 | X81: 0 | AN81: 0 | AO81: ويفر ايليت مغطس بنى 12 *12
A82: 79 | B82: 6222000902083 | C82: 9 أشهر | D82: بايتس مربع 6 ع * 50 ق ابيض | E82: كرتونة | V82: 0 | W82: ويفر ايليت مغطس ابيض 12 * 12 | X82: 0 | AN82: 0 | AO82: ويفر ايليت مغطس ابيض 12 * 12
A83: 80 | B83: 6222000913904 | C83: 9 أشهر | D83: بايتس مربع 6 ع * 50 ق فراولة | E83: كرتونة | V83: 0 | W83: ويفر ايليت مغطس فراولة 12*12 | X83: 0 | AN83: 0 | AO83: ويفر ايليت مغطس فراولة 12*12
A84: 81 | B84: 6222000916738 | C84: 9 أشهر | D84: ويفر بوتيك مربع 9 كيس * 500 جم | E84: كرتونة | V84: 0 | W84: ايليت ماكس سادة ش 12 باكو 6 قطع | X84: 263 | AK84: 263 | AN84: 263 | AO84: ايليت ماكس سادة ش 12 باكو 6 قطع
A85: 82 | B85: 002797 | C85: 4 أشهر | D85: كورن عائلي 15 كيس | E85: كرتونة | S85: 211 | V85: =SUM(G85:U85) -> 211 | W85: ايليت ماكس سادة فانيليا 12 باكو * 6 قطع | X85: 0 | AN85: 0 | AO85: ايليت ماكس سادة فانيليا 12 باكو * 6 قطع
A86: 83 | B86: 002796 | C86: 6 أشهر | D86: فاير فنجرز 15 كيس | E86: كرتونة | S86: 254 | V86: 254 | W86: ويفر مربع 3 كيلو ايليت ابيض | X86: 0 | AN86: 0 | AO86: ويفر مربع 3 كيلو ايليت ابيض
A87: 84 | B87: 001766 | C87: 6 أشهر | D87: اسبيشيال أطعم 15 كيس | E87: كرتونة | Q87: 213 | V87: 213 | W87: ويفر مربع 3 كيلو ايليت شيكولاته | X87: 0 | Y87: =IFERROR(IF(OR(INDEX($G$4:$U$94, MATCH(TRIM(CLEAN($W87)), $D$4:$D$94, 0), MATCH(Y$3, $G$3:$U$3, 0))=0, INDEX($G$4:$U$94, MATCH(TRIM(CLEAN($W87)), $D$4:$D$94, 0), MATCH(Y$3, $G$3:$U$3, 0))=""), "", INDEX($G$4:$U$94, MATCH(TRIM(CLEAN($W87)), $D$4:$D$94, 0), MATCH(Y$3, $G$3:$U$3, 0))), "") ->  | AN87: 0 | AO87: ويفر مربع 3 كيلو ايليت شيكولاته
A88: 85 | B88: EG-670026743-3002 | C88: 6 أشهر | D88: شيل أوت شيبس 15 كيس سعر الكيس 10 جنية | E88: كرتونة | Q88: 2 | S88: 187 | V88: 189 | W88: ويفر مربع 3 كيلو ايليت فراوله | X88: 0 | AN88: 0 | AO88: ويفر مربع 3 كيلو ايليت فراوله
A89: 86 | B89: 6224001574221 | C89: سنة | D89: زى كولا مشروب غازى 275 حلى | E89: كرتونة | P89: 254 | S89: 700 | V89: 954 | W89: ويفر مربع 3 كيلو ايليت جوز هند | X89: 0 | AN89: 0 | AO89: ويفر مربع 3 كيلو ايليت جوز هند
A90: 87 | B90: 2798 | C90: 9 أشهر | D90: اهلا بالعيد 8 كيس * 660 جم | E90: كرتونة | V90: 0 | W90: ويفر فرحه 5 كيلو | X90: 36 | AI90: 36 | AN90: 36 | AO90: ويفر فرحه 5 كيلو
A91: 88 | B91: 00695 | C91: سنة | D91: قهوه20كيس*150جرام | E91: كرتونة | V91: 0 | W91: ويفر ايليت مربع بايتس 3 ك بني | X91: 0 | AN91: 0 | AO91: ويفر ايليت مربع بايتس 3 ك بني
A92: 89 | B92: 6222000912518 | C92: سنتان | D92: نعناع 12 ع * 240 ق | E92: كرتونة | V92: 0 | W92: بسكوت اكشن سادة شاي 6 ع * 12 ق | X92: 0 | AN92: 0 | AO92: بسكوت اكشن سادة شاي 6 ع * 12 ق
A93: 90 | B93: 002827 | D93: سولا فواكة فلوباك 10 ك | E93: كرتونة | T93: 55 | V93: 55 | W93: بسكوت اكشن سادة شاي 6 ع * 12 ق ( نباتى ) | X93: 0 | AN93: 0 | AO93: بسكوت اكشن سادة شاي 6 ع * 12 ق ( نباتى )
A94: 91 | V94: 0 | W94: ويفر اكشن مغطس بنى 12ع * 12 ق ( 5 جنية ) | X94: 28 | AH94: 28 | AN94: 28 | AO94: ويفر اكشن مغطس بنى 12ع * 12 ق ( 5 جنية )
A95: 92 | V95: 0 | W95: ويفر اكشن مغطس أبيض 12ع * 12 ق ( 5 جنية ) | X95: 0 | AN95: 0 | AO95: ويفر اكشن مغطس أبيض 12ع * 12 ق ( 5 جنية )
A96: 93 | V96: 0 | W96: ويفر اكشن مغطس أبيض 8ع * 12 ق ( 5 جنية ) | X96: 0 | AN96: 0 | AO96: ويفر اكشن مغطس أبيض 8ع * 12 ق ( 5 جنية )
A97: 94 | V97: 0 | W97: بايتس مربع 6ع * 50ق بنى | X97: 0 | AN97: 0 | AO97: بايتس مربع 6ع * 50ق بنى
A98: 95 | V98: 0 | W98: بايتس مربع 6 ع * 50 ق ابيض | X98: 0 | AN98: 0 | AO98: بايتس مربع 6 ع * 50 ق ابيض
A99: 96 | V99: 0 | W99: ويفر 4 علبه * 50 قطعه ابيض بايتس | X99: 0 | AN99: 0 | AO99: ويفر 4 علبه * 50 قطعه ابيض بايتس
A100: 97 | V100: 0 | W100: ويفر 5 علبه * 50 قطعه ابيض بايتس | X100: 0 | AN100: 0 | AO100: ويفر 5 علبه * 50 قطعه ابيض بايتس
A101: 98 | V101: 0 | W101: ويفر 7 علبه * 50 قطعه ابيض بايتس | X101: 0 | AN101: 0 | AO101: ويفر 7 علبه * 50 قطعه ابيض بايتس
A102: 99 | V102: 0 | W102: بايتس مربع 6 ع * 50 ق فراولة | X102: 0 | AN102: 0 | AO102: بايتس مربع 6 ع * 50 ق فراولة
A103: 100 | V103: 0 | W103: ويفر 4 علبه * 50 قطعه فراولة بايتس | X103: 0 | AN103: 0 | AO103: ويفر 4 علبه * 50 قطعه فراولة بايتس
A104: 101 | V104: 0 | W104: ويفر بوتيك مربع 9 كيس * 500 جم | X104: 0 | Y104: =IFERROR(IF(OR(INDEX($G$4:$U$94, MATCH(TRIM(CLEAN($W104)), $D$4:$D$94, 0), MATCH(Y$3, $G$3:$U$3, 0))=0, INDEX($G$4:$U$94, MATCH(TRIM(CLEAN($W104)), $D$4:$D$94, 0), MATCH(Y$3, $G$3:$U$3, 0))=""), "", INDEX($G$4:$U$94, MATCH(TRIM(CLEAN($W104)), $D$4:$D$94, 0), MATCH(Y$3, $G$3:$U$3, 0))), "") ->  | AN104: 0 | AO104: ويفر بوتيك مربع 9 كيس * 500 جم
A105: 102 | V105: 0 | W105: ايليت عرض خاص | X105: 0 | AN105: 0 | AO105: ايليت عرض خاص
A106: 103 | V106: 0 | W106: اهلا بالعيد 8 كيس * 660 جم | X106: 0 | AN106: 0 | AO106: اهلا بالعيد 8 كيس * 660 جم
A107: 104 | V107: 0 | W107: كورن عائلي 15 كيس | X107: 211 | AK107: 211 | AN107: 211 | AO107: كورن عائلي 15 كيس
A108: 105 | V108: 0 | W108: فاير فنجرز 15 كيس | X108: 254 | AK108: 254 | AN108: 254 | AO108: فاير فنجرز 15 كيس
A109: 106 | V109: 0 | W109: اسبيشيال أطعم 15 كيس | X109: 0 | AN109: 0 | AO109: اسبيشيال أطعم 15 كيس
A110: 107 | V110: 0 | W110: شيل أوت شيبس 15 كيس سعر الكيس 10 جنية | X110: 189 | AI110: 2 | AK110: 187 | AN110: 189 | AO110: شيل أوت شيبس 15 كيس سعر الكيس 10 جنية
V111: 0 | W111: زى كولا مشروب غازى 275 حلى | X111: 954 | AH111: 254 | AK111: 700 | AN111: 954 | AO111: زى كولا مشروب غازى 275 حلى
A112: 108 | V112: 0 | W112: زبدة 12 علبة * 240 ق | X112: 0 | AN112: 0 | AO112: زبدة 12 علبة * 240 ق
A113: الاجمالى | F113: =SUM(F4:F112) -> 0 | G113: 0 | H113: 0 | I113: 0 | J113: 0 | K113: 0 | L113: 0 | M113: 0 | N113: 59 | O113: 6 | P113: 421 | Q113: 416 | R113: 85 | S113: 2723.5 | T113: 1012 | U113: =SUM(U4:U112) -> 405 | V113: =SUM(V4:V111) -> 5127.5 | X113: =SUM(X4:X112) -> 4293.5 | Y113: =SUM(Y4:Y112) -> 0 | Z113: =SUM(Z4:Z112) -> 0 | AA113: 0 | AB113: 0 | AC113: 0 | AD113: 0 | AE113: 0 | AF113: 59 | AG113: 6 | AH113: 392 | AI113: 60 | AJ113: 85 | AK113: 2374.5 | AL113: 912 | AM113: 405 | AN113: =SUM(AN4:AN112) -> 4293.5
AH115: =P113-AH113 -> 29 | AI115: =Q113-AI113 -> 356 | AK115: =S113-AK113 -> 349 | AL115: =T113-AL113 -> 100
V117: =V113-AN113 -> 834

Sheet الرصيد 3 (5)
A1: رصيد توكيل ( توكيل نجع حمادى ) عن يوم ( الخميس 9/13 ) | W1: شيت به معادلات عادية
A2: م | B2: الكود | C2: مدة الصلاحية | D2: الصنف | E2: الوحدة | F2: الرصيد الدفترى بالكرتونة | V2: الرصيد الفعلى بالكرتونة | W2: تنسيق الارقام مع اسم الصنف والتاريخ المقابل لها | AN2: الرصيد الفعلى بالكرتونة
G3: 2024-07-01 | H3: 2024-08-01 | I3: 2024-09-01 | J3: 2024-10-01 | K3: 2024-11-01 | L3: 2024-12-01 | M3: 2025-01-01 | N3: 2025-02-01 | O3: 2025-03-01 | P3: 2025-04-01 | Q3: 2025-05-01 | R3: 2025-06-01 | S3: 2025-07-01 | T3: 2025-08-01 | U3: 2025-09-01 | W3: اسم الصنف | X3: الرصيد | Y3: 2024-07-01 | Z3: 2024-08-01 | AA3: 2024-09-01 | AB3: 2024-10-01 | AC3: 2024-11-01 | AD3: 2024-12-01 | AE3: 2025-01-01 | AF3: 2025-02-01 | AG3: 2025-03-01 | AH3: 2025-04-01 | AI3: 2025-05-01 | AJ3: 2025-06-01 | AK3: 2025-07-01 | AL3: 2025-08-01 | AM3: 2025-09-01 | AO3: =IFERROR(IF(INDEX($G$4:$U$94,MATCH(SUBSTITUTE(TRIM($W4),CHAR(160)," "),SUBSTITUTE(TRIM($D$4:$D$94),CHAR(160)," "),0),MATCH(Y$3,$G$3:$U$3,0))=0,"",INDEX($G$4:$U$94,MATCH(SUBSTITUTE(TRIM($W4),CHAR(160)," "),SUBSTITUTE(TRIM($D$4:$D$94),CHAR(160)," "),0),MATCH(Y$3,$G$3:$U$3,0))),"") -> 
A4: 1 | B4: 6222000901529 | C4: سنتان | D4: سوبر فينا 10 كيلو | E4: كرتونة | S4: 52 | T4: 50 | U4: 100 | V4: =SUM(G4:U4) -> 202 | W4: سوبر فينا 10 كيلو | X4: =AN4 -> 202 | Y4: =IFERROR(IF(INDEX($G$4:$U$94, MATCH(TRIM($W4), $D$4:$D$94, 0), MATCH(Y$3, $G$3:$U$3, 0)) = "", "", INDEX($G$4:$U$94, MATCH(TRIM($W4), $D$4:$D$94, 0), MATCH(Y$3, $G$3:$U$3, 0))), "") ->  | Z4: =IFERROR(IF(INDEX($G$4:$U$94, MATCH(TRIM($W4), $D$4:$D$94, 0), MATCH(Z$3, $G$3:$U$3, 0)) = "", "", INDEX($G$4:$U$94, MATCH(TRIM($W4), $D$4:$D$94, 0), MATCH(Z$3, $G$3:$U$3, 0))), "") ->  | AK4: 52 | AL4: 50 | AM4: 100 | AN4: =SUM(Y4:AM4) -> 202 | AO4: =TRIM(CLEAN(SUBSTITUTE(SUBSTITUTE(SUBSTITUTE(W4,CHAR(10),""),CHAR(13),""),CHAR(9),""))) -> سوبر فينا 10 كيلو
A5: 2 | B5: 6222000901536 | C5: سنتان | D5: سوبر فينا 10 كيلو نعناع | E5: كرتونة | S5: 24 | U5: 155 | V5: =SUM(G5:U5) -> 179 | W5: سولا فواكة فلوباك 10 ك | X5: =AN5 -> 55 | Y5: =IFERROR(IF(INDEX($G$4:$U$94, MATCH(TRIM($W5), $D$4:$D$94, 0), MATCH(Y$3, $G$3:$U$3, 0)) = "", "", INDEX($G$4:$U$94, MATCH(TRIM($W5), $D$4:$D$94, 0), MATCH(Y$3, $G$3:$U$3, 0))), "") ->  | AL5: 55 | AN5: =SUM(Y5:AM5) -> 55 | AO5: =TRIM(CLEAN(SUBSTITUTE(SUBSTITUTE(SUBSTITUTE(W5,CHAR(10),""),CHAR(13),""),CHAR(9),""))) -> سولا فواكة فلوباك 10 ك
A6: 3 | B6: 6222000911733 | C6: سنتان | D6: نعناع 12كيس 50 ق 4جم | E6: كرتونة | T6: 3 | V6: 3 | W6: سولا فواكة 5 ك | X6: 0 | AN6: 0 | AO6: سولا فواكة 5 ك
A7: 4 | B7: 6222000911764 | C7: سنتان | D7: سولا فواكه 12 كيس * 50 ق | E7: كرتونة | V7: 0 | W7: سولا فواكه 30 كيس * 28 ق | X7: 0 | AN7: 0 | AO7: سولا فواكه 30 كيس * 28 ق
A8: 5 | B8: 6222000917773 | C8: سنتان | D8: سولا فواكه 30 كيس * 28 ق | E8: كرتونة | V8: 0 | W8: سولا فواكه 12 كيس * 50 ق | X8: 0 | AN8: 0 | AO8: سولا فواكه 12 كيس * 50 ق
A9: 6 | B9: 6222000917780 | C9: سنتان | D9: سولا فواكه 12 كيس * 100 ق | E9: كرتونة | T9: 104 | V9: 104 | W9: سولا فواكه 12 كيس * 100 ق | X9: 104 | AL9: 104 | AN9: 104 | AO9: سولا فواكه 12 كيس * 100 ق
A10: 7 | B10: 6222000916295 | C10: سنتان | D10: سولا فواكة 6 كيس * 800 جم | E10: كرتونة | V10: 0 | W10: سولا ف 12 ع * 200 ق | X10: 0 | AN10: 0 | AO10: سولا ف 12 ع * 200 ق
A11: 8 | B11: 6222000912525 | C11: سنتان | D11: سولا ف 12 ع * 200 ق | E11: كرتونة | V11: 0 | W11: سولا ف 12 ع * 240 ق | X11: 0 | AN11: 0 | AO11: سولا ف 12 ع * 240 ق
A12: 9 | B12: 6222000912518 | C12: سنتان | D12: سولا نعناع 12 ع * 200 ق | E12: كرتونة | Q12: 22 | V12: 22 | W12: سولا فواكة 6 كيس * 800 جم | X12: 0 | AN12: 0 | AO12: سولا فواكة 6 كيس * 800 جم
A13: 10 | B13: 6222000912525 | C13: سنتان | D13: سولا ف 12 ع * 240 ق | E13: كرتونة | V13: 0 | W13: سوبر فينا 10 كيلو نعناع | X13: 179 | AK13: 24 | AM13: 155 | AN13: 179 | AO13: سوبر فينا 10 كيلو نعناع
A14: 11 | B14: 6222000908566 | C14: سنتان | D14: سولا فواكة 5 ك | E14: كرتونة | V14: 0 | W14: سولا نعناع فلوباك 10 ك | X14: 0 | AN14: 0 | AO14: سولا نعناع فلوباك 10 ك
A15: 12 | B15: 6222000908573 | C15: سنتان | D15: سولا نعناع 5 ك | E15: كرتونة | N15: 59 | V15: 59 | W15: سولا نعناع 5 ك | X15: 59 | AF15: 59 | AN15: 59 | AO15: سولا نعناع 5 ك
A16: 13 | B16: 00743 | C16: سنة | D16: قهوة 12 ع * 200 ق | E16: كرتونة | V16: 0 | W16: سولا نعناع 30 كيس * 28 ق | X16: 0 | AN16: 0 | AO16: سولا نعناع 30 كيس * 28 ق
A17: 14 | B17: 6222000917452 | C17: سنة | D17: قهوة 12 ع * 240 ق | E17: كرتونة | T17: 27 | V17: 27 | W17: نعناع 12كيس 50 ق 4جم | X17: 3 | AL17: 3 | AN17: 3 | AO17: نعناع 12كيس 50 ق 4جم
A18: 15 | B18: 6222000901758 | C18: سنة | D18: سولا قهوه 10 كيلو | E18: كرتونة | S18: 15.5 | T18: 50 | V18: 65.5 | W18: سولا نعناع 12 كيس * 100 ق | X18: 0 | AN18: 0 | AO18: سولا نعناع 12 كيس * 100 ق
A19: 16 | B19: 6222000912020 | C19: سنة | D19: قهوة 5 ك | E19: كرتونة | V19: 0 | W19: سولا نعناع 12 ع * 200 ق | X19: 22 | AI19: 22 | AN19: 22 | AO19: سولا نعناع 12 ع * 200 ق
A20: 17 | B20: 6222000909815 | C20: سنة | D20: قهوة 12 كيس * 80 ق / 90 ق | E20: كرتونة | R20: 85 | T20: 65 | V20: 150 | W20: نعناع 12 ع * 240 ق | X20: 0 | AN20: 0 | AO20: نعناع 12 ع * 240 ق
A21: 18 | B21: 6222000908610 | C21: سنة | D21: قهوة 30 كيس * 18 ق / 25 ق | E21: كرتونة | V21: 0 | W21: سولا قهوه 10 كيلو | X21: 65.5 | AK21: 15.5 | AL21: 50 | AN21: 65.5 | AO21: سولا قهوه 10 كيلو
A22: 19 | B22: 6222000909891 | C22: سنة | D22: قهوة 30 كيس * 12قطعه | E22: كرتونة | V22: 0 | W22: قهوة 5 ك | X22: 0 | AN22: 0 | AO22: قهوة 5 ك
A23: 20 | B23: 00744 | C23: سنة | D23: زبدة 12 ع * 200 ق | E23: كرتونة | S23: 64 | V23: 64 | W23: قهوة 30 كيس * 12قطعه | X23: 0 | AN23: 0 | AO23: قهوة 30 كيس * 12قطعه
A24: 21 | B24: 6222000901642 | C24: سنة | D24: سولا زبده 10 كيلو | E24: كرتونة | T24: 18 | V24: 18 | W24: قهوة 30 كيس * 15قطعه | X24: 0 | AN24: 0 | AO24: قهوة 30 كيس * 15قطعه
A25: 22 | B25: 6222000912037 | C25: سنة | D25: زبدة 5 ك | E25: كرتونة | V25: 0 | W25: قهوة 30 كيس * 18 ق / 25 ق | X25: 0 | AN25: 0 | AO25: قهوة 30 كيس * 18 ق / 25 ق
A26: 23 | B26: 6222000917124 | C26: سنة | D26: زبدة بالشيكولاته 12 علبة * 240 ق | E26: كرتونة | T26: 64 | V26: 64 | W26: قهوة 12 كيس * 55 ق | X26: 0 | AN26: 0 | AO26: قهوة 12 كيس * 55 ق
A27: 24 | B27: 6222000918732 | C27: سنة | D27: زبدة بالشيكولاته 10 ك | E27: كرتونة | T27: 34 | V27: 34 | W27: قهوة 12 كيس * 80 ق / 90 ق | X27: 150 | AJ27: 85 | AL27: 65 | AN27: 150 | AO27: قهوة 12 كيس * 80 ق / 90 ق
A28: 25 | B28: 6222000909808 | C28: سنة | D28: زبدة 12 كيس * 80 ق / 90 ق | E28: كرتونة | V28: 0 | W28: قهوة 12 كيس * 120 ق | X28: 0 | AN28: 0 | AO28: قهوة 12 كيس * 120 ق
A29: 26 | B29: 6222000907583 | C29: سنة | D29: زبدة 30 كيس * 18 ق / 25 ق | E29: كرتونة | P29: 110 | V29: 110 | W29: قهوة 12 ع * 200 ق | X29: 0 | AN29: 0 | AO29: قهوة 12 ع * 200 ق
A30: 27 | B30: 6222000909884 | C30: سنة | D30: زبدة 30 كيس * 12قطعه | E30: كرتونة | S30: 61 | T30: 48 | V30: 109 | W30: قهوة 12 ع * 240 ق | X30: 27 | AL30: 27 | AN30: 27 | AO30: قهوة 12 ع * 240 ق
A31: 28 | B31: 6222000909884 | C31: سنة | D31: زبدة 30 كيس * 15 قطعه | E31: كرتونة | V31: 0 | W31: قهوه20كيس*150جرام | X31: 0 | AN31: 0 | AO31: قهوه20كيس*150جرام
A32: 29 | B32: 6222000905688 | C32: سنة | D32: زبدة 12 كيس * 55 قطعه | E32: كرتونة | V32: 0 | W32: سولا زبده 10 كيلو | X32: 18 | AL32: 18 | AN32: 18 | AO32: سولا زبده 10 كيلو
A33: 30 | B33: 171 | C33: سنة | D33: زبدة 12 كيس * 120 ق | E33: كرتونة | S33: 41 | U33: 45 | V33: 86 | W33: زبدة 5 ك | X33: 0 | AN33: 0 | AO33: زبدة 5 ك
A34: 31 | B34: 6222000910064 | C34: سنة | D34: زبدة 10 شنطة * 800 جم | E34: كرتونة | V34: 0 | W34: زبدة 30 كيس * 12قطعه | X34: 109 | AK34: 61 | AL34: 48 | AN34: 109 | AO34: زبدة 30 كيس * 12قطعه
A35: 32 | B35: 6222000912501 | C35: 9 أشهر | D35: عسلية 12 ع * 200 ق | E35: كرتونة | V35: 0 | W35: زبدة 30 كيس * 15 قطعه | X35: 0 | AN35: 0 | AO35: زبدة 30 كيس * 15 قطعه
A36: 33 | B36: 6222000912457 | C36: 9 أشهر | D36: عسلية 5 ك | E36: كرتونة | V36: 0 | W36: زبدة 30 كيس * 18 ق / 25 ق | X36: 110 | Y36: =IFERROR(IF(INDEX($G$4:$U$94, MATCH(TRIM($W36), $D$4:$D$94, 0), MATCH(Y$3, $G$3:$U$3, 0)) = "", "", INDEX($G$4:$U$94, MATCH(TRIM($W36), $D$4:$D$94, 0), MATCH(Y$3, $G$3:$U$3, 0))), "") ->  | AH36: 110 | AN36: 110 | AO36: زبدة 30 كيس * 18 ق / 25 ق
A37: 34 | B37: 6222000901611 | C37: سنة | D37: اكلير سايب 10 كيلو | E37: كرتونة | S37: 43 | T37: 55 | V37: 98 | W37: زبدة 12 كيس * 55 قطعه | X37: 0 | AN37: 0 | AO37: زبدة 12 كيس * 55 قطعه
A38: 35 | B38: 6222000909907 | C38: سنة | D38: اكلير 30 كيس * 9 ق / 10 ق | E38: كرتونة | S38: 134 | V38: 134 | W38: زبدة 12 كيس * 80 ق / 90 ق | X38: 0 | AN38: 0 | AO38: زبدة 12 كيس * 80 ق / 90 ق
A39: 36 | B39: 6222000909907 | C39: سنة | D39: اكلير 30 كيس * 12 قطعه | E39: كرتونة | V39: 0 | W39: زبدة 12 كيس * 120 ق | X39: 86 | AK39: 41 | AM39: 45 | AN39: 86 | AO39: زبدة 12 كيس * 120 ق
A40: 37 | B40: 6222000911498 | C40: سنة | D40: اكلير سولا 5 كيلو | E40: كرتونة | V40: 0 | W40: زبدة 12 ع * 200 ق | X40: 64 | AK40: 64 | AN40: 64 | AO40: زبدة 12 ع * 200 ق
A41: 38 | B41: 6222000912778 | C41: سنة | D41: اكلير 12كيس * 65 ق / 70 ق | E41: كرتونة | V41: 0 | W41: زبدة 10 شنطة * 800 جم | X41: 0 | AN41: 0 | AO41: زبدة 10 شنطة * 800 جم
A42: 39 | B42: 6222000912778 | C42: سنة | D42: اكلير 12 كيس * 100 قطعة | E42: كرتونة | S42: 137 | V42: 137 | W42: زبدة بالشيكولاته 10 ك | X42: 34 | AL42: 34 | AN42: 34 | AO42: زبدة بالشيكولاته 10 ك
A43: 40 | B43: 6222000912822 | C43: سنة | D43: اكلير 30 كيس * 15 ق / 20 ق | E43: كرتونة | V43: 0 | W43: زبدة بالشيكولاته 30 كيس * 15 قطعه | X43: 0 | AN43: 0 | AO43: زبدة بالشيكولاته 30 كيس * 15 قطعه
A44: 41 | B44: 6222000905701 | C44: سنة | D44: اكلير 12كيس 45 ق | E44: كرتونة | S44: 220 | V44: 220 | W44: زبدة بالشيكولاته 12 كيس * 55 قطعه | X44: 0 | AN44: 0 | AO44: زبدة بالشيكولاته 12 كيس * 55 قطعه
A45: 42 | B45: 6222000912532 | C45: سنة | D45: اكلير 12 علبة * 160 ق | E45: كرتونة | V45: 0 | W45: زبدة بالشيكولاته 12 كيس * 120 ق | X45: 0 | AN45: 0 | AO45: زبدة بالشيكولاته 12 كيس * 120 ق
A46: 43 | B46: 6222000912532 | C46: سنة | D46: اكلير 12 علبة 200 ق | E46: كرتونة | S46: 35 | V46: 35 | W46: زبدة بالشيكولاته 12 علبة * 240 ق | X46: 64 | AL46: 64 | AN46: 64 | AO46: زبدة بالشيكولاته 12 علبة * 240 ق
A47: 44 | B47: 6222000901697 | C47: سنة | D47: طوفي 10 كجم | E47: كرتونة | S47: 38 | T47: 46 | U47: 55 | V47: 139 | W47: عسلية 5 ك | X47: 0 | AN47: 0 | AO47: عسلية 5 ك
A48: 45 | B48: 6222000911481 | C48: سنة | D48: طوفي بردايس 5كيلو | E48: كرتونة | V48: 0 | W48: عسلية 12 ع * 200 ق | X48: 0 | AN48: 0 | AO48: عسلية 12 ع * 200 ق
A49: 46 | B49: 6222000908276 | C49: سنة | D49: طوفي 30 كيس * 25 قطعه | E49: كرتونة | V49: 0 | W49: اكلير سايب 10 كيلو | X49: 98 | AK49: 43 | AL49: 55 | AN49: 98 | AO49: اكلير سايب 10 كيلو
A50: 47 | B50: 6222000908276 | C50: سنة | D50: طوفى 30 كيس * 28 ق | E50: كرتونة | T50: 100 | V50: 100 | W50: اكلير 30 كيس * 9 ق / 10 ق | X50: 0 | AN50: 0 | AO50: اكلير 30 كيس * 9 ق / 10 ق
A51: 48 | B51: 6222000909921 | C51: سنة | D51: طوفي 30 كيس * 12قطعه | E51: كرتونة | V51: 0 | W51: اكلير 30 كيس * 12 قطعه | X51: 0 | AN51: 0 | AO51: اكلير 30 كيس * 12 قطعه
A52: 49 | B52: 6222000909839 | C52: سنة | D52: طوفي 12 كيس * 90 ق | E52: كرتونة | T52: 11 | V52: 11 | W52: اكلير 30 كيس * 15 ق / 20 ق | X52: 0 | AN52: 0 | AO52: اكلير 30 كيس * 15 ق / 20 ق
A53: 50 | B53: 6222000905718 | C53: سنة | D53: طوفى 12كيس * 100 ق | E53: كرتونة | T53: 97 | V53: 97 | W53: اكلير 12كيس 45 ق | X53: 220 | Y53: =IFERROR(IF(INDEX($G$4:$U$94, MATCH(TRIM($W53), $D$4:$D$94, 0), MATCH(Y$3, $G$3:$U$3, 0)) = "", "", INDEX($G$4:$U$94, MATCH(TRIM($W53), $D$4:$D$94, 0), MATCH(Y$3, $G$3:$U$3, 0))), "") ->  | AK53: 220 | AN53: 220 | AO53: اكلير 12كيس 45 ق
A54: 51 | B54: 6222000908825 | C54: سنة | D54: طوفى 12 ع * 200 ق | E54: كرتونة | V54: 0 | W54: اكلير 12كيس * 65 ق / 70 ق | X54: 0 | AN54: 0 | AO54: اكلير 12كيس * 65 ق / 70 ق
A55: 52 | B55: 6222000912556 | C55: سنة | D55: طوفي 12 علبه * 240 ق | E55: كرتونة | S55: 29 | T55: 45 | V55: 74 | W55: اكلير 12 كيس * 100 قطعة | X55: 137 | AK55: 137 | AN55: 137 | AO55: اكلير 12 كيس * 100 قطعة
A56: 53 | B56: 6222000907637 | C56: سنة | D56: شيكولاته بوتيك 16 علبه * 50 قطعة | E56: كرتونة | O56: 6 | V56: 6 | W56: اكلير 12 علبة * 160 ق | X56: 0 | AN56: 0 | AO56: اكلير 12 علبة * 160 ق
A57: 54 | B57: 6222000903295 | C57: سنة | D57: شيكولاته بوتيك 6 علبه * 1.25 كيلو | E57: كرتونة | V57: 0 | W57: اكلير 12 علبة 200 ق | X57: 35 | AK57: 35 | AN57: 35 | AO57: اكلير 12 علبة 200 ق
A58: 55 | B58: 6222000912006 | C58: سنة | D58: شيكولاته بوتيك حليب 4 ك | E58: كرتونة | V58: 0 | W58: طوفي 10 كجم | X58: 139 | AK58: 38 | AL58: 46 | AM58: 55 | AN58: 139 | AO58: طوفي 10 كجم
A59: 56 | B59: 6222000911993 | C59: سنة | D59: شيكولاته بوتيك كراميل 4 ك | E59: كرتونة | V59: 0 | W59: طوفي 30 كيس * 12قطعه | X59: 0 | AN59: 0 | AO59: طوفي 30 كيس * 12قطعه
A60: 57 | B60: 6222000912013 | C60: سنة | D60: شيكولاته بوتيك بندق 4 ك | E60: كرتونة | V60: 0 | W60: طوفي 30 كيس * 25 قطعه | X60: 0 | AN60: 0 | AO60: طوفي 30 كيس * 25 قطعه
A61: 58 | B61: 6222000964197 | C61: سنة | D61: شيكوهند سايب 10 كجم | E61: كرتونة | V61: 0 | W61: طوفى 30 كيس * 28 ق | X61: 100 | AL61: 100 | AN61: 100 | AO61: طوفى 30 كيس * 28 ق
A62: 59 | B62: 6222000906630 | C62: سنة | D62: سوفت شيكوهند 5 ك | E62: كرتونة | T62: 40 | V62: 40 | W62: طوفي 12 كيس * 90 ق | X62: 11 | AL62: 11 | AN62: 11 | AO62: طوفي 12 كيس * 90 ق
A63: 60 | B63: 6222000612549 | C63: سنة | D63: شيكوهند سوفت 12 ع * 100 ق | E63: كرتونة | V63: 0 | W63: طوفى 12كيس * 100 ق | X63: 97 | AL63: 97 | AN63: 97 | AO63: طوفى 12كيس * 100 ق
A64: 61 | B64: 6222000915243 | C64: سنة | D64: بار شيكوهند 3 ك | E64: كرتونة | U64: 50 | V64: 50 | W64: طوفى 12 ع * 200 ق | X64: 0 | AN64: 0 | AO64: طوفى 12 ع * 200 ق
A65: 62 | B65: 6222000902519 | C65: 9 أشهر | D65: ويفر ايليت مغطس بنى 12 *12 | E65: كرتونة | V65: 0 | W65: طوفي 12 علبه * 240 ق | X65: 74 | AK65: 29 | AL65: 45 | AN65: 74 | AO65: طوفي 12 علبه * 240 ق
A66: 63 | B66: 6222000902557 | C66: 9 أشهر | D66: ويفر ايليت مغطس ابيض 12 * 12 | E66: كرتونة | V66: 0 | W66: طوفي شيكولاته 12 كيس * 25 ق | X66: 0 | AN66: 0 | AO66: طوفي شيكولاته 12 كيس * 25 ق
A67: 64 | B67: 6222000902564 | C67: 9 أشهر | D67: ويفر ايليت مغطس فراولة 12*12 | E67: كرتونة | V67: 0 | W67: طوفي شيكولاته 12 علبة * 100 ق | X67: 0 | AN67: 0 | AO67: طوفي شيكولاته 12 علبة * 100 ق
A68: 65 | B68: 6222000910200 | C68: 9 أشهر | D68: ايليت ماكس سادة ش 12 باكو 6 قطع | E68: كرتونة | S68: 263 | V68: 263 | W68: طوفي زبدة 12 كيس * 25 ق | X68: 0 | AN68: 0 | AO68: طوفي زبدة 12 كيس * 25 ق
A69: 66 | B69: 6222000910514 | C69: 9 أشهر | D69: ايليت ماكس سادة فانيليا 12 باكو * 6 قطع | E69: كرتونة | S69: 215 | V69: =SUM(G69:U69) -> 215 | W69: طوفي زبدة 12 علبة * 100 ق | X69: =AN69 -> 0 | AN69: =SUM(Y69:AM69) -> 0 | AO69: =TRIM(CLEAN(SUBSTITUTE(SUBSTITUTE(SUBSTITUTE(W69,CHAR(10),""),CHAR(13),""),CHAR(9),""))) -> طوفي زبدة 12 علبة * 100 ق
A70: 67 | B70: 6222000909976 | C70: 9 أشهر | D70: ويفر مربع 3 كيلو ايليت ابيض | E70: كرتونة | Q70: 74 | T70: 50 | V70: 124 | W70: شيكولاته بوتيك 16 علبه * 50 قطعة | X70: 6 | Y70: =IFERROR(IF(INDEX($G$4:$U$94, MATCH(TRIM($W70), $D$4:$D$94, 0), MATCH(Y$3, $G$3:$U$3, 0)) = "", "", INDEX($G$4:$U$94, MATCH(TRIM($W70), $D$4:$D$94, 0), MATCH(Y$3, $G$3:$U$3, 0))), "") ->  | AG70: 6 | AN70: 6 | AO70: شيكولاته بوتيك 16 علبه * 50 قطعة
A71: 68 | B71: 6222000909983 | C71: 9 أشهر | D71: ويفر مربع 3 كيلو ايليت شيكولاته | E71: كرتونة | V71: 0 | W71: شيكولاته بوتيك 6 علبه * 1.25 كيلو | X71: 0 | AN71: 0 | AO71: شيكولاته بوتيك 6 علبه * 1.25 كيلو
A72: 69 | B72: 6222000909969 | C72: 9 أشهر | D72: ويفر مربع 3 كيلو ايليت فراوله | E72: كرتونة | Q72: 69 | T72: 50 | V72: 119 | W72: شيكولاته بوتيك حليب 4 ك | X72: 0 | AN72: 0 | AO72: شيكولاته بوتيك حليب 4 ك
A73: 70 | B73: 6888000909953 | C73: 9 أشهر | D73: ويفر مربع 3 كيلو ايليت جوز هند | E73: كرتونة | V73: 0 | W73: شيكولاته بوتيك كراميل 4 ك | X73: 0 | AN73: 0 | AO73: شيكولاته بوتيك كراميل 4 ك
A74: 71 | B74: 622200097116 | C74: 9 أشهر | D74: ويفر فرحه 5 كيلو | E74: كرتونة | Q74: 36 | V74: 36 | W74: شيكولاته بوتيك بندق 4 ك | X74: 0 | AN74: 0 | AO74: شيكولاته بوتيك بندق 4 ك
A75: 72 | B75: 6222000912372 | C75: 9 أشهر | D75: ويفر ايليت مربع بايتس 3 ك بني | E75: كرتونة | V75: 0 | W75: شيكوهند سايب 10 كجم | X75: 0 | AN75: 0 | AO75: شيكوهند سايب 10 كجم
A76: 73 | B76: 6222000912488 | C76: 9 أشهر | D76: بسكوت اكشن سادة شاي 6 ع * 12 ق | E76: كرتونة | V76: 0 | W76: سوفت شيكوهند 5 ك | X76: 40 | AL76: 40 | AN76: 40 | AO76: سوفت شيكوهند 5 ك
A77: 74 | B77: 6222000914383 | C77: 9 أشهر | D77: بسكوت اكشن سادة شاي 6 ع * 12 ق ( نباتى ) | E77: كرتونة | V77: 0 | W77: شيكوهند سوفت 12 كيس * 28 ق | X77: 0 | AN77: 0 | AO77: شيكوهند سوفت 12 كيس * 28 ق
A78: 75 | B78: 6222000916165 | C78: 9 أشهر | D78: ويفر اكشن مغطس بنى 12ع * 12 ق ( 5 جنية ) | E78: كرتونة | P78: 28 | V78: 28 | W78: شيكوهند سوفت 12 كيس * 60 ق | X78: 0 | AN78: 0 | AO78: شيكوهند سوفت 12 كيس * 60 ق
A79: 76 | B79: 6222000916172 | C79: 9 أشهر | D79: ويفر اكشن مغطس أبيض 12ع * 12 ق ( 5 جنية ) | E79: كرتونة | V79: 0 | W79: شيكوهند سوفت 12 ع * 100 ق | X79: 0 | AN79: 0 | AO79: شيكوهند سوفت 12 ع * 100 ق
A80: 77 | B80: 2810 | C80: 9 أشهر | D80: ويفر اكشن مغطس أبيض 8ع * 12 ق ( 5 جنية ) | E80: كرتونة | V80: 0 | W80: بار شيكوهند 3 ك | X80: 50 | AM80: 50 | AN80: 50 | AO80: بار شيكوهند 3 ك
A81: 78 | B81: 6222000912365 | C81: 9 أشهر | D81: بايتس مربع 6ع * 50ق بنى | E81: كرتونة | P81: 29 | V81: 29 | W81: ويفر ايليت مغطس بنى 12 *12 | X81: 0 | AN81: 0 | AO81: ويفر ايليت مغطس بنى 12 *12
A82: 79 | B82: 6222000902083 | C82: 9 أشهر | D82: بايتس مربع 6 ع * 50 ق ابيض | E82: كرتونة | V82: 0 | W82: ويفر ايليت مغطس ابيض 12 * 12 | X82: 0 | AN82: 0 | AO82: ويفر ايليت مغطس ابيض 12 * 12
A83: 80 | B83: 6222000913904 | C83: 9 أشهر | D83: بايتس مربع 6 ع * 50 ق فراولة | E83: كرتونة | V83: 0 | W83: ويفر ايليت مغطس فراولة 12*12 | X83: 0 | AN83: 0 | AO83: ويفر ايليت مغطس فراولة 12*12
A84: 81 | B84: 6222000916738 | C84: 9 أشهر | D84: ويفر بوتيك مربع 9 كيس * 500 جم | E84: كرتونة | V84: 0 | W84: ايليت ماكس سادة ش 12 باكو 6 قطع | X84: 263 | AK84: 263 | AN84: 263 | AO84: ايليت ماكس سادة ش 12 باكو 6 قطع
A85: 82 | B85: 002797 | C85: 4 أشهر | D85: كورن عائلي 15 كيس | E85: كرتونة | S85: 211 | V85: =SUM(G85:U85) -> 211 | W85: ايليت ماكس سادة فانيليا 12 باكو * 6 قطع | X85: 0 | AN85: 0 | AO85: ايليت ماكس سادة فانيليا 12 باكو * 6 قطع
A86: 83 | B86: 002796 | C86: 6 أشهر | D86: فاير فنجرز 15 كيس | E86: كرتونة | S86: 254 | V86: 254 | W86: ويفر مربع 3 كيلو ايليت ابيض | X86: 0 | AN86: 0 | AO86: ويفر مربع 3 كيلو ايليت ابيض
A87: 84 | B87: 001766 | C87: 6 أشهر | D87: اسبيشيال أطعم 15 كيس | E87: كرتونة | Q87: 213 | V87: 213 | W87: ويفر مربع 3 كيلو ايليت شيكولاته | X87: 0 | Y87: =IFERROR(IF(INDEX($G$4:$U$94, MATCH(TRIM($W87), $D$4:$D$94, 0), MATCH(Y$3, $G$3:$U$3, 0)) = "", "", INDEX($G$4:$U$94, MATCH(TRIM($W87), $D$4:$D$94, 0), MATCH(Y$3, $G$3:$U$3, 0))), "") ->  | AN87: 0 | AO87: ويفر مربع 3 كيلو ايليت شيكولاته
A88: 85 | B88: EG-670026743-3002 | C88: 6 أشهر | D88: شيل أوت شيبس 15 كيس سعر الكيس 10 جنية | E88: كرتونة | Q88: 2 | S88: 187 | V88: 189 | W88: ويفر مربع 3 كيلو ايليت فراوله | X88: 0 | AN88: 0 | AO88: ويفر مربع 3 كيلو ايليت فراوله
A89: 86 | B89: 6224001574221 | C89: سنة | D89: زى كولا مشروب غازى 275 حلى | E89: كرتونة | P89: 254 | S89: 700 | V89: 954 | W89: ويفر مربع 3 كيلو ايليت جوز هند | X89: 0 | AN89: 0 | AO89: ويفر مربع 3 كيلو ايليت جوز هند
A90: 87 | B90: 2798 | C90: 9 أشهر | D90: اهلا بالعيد 8 كيس * 660 جم | E90: كرتونة | V90: 0 | W90: ويفر فرحه 5 كيلو | X90: 36 | AI90: 36 | AN90: 36 | AO90: ويفر فرحه 5 كيلو
A91: 88 | B91: 00695 | C91: سنة | D91: قهوه20كيس*150جرام | E91: كرتونة | V91: 0 | W91: ويفر ايليت مربع بايتس 3 ك بني | X91: 0 | AN91: 0 | AO91: ويفر ايليت مربع بايتس 3 ك بني
A92: 89 | B92: 6222000912518 | C92: سنتان | D92: نعناع 12 ع * 240 ق | E92: كرتونة | V92: 0 | W92: بسكوت اكشن سادة شاي 6 ع * 12 ق | X92: 0 | AN92: 0 | AO92: بسكوت اكشن سادة شاي 6 ع * 12 ق
A93: 90 | B93: 002827 | D93: سولا فواكة فلوباك 10 ك | E93: كرتونة | T93: 55 | V93: 55 | W93: بسكوت اكشن سادة شاي 6 ع * 12 ق ( نباتى ) | X93: 0 | AN93: 0 | AO93: بسكوت اكشن سادة شاي 6 ع * 12 ق ( نباتى )
A94: 91 | V94: 0 | W94: ويفر اكشن مغطس بنى 12ع * 12 ق ( 5 جنية ) | X94: 28 | AH94: 28 | AN94: 28 | AO94: ويفر اكشن مغطس بنى 12ع * 12 ق ( 5 جنية )
A95: 92 | V95: 0 | W95: ويفر اكشن مغطس أبيض 12ع * 12 ق ( 5 جنية ) | X95: 0 | AN95: 0 | AO95: ويفر اكشن مغطس أبيض 12ع * 12 ق ( 5 جنية )
A96: 93 | V96: 0 | W96: ويفر اكشن مغطس أبيض 8ع * 12 ق ( 5 جنية ) | X96: 0 | AN96: 0 | AO96: ويفر اكشن مغطس أبيض 8ع * 12 ق ( 5 جنية )
A97: 94 | V97: 0 | W97: بايتس مربع 6ع * 50ق بنى | X97: 0 | AN97: 0 | AO97: بايتس مربع 6ع * 50ق بنى
A98: 95 | V98: 0 | W98: بايتس مربع 6 ع * 50 ق ابيض | X98: 0 | AN98: 0 | AO98: بايتس مربع 6 ع * 50 ق ابيض
A99: 96 | V99: 0 | W99: ويفر 4 علبه * 50 قطعه ابيض بايتس | X99: 0 | AN99: 0 | AO99: ويفر 4 علبه * 50 قطعه ابيض بايتس
A100: 97 | V100: 0 | W100: ويفر 5 علبه * 50 قطعه ابيض بايتس | X100: 0 | AN100: 0 | AO100: ويفر 5 علبه * 50 قطعه ابيض بايتس
A101: 98 | V101: 0 | W101: ويفر 7 علبه * 50 قطعه ابيض بايتس | X101: 0 | AN101: 0 | AO101: ويفر 7 علبه * 50 قطعه ابيض بايتس
A102: 99 | V102: 0 | W102: بايتس مربع 6 ع * 50 ق فراولة | X102: 0 | AN102: 0 | AO102: بايتس مربع 6 ع * 50 ق فراولة
A103: 100 | V103: 0 | W103: ويفر 4 علبه * 50 قطعه فراولة بايتس | X103: 0 | AN103: 0 | AO103: ويفر 4 علبه * 50 قطعه فراولة بايتس
A104: 101 | V104: 0 | W104: ويفر بوتيك مربع 9 كيس * 500 جم | X104: 0 | Y104: =IFERROR(IF(INDEX($G$4:$U$94, MATCH(TRIM($W104), $D$4:$D$94, 0), MATCH(Y$3, $G$3:$U$3, 0)) = "", "", INDEX($G$4:$U$94, MATCH(TRIM($W104), $D$4:$D$94, 0), MATCH(Y$3, $G$3:$U$3, 0))), "") ->  | AN104: 0 | AO104: ويفر بوتيك مربع 9 كيس * 500 جم
A105: 102 | V105: 0 | W105: ايليت عرض خاص | X105: 0 | AN105: 0 | AO105: ايليت عرض خاص
A106: 103 | V106: 0 | W106: اهلا بالعيد 8 كيس * 660 جم | X106: 0 | AN106: 0 | AO106: اهلا بالعيد 8 كيس * 660 جم
A107: 104 | V107: 0 | W107: كورن عائلي 15 كيس | X107: 211 | AK107: 211 | AN107: 211 | AO107: كورن عائلي 15 كيس
A108: 105 | V108: 0 | W108: فاير فنجرز 15 كيس | X108: 254 | AK108: 254 | AN108: 254 | AO108: فاير فنجرز 15 كيس
A109: 106 | V109: 0 | W109: اسبيشيال أطعم 15 كيس | X109: 0 | AN109: 0 | AO109: اسبيشيال أطعم 15 كيس
A110: 107 | V110: 0 | W110: شيل أوت شيبس 15 كيس سعر الكيس 10 جنية | X110: 189 | AI110: 2 | AK110: 187 | AN110: 189 | AO110: شيل أوت شيبس 15 كيس سعر الكيس 10 جنية
V111: 0 | W111: زى كولا مشروب غازى 275 حلى | X111: 954 | AH111: 254 | AK111: 700 | AN111: 954 | AO111: زى كولا مشروب غازى 275 حلى
A112: 108 | V112: 0 | W112: زبدة 12 علبة * 240 ق | X112: 0 | AN112: 0 | AO112: زبدة 12 علبة * 240 ق
A113: الاجمالى | F113: =SUM(F4:F112) -> 0 | G113: 0 | H113: 0 | I113: 0 | J113: 0 | K113: 0 | L113: 0 | M113: 0 | N113: 59 | O113: 6 | P113: 421 | Q113: 416 | R113: 85 | S113: 2723.5 | T113: 1012 | U113: =SUM(U4:U112) -> 405 | V113: =SUM(V4:V111) -> 5127.5 | X113: =SUM(X4:X112) -> 4293.5 | Y113: =SUM(Y4:Y112) -> 0 | Z113: =SUM(Z4:Z112) -> 0 | AA113: 0 | AB113: 0 | AC113: 0 | AD113: 0 | AE113: 0 | AF113: 59 | AG113: 6 | AH113: 392 | AI113: 60 | AJ113: 85 | AK113: 2374.5 | AL113: 912 | AM113: 405 | AN113: =SUM(AN4:AN112) -> 4293.5
AH115: =P113-AH113 -> 29 | AI115: =Q113-AI113 -> 356 | AK115: =S113-AK113 -> 349 | AL115: =T113-AL113 -> 100
V117: =V113-AN113 -> 834

Sheet الرصيد 3 (4)
A1: رصيد توكيل ( توكيل نجع حمادى ) عن يوم ( الخميس 9/13 ) | W1: شيت به معادلات عادية
A2: م | B2: الكود | C2: مدة الصلاحية | D2: الصنف | E2: الوحدة | F2: الرصيد الدفترى بالكرتونة | V2: الرصيد الفعلى بالكرتونة | W2: تنسيق الارقام مع اسم الصنف والتاريخ المقابل لها | AN2: الرصيد الفعلى بالكرتونة
G3: 2024-07-01 | H3: 2024-08-01 | I3: 2024-09-01 | J3: 2024-10-01 | K3: 2024-11-01 | L3: 2024-12-01 | M3: 2025-01-01 | N3: 2025-02-01 | O3: 2025-03-01 | P3: 2025-04-01 | Q3: 2025-05-01 | R3: 2025-06-01 | S3: 2025-07-01 | T3: 2025-08-01 | U3: 2025-09-01 | W3: اسم الصنف | X3: الرصيد | Y3: 2024-07-01 | Z3: 2024-08-01 | AA3: 2024-09-01 | AB3: 2024-10-01 | AC3: 2024-11-01 | AD3: 2024-12-01 | AE3: 2025-01-01 | AF3: 2025-02-01 | AG3: 2025-03-01 | AH3: 2025-04-01 | AI3: 2025-05-01 | AJ3: 2025-06-01 | AK3: 2025-07-01 | AL3: 2025-08-01 | AM3: 2025-09-01 | AO3: =IFERROR(IF(INDEX($G$4:$U$94,MATCH(SUBSTITUTE(TRIM($W4),CHAR(160)," "),SUBSTITUTE(TRIM($D$4:$D$94),CHAR(160)," "),0),MATCH(Y$3,$G$3:$U$3,0))=0,"",INDEX($G$4:$U$94,MATCH(SUBSTITUTE(TRIM($W4),CHAR(160)," "),SUBSTITUTE(TRIM($D$4:$D$94),CHAR(160)," "),0),MATCH(Y$3,$G$3:$U$3,0))),"") -> 
A4: 1 | B4: 6222000901529 | C4: سنتان | D4: سوبر فينا 10 كيلو | E4: كرتونة | S4: 52 | T4: 50 | U4: 100 | V4: =SUM(G4:U4) -> 202 | W4: سوبر فينا 10 كيلو | X4: =AN4 -> 0 | Y4: =IFERROR(INDEX($G$4:$U$94,MATCH(TRUE,EXACT(TRIM(CLEAN(SUBSTITUTE($W4,CHAR(160)," "))),TRIM(CLEAN(SUBSTITUTE($D$4:$D$94,CHAR(160)," ")))),0),MATCH(Y$3,$G$3:$U$3,0)),"") ->  | Z4: =IFERROR(INDEX($G$4:$U$94,MATCH(TRUE,EXACT(TRIM(CLEAN(SUBSTITUTE($W4,CHAR(160)," "))),TRIM(CLEAN(SUBSTITUTE($D$4:$D$94,CHAR(160)," ")))),0),MATCH(Z$3,$G$3:$U$3,0)),"") ->  | AN4: =SUM(Y4:AM4) -> 0 | AO4: =TRIM(CLEAN(SUBSTITUTE(SUBSTITUTE(SUBSTITUTE(W4,CHAR(10),""),CHAR(13),""),CHAR(9),""))) -> سوبر فينا 10 كيلو
A5: 2 | B5: 6222000901536 | C5: سنتان | D5: سوبر فينا 10 كيلو نعناع | E5: كرتونة | S5: 24 | U5: 155 | V5: =SUM(G5:U5) -> 179 | W5: سولا فواكة فلوباك 10 ك | X5: =AN5 -> 55 | Y5: =IFERROR(IF(INDEX($G$4:$U$94,MATCH(TRIM($W5),$D$4:$D$94,0),MATCH(Y$3,$G$3:$U$3,0))=0,"",INDEX($G$4:$U$94,MATCH(TRIM($W5),$D$4:$D$94,0),MATCH(Y$3,$G$3:$U$3,0))),"") ->  | AL5: 55 | AN5: =SUM(Y5:AM5) -> 55 | AO5: =TRIM(CLEAN(SUBSTITUTE(SUBSTITUTE(SUBSTITUTE(W5,CHAR(10),""),CHAR(13),""),CHAR(9),""))) -> سولا فواكة فلوباك 10 ك
A6: 3 | B6: 6222000911733 | C6: سنتان | D6: نعناع 12كيس 50 ق 4جم | E6: كرتونة | T6: 3 | V6: 3 | W6: سولا فواكة 5 ك | X6: 0 | AN6: 0 | AO6: سولا فواكة 5 ك
A7: 4 | B7: 6222000911764 | C7: سنتان | D7: سولا فواكه 12 كيس * 50 ق | E7: كرتونة | V7: 0 | W7: سولا فواكه 30 كيس * 28 ق | X7: 0 | AN7: 0 | AO7: سولا فواكه 30 كيس * 28 ق
A8: 5 | B8: 6222000917773 | C8: سنتان | D8: سولا فواكه 30 كيس * 28 ق | E8: كرتونة | V8: 0 | W8: سولا فواكه 12 كيس * 50 ق | X8: 0 | AN8: 0 | AO8: سولا فواكه 12 كيس * 50 ق
A9: 6 | B9: 6222000917780 | C9: سنتان | D9: سولا فواكه 12 كيس * 100 ق | E9: كرتونة | T9: 104 | V9: 104 | W9: سولا فواكه 12 كيس * 100 ق | X9: 104 | AL9: 104 | AN9: 104 | AO9: سولا فواكه 12 كيس * 100 ق
A10: 7 | B10: 6222000916295 | C10: سنتان | D10: سولا فواكة 6 كيس * 800 جم | E10: كرتونة | V10: 0 | W10: سولا ف 12 ع * 200 ق | X10: 0 | AN10: 0 | AO10: سولا ف 12 ع * 200 ق
A11: 8 | B11: 6222000912525 | C11: سنتان | D11: سولا ف 12 ع * 200 ق | E11: كرتونة | V11: 0 | W11: سولا ف 12 ع * 240 ق | X11: 0 | AN11: 0 | AO11: سولا ف 12 ع * 240 ق
A12: 9 | B12: 6222000912518 | C12: سنتان | D12: سولا نعناع 12 ع * 200 ق | E12: كرتونة | Q12: 22 | V12: 22 | W12: سولا فواكة 6 كيس * 800 جم | X12: 0 | AN12: 0 | AO12: سولا فواكة 6 كيس * 800 جم
A13: 10 | B13: 6222000912525 | C13: سنتان | D13: سولا ف 12 ع * 240 ق | E13: كرتونة | V13: 0 | W13: سوبر فينا 10 كيلو نعناع | X13: 179 | AK13: 24 | AM13: 155 | AN13: 179 | AO13: سوبر فينا 10 كيلو نعناع
A14: 11 | B14: 6222000908566 | C14: سنتان | D14: سولا فواكة 5 ك | E14: كرتونة | V14: 0 | W14: سولا نعناع فلوباك 10 ك | X14: 0 | AN14: 0 | AO14: سولا نعناع فلوباك 10 ك
A15: 12 | B15: 6222000908573 | C15: سنتان | D15: سولا نعناع 5 ك | E15: كرتونة | N15: 59 | V15: 59 | W15: سولا نعناع 5 ك | X15: 59 | AF15: 59 | AN15: 59 | AO15: سولا نعناع 5 ك
A16: 13 | B16: 00743 | C16: سنة | D16: قهوة 12 ع * 200 ق | E16: كرتونة | V16: 0 | W16: سولا نعناع 30 كيس * 28 ق | X16: 0 | AN16: 0 | AO16: سولا نعناع 30 كيس * 28 ق
A17: 14 | B17: 6222000917452 | C17: سنة | D17: قهوة 12 ع * 240 ق | E17: كرتونة | T17: 27 | V17: 27 | W17: نعناع 12كيس 50 ق 4جم | X17: 3 | AL17: 3 | AN17: 3 | AO17: نعناع 12كيس 50 ق 4جم
A18: 15 | B18: 6222000901758 | C18: سنة | D18: سولا قهوه 10 كيلو | E18: كرتونة | S18: 15.5 | T18: 50 | V18: 65.5 | W18: سولا نعناع 12 كيس * 100 ق | X18: 0 | AN18: 0 | AO18: سولا نعناع 12 كيس * 100 ق
A19: 16 | B19: 6222000912020 | C19: سنة | D19: قهوة 5 ك | E19: كرتونة | V19: 0 | W19: سولا نعناع 12 ع * 200 ق | X19: 22 | AI19: 22 | AN19: 22 | AO19: سولا نعناع 12 ع * 200 ق
A20: 17 | B20: 6222000909815 | C20: سنة | D20: قهوة 12 كيس * 80 ق / 90 ق | E20: كرتونة | R20: 85 | T20: 65 | V20: 150 | W20: نعناع 12 ع * 240 ق | X20: 0 | AN20: 0 | AO20: نعناع 12 ع * 240 ق
A21: 18 | B21: 6222000908610 | C21: سنة | D21: قهوة 30 كيس * 18 ق / 25 ق | E21: كرتونة | V21: 0 | W21: سولا قهوه 10 كيلو | X21: 65.5 | AK21: 15.5 | AL21: 50 | AN21: 65.5 | AO21: سولا قهوه 10 كيلو
A22: 19 | B22: 6222000909891 | C22: سنة | D22: قهوة 30 كيس * 12قطعه | E22: كرتونة | V22: 0 | W22: قهوة 5 ك | X22: 0 | Y22: =IFERROR(IF(INDEX($G$4:$U$94,MATCH(TRIM($W22),$D$4:$D$94,0),MATCH(Y$3,$G$3:$U$3,0))=0,"",INDEX($G$4:$U$94,MATCH(TRIM($W22),$D$4:$D$94,0),MATCH(Y$3,$G$3:$U$3,0))),"") ->  | AN22: 0 | AO22: قهوة 5 ك
A23: 20 | B23: 00744 | C23: سنة | D23: زبدة 12 ع * 200 ق | E23: كرتونة | S23: 64 | V23: 64 | W23: قهوة 30 كيس * 12قطعه | X23: 0 | AN23: 0 | AO23: قهوة 30 كيس * 12قطعه
A24: 21 | B24: 6222000901642 | C24: سنة | D24: سولا زبده 10 كيلو | E24: كرتونة | T24: 18 | V24: 18 | W24: قهوة 30 كيس * 15قطعه | X24: 0 | AN24: 0 | AO24: قهوة 30 كيس * 15قطعه
A25: 22 | B25: 6222000912037 | C25: سنة | D25: زبدة 5 ك | E25: كرتونة | V25: 0 | W25: قهوة 30 كيس * 18 ق / 25 ق | X25: 0 | AN25: 0 | AO25: قهوة 30 كيس * 18 ق / 25 ق
A26: 23 | B26: 6222000917124 | C26: سنة | D26: زبدة بالشيكولاته 12 علبة * 240 ق | E26: كرتونة | T26: 64 | V26: 64 | W26: قهوة 12 كيس * 55 ق | X26: 0 | AN26: 0 | AO26: قهوة 12 كيس * 55 ق
A27: 24 | B27: 6222000918732 | C27: سنة | D27: زبدة بالشيكولاته 10 ك | E27: كرتونة | T27: 34 | V27: 34 | W27: قهوة 12 كيس * 80 ق / 90 ق | X27: 150 | AJ27: 85 | AL27: 65 | AN27: 150 | AO27: قهوة 12 كيس * 80 ق / 90 ق
A28: 25 | B28: 6222000909808 | C28: سنة | D28: زبدة 12 كيس * 80 ق / 90 ق | E28: كرتونة | V28: 0 | W28: قهوة 12 كيس * 120 ق | X28: 0 | AN28: 0 | AO28: قهوة 12 كيس * 120 ق
A29: 26 | B29: 6222000907583 | C29: سنة | D29: زبدة 30 كيس * 18 ق / 25 ق | E29: كرتونة | P29: 110 | V29: 110 | W29: قهوة 12 ع * 200 ق | X29: 0 | AN29: 0 | AO29: قهوة 12 ع * 200 ق
A30: 27 | B30: 6222000909884 | C30: سنة | D30: زبدة 30 كيس * 12قطعه | E30: كرتونة | S30: 61 | T30: 48 | V30: 109 | W30: قهوة 12 ع * 240 ق | X30: 27 | AL30: 27 | AN30: 27 | AO30: قهوة 12 ع * 240 ق
A31: 28 | B31: 6222000909884 | C31: سنة | D31: زبدة 30 كيس * 15 قطعه | E31: كرتونة | V31: 0 | W31: قهوه20كيس*150جرام | X31: 0 | AN31: 0 | AO31: قهوه20كيس*150جرام
A32: 29 | B32: 6222000905688 | C32: سنة | D32: زبدة 12 كيس * 55 قطعه | E32: كرتونة | V32: 0 | W32: سولا زبده 10 كيلو | X32: 18 | AL32: 18 | AN32: 18 | AO32: سولا زبده 10 كيلو
A33: 30 | B33: 171 | C33: سنة | D33: زبدة 12 كيس * 120 ق | E33: كرتونة | S33: 41 | U33: 45 | V33: 86 | W33: زبدة 5 ك | X33: 0 | AN33: 0 | AO33: زبدة 5 ك
A34: 31 | B34: 6222000910064 | C34: سنة | D34: زبدة 10 شنطة * 800 جم | E34: كرتونة | V34: 0 | W34: زبدة 30 كيس * 12قطعه | X34: 109 | AK34: 61 | AL34: 48 | AN34: 109 | AO34: زبدة 30 كيس * 12قطعه
A35: 32 | B35: 6222000912501 | C35: 9 أشهر | D35: عسلية 12 ع * 200 ق | E35: كرتونة | V35: 0 | W35: زبدة 30 كيس * 15 قطعه | X35: 0 | AN35: 0 | AO35: زبدة 30 كيس * 15 قطعه
A36: 33 | B36: 6222000912457 | C36: 9 أشهر | D36: عسلية 5 ك | E36: كرتونة | V36: 0 | W36: زبدة 30 كيس * 18 ق / 25 ق | X36: 110 | AH36: 110 | AN36: 110 | AO36: زبدة 30 كيس * 18 ق / 25 ق
A37: 34 | B37: 6222000901611 | C37: سنة | D37: اكلير سايب 10 كيلو | E37: كرتونة | S37: 43 | T37: 55 | V37: 98 | W37: زبدة 12 كيس * 55 قطعه | X37: 0 | AN37: 0 | AO37: زبدة 12 كيس * 55 قطعه
A38: 35 | B38: 6222000909907 | C38: سنة | D38: اكلير 30 كيس * 9 ق / 10 ق | E38: كرتونة | S38: 134 | V38: 134 | W38: زبدة 12 كيس * 80 ق / 90 ق | X38: 0 | AN38: 0 | AO38: زبدة 12 كيس * 80 ق / 90 ق
A39: 36 | B39: 6222000909907 | C39: سنة | D39: اكلير 30 كيس * 12 قطعه | E39: كرتونة | V39: 0 | W39: زبدة 12 كيس * 120 ق | X39: 86 | Y39: =IFERROR(IF(INDEX($G$4:$U$94,MATCH(TRIM($W39),$D$4:$D$94,0),MATCH(Y$3,$G$3:$U$3,0))=0,"",INDEX($G$4:$U$94,MATCH(TRIM($W39),$D$4:$D$94,0),MATCH(Y$3,$G$3:$U$3,0))),"") ->  | AK39: 41 | AM39: 45 | AN39: 86 | AO39: زبدة 12 كيس * 120 ق
A40: 37 | B40: 6222000911498 | C40: سنة | D40: اكلير سولا 5 كيلو | E40: كرتونة | V40: 0 | W40: زبدة 12 ع * 200 ق | X40: 64 | AK40: 64 | AN40: 64 | AO40: زبدة 12 ع * 200 ق
A41: 38 | B41: 6222000912778 | C41: سنة | D41: اكلير 12كيس * 65 ق / 70 ق | E41: كرتونة | V41: 0 | W41: زبدة 10 شنطة * 800 جم | X41: 0 | AN41: 0 | AO41: زبدة 10 شنطة * 800 جم
A42: 39 | B42: 6222000912778 | C42: سنة | D42: اكلير 12 كيس * 100 قطعة | E42: كرتونة | S42: 137 | V42: 137 | W42: زبدة بالشيكولاته 10 ك | X42: 34 | AL42: 34 | AN42: 34 | AO42: زبدة بالشيكولاته 10 ك
A43: 40 | B43: 6222000912822 | C43: سنة | D43: اكلير 30 كيس * 15 ق / 20 ق | E43: كرتونة | V43: 0 | W43: زبدة بالشيكولاته 30 كيس * 15 قطعه | X43: 0 | AN43: 0 | AO43: زبدة بالشيكولاته 30 كيس * 15 قطعه
A44: 41 | B44: 6222000905701 | C44: سنة | D44: اكلير 12كيس 45 ق | E44: كرتونة | S44: 220 | V44: 220 | W44: زبدة بالشيكولاته 12 كيس * 55 قطعه | X44: 0 | AN44: 0 | AO44: زبدة بالشيكولاته 12 كيس * 55 قطعه
A45: 42 | B45: 6222000912532 | C45: سنة | D45: اكلير 12 علبة * 160 ق | E45: كرتونة | V45: 0 | W45: زبدة بالشيكولاته 12 كيس * 120 ق | X45: 0 | AN45: 0 | AO45: زبدة بالشيكولاته 12 كيس * 120 ق
A46: 43 | B46: 6222000912532 | C46: سنة | D46: اكلير 12 علبة 200 ق | E46: كرتونة | S46: 35 | V46: 35 | W46: زبدة بالشيكولاته 12 علبة * 240 ق | X46: 64 | AL46: 64 | AN46: 64 | AO46: زبدة بالشيكولاته 12 علبة * 240 ق
A47: 44 | B47: 6222000901697 | C47: سنة | D47: طوفي 10 كجم | E47: كرتونة | S47: 38 | T47: 46 | U47: 55 | V47: 139 | W47: عسلية 5 ك | X47: 0 | AN47: 0 | AO47: عسلية 5 ك
A48: 45 | B48: 6222000911481 | C48: سنة | D48: طوفي بردايس 5كيلو | E48: كرتونة | V48: 0 | W48: عسلية 12 ع * 200 ق | X48: 0 | AN48: 0 | AO48: عسلية 12 ع * 200 ق
A49: 46 | B49: 6222000908276 | C49: سنة | D49: طوفي 30 كيس * 25 قطعه | E49: كرتونة | V49: 0 | W49: اكلير سايب 10 كيلو | X49: 98 | AK49: 43 | AL49: 55 | AN49: 98 | AO49: اكلير سايب 10 كيلو
A50: 47 | B50: 6222000908276 | C50: سنة | D50: طوفى 30 كيس * 28 ق | E50: كرتونة | T50: 100 | V50: 100 | W50: اكلير 30 كيس * 9 ق / 10 ق | X50: 0 | AN50: 0 | AO50: اكلير 30 كيس * 9 ق / 10 ق
A51: 48 | B51: 6222000909921 | C51: سنة | D51: طوفي 30 كيس * 12قطعه | E51: كرتونة | V51: 0 | W51: اكلير 30 كيس * 12 قطعه | X51: 0 | AN51: 0 | AO51: اكلير 30 كيس * 12 قطعه
A52: 49 | B52: 6222000909839 | C52: سنة | D52: طوفي 12 كيس * 90 ق | E52: كرتونة | T52: 11 | V52: 11 | W52: اكلير 30 كيس * 15 ق / 20 ق | X52: 0 | AN52: 0 | AO52: اكلير 30 كيس * 15 ق / 20 ق
A53: 50 | B53: 6222000905718 | C53: سنة | D53: طوفى 12كيس * 100 ق | E53: كرتونة | T53: 97 | V53: 97 | W53: اكلير 12كيس 45 ق | X53: 220 | AK53: 220 | AN53: 220 | AO53: اكلير 12كيس 45 ق
A54: 51 | B54: 6222000908825 | C54: سنة | D54: طوفى 12 ع * 200 ق | E54: كرتونة | V54: 0 | W54: اكلير 12كيس * 65 ق / 70 ق | X54: 0 | AN54: 0 | AO54: اكلير 12كيس * 65 ق / 70 ق
A55: 52 | B55: 6222000912556 | C55: سنة | D55: طوفي 12 علبه * 240 ق | E55: كرتونة | S55: 29 | T55: 45 | V55: 74 | W55: اكلير 12 كيس * 100 قطعة | X55: 137 | AK55: 137 | AN55: 137 | AO55: اكلير 12 كيس * 100 قطعة
A56: 53 | B56: 6222000907637 | C56: سنة | D56: شيكولاته بوتيك 16 علبه * 50 قطعة | E56: كرتونة | O56: 6 | V56: 6 | W56: اكلير 12 علبة * 160 ق | X56: 0 | Y56: =IFERROR(IF(INDEX($G$4:$U$94,MATCH(TRIM($W56),$D$4:$D$94,0),MATCH(Y$3,$G$3:$U$3,0))=0,"",INDEX($G$4:$U$94,MATCH(TRIM($W56),$D$4:$D$94,0),MATCH(Y$3,$G$3:$U$3,0))),"") ->  | AN56: 0 | AO56: اكلير 12 علبة * 160 ق
A57: 54 | B57: 6222000903295 | C57: سنة | D57: شيكولاته بوتيك 6 علبه * 1.25 كيلو | E57: كرتونة | V57: 0 | W57: اكلير 12 علبة 200 ق | X57: 35 | AK57: 35 | AN57: 35 | AO57: اكلير 12 علبة 200 ق
A58: 55 | B58: 6222000912006 | C58: سنة | D58: شيكولاته بوتيك حليب 4 ك | E58: كرتونة | V58: 0 | W58: طوفي 10 كجم | X58: 139 | AK58: 38 | AL58: 46 | AM58: 55 | AN58: 139 | AO58: طوفي 10 كجم
A59: 56 | B59: 6222000911993 | C59: سنة | D59: شيكولاته بوتيك كراميل 4 ك | E59: كرتونة | V59: 0 | W59: طوفي 30 كيس * 12قطعه | X59: 0 | AN59: 0 | AO59: طوفي 30 كيس * 12قطعه
A60: 57 | B60: 6222000912013 | C60: سنة | D60: شيكولاته بوتيك بندق 4 ك | E60: كرتونة | V60: 0 | W60: طوفي 30 كيس * 25 قطعه | X60: 0 | AN60: 0 | AO60: طوفي 30 كيس * 25 قطعه
A61: 58 | B61: 6222000964197 | C61: سنة | D61: شيكوهند سايب 10 كجم | E61: كرتونة | V61: 0 | W61: طوفى 30 كيس * 28 ق | X61: 100 | AL61: 100 | AN61: 100 | AO61: طوفى 30 كيس * 28 ق
A62: 59 | B62: 6222000906630 | C62: سنة | D62: سوفت شيكوهند 5 ك | E62: كرتونة | T62: 40 | V62: 40 | W62: طوفي 12 كيس * 90 ق | X62: 11 | AL62: 11 | AN62: 11 | AO62: طوفي 12 كيس * 90 ق
A63: 60 | B63: 6222000612549 | C63: سنة | D63: شيكوهند سوفت 12 ع * 100 ق | E63: كرتونة | V63: 0 | W63: طوفى 12كيس * 100 ق | X63: 97 | AL63: 97 | AN63: 97 | AO63: طوفى 12كيس * 100 ق
A64: 61 | B64: 6222000915243 | C64: سنة | D64: بار شيكوهند 3 ك | E64: كرتونة | U64: 50 | V64: 50 | W64: طوفى 12 ع * 200 ق | X64: 0 | AN64: 0 | AO64: طوفى 12 ع * 200 ق
A65: 62 | B65: 6222000902519 | C65: 9 أشهر | D65: ويفر ايليت مغطس بنى 12 *12 | E65: كرتونة | V65: 0 | W65: طوفي 12 علبه * 240 ق | X65: 74 | AK65: 29 | AL65: 45 | AN65: 74 | AO65: طوفي 12 علبه * 240 ق
A66: 63 | B66: 6222000902557 | C66: 9 أشهر | D66: ويفر ايليت مغطس ابيض 12 * 12 | E66: كرتونة | V66: 0 | W66: طوفي شيكولاته 12 كيس * 25 ق | X66: 0 | AN66: 0 | AO66: طوفي شيكولاته 12 كيس * 25 ق
A67: 64 | B67: 6222000902564 | C67: 9 أشهر | D67: ويفر ايليت مغطس فراولة 12*12 | E67: كرتونة | V67: 0 | W67: طوفي شيكولاته 12 علبة * 100 ق | X67: 0 | AN67: 0 | AO67: طوفي شيكولاته 12 علبة * 100 ق
A68: 65 | B68: 6222000910200 | C68: 9 أشهر | D68: ايليت ماكس سادة ش 12 باكو 6 قطع | E68: كرتونة | S68: 263 | V68: 263 | W68: طوفي زبدة 12 كيس * 25 ق | X68: 0 | AN68: 0 | AO68: طوفي زبدة 12 كيس * 25 ق
A69: 66 | B69: 6222000910514 | C69: 9 أشهر | D69: ايليت ماكس سادة فانيليا 12 باكو * 6 قطع | E69: كرتونة | S69: 215 | V69: =SUM(G69:U69) -> 215 | W69: طوفي زبدة 12 علبة * 100 ق | X69: =AN69 -> 0 | AN69: =SUM(Y69:AM69) -> 0 | AO69: =TRIM(CLEAN(SUBSTITUTE(SUBSTITUTE(SUBSTITUTE(W69,CHAR(10),""),CHAR(13),""),CHAR(9),""))) -> طوفي زبدة 12 علبة * 100 ق
A70: 67 | B70: 6222000909976 | C70: 9 أشهر | D70: ويفر مربع 3 كيلو ايليت ابيض | E70: كرتونة | Q70: 74 | T70: 50 | V70: 124 | W70: شيكولاته بوتيك 16 علبه * 50 قطعة | X70: 6 | AG70: 6 | AN70: 6 | AO70: شيكولاته بوتيك 16 علبه * 50 قطعة
A71: 68 | B71: 6222000909983 | C71: 9 أشهر | D71: ويفر مربع 3 كيلو ايليت شيكولاته | E71: كرتونة | V71: 0 | W71: شيكولاته بوتيك 6 علبه * 1.25 كيلو | X71: 0 | AN71: 0 | AO71: شيكولاته بوتيك 6 علبه * 1.25 كيلو
A72: 69 | B72: 6222000909969 | C72: 9 أشهر | D72: ويفر مربع 3 كيلو ايليت فراوله | E72: كرتونة | Q72: 69 | T72: 50 | V72: 119 | W72: شيكولاته بوتيك حليب 4 ك | X72: 0 | AN72: 0 | AO72: شيكولاته بوتيك حليب 4 ك
A73: 70 | B73: 6888000909953 | C73: 9 أشهر | D73: ويفر مربع 3 كيلو ايليت جوز هند | E73: كرتونة | V73: 0 | W73: شيكولاته بوتيك كراميل 4 ك | X73: 0 | Y73: =IFERROR(IF(INDEX($G$4:$U$94,MATCH(TRIM($W73),$D$4:$D$94,0),MATCH(Y$3,$G$3:$U$3,0))=0,"",INDEX($G$4:$U$94,MATCH(TRIM($W73),$D$4:$D$94,0),MATCH(Y$3,$G$3:$U$3,0))),"") ->  | AN73: 0 | AO73: شيكولاته بوتيك كراميل 4 ك
A74: 71 | B74: 622200097116 | C74: 9 أشهر | D74: ويفر فرحه 5 كيلو | E74: كرتونة | Q74: 36 | V74: 36 | W74: شيكولاته بوتيك بندق 4 ك | X74: 0 | AN74: 0 | AO74: شيكولاته بوتيك بندق 4 ك
A75: 72 | B75: 6222000912372 | C75: 9 أشهر | D75: ويفر ايليت مربع بايتس 3 ك بني | E75: كرتونة | V75: 0 | W75: شيكوهند سايب 10 كجم | X75: 0 | AN75: 0 | AO75: شيكوهند سايب 10 كجم
A76: 73 | B76: 6222000912488 | C76: 9 أشهر | D76: بسكوت اكشن سادة شاي 6 ع * 12 ق | E76: كرتونة | V76: 0 | W76: سوفت شيكوهند 5 ك | X76: 40 | AL76: 40 | AN76: 40 | AO76: سوفت شيكوهند 5 ك
A77: 74 | B77: 6222000914383 | C77: 9 أشهر | D77: بسكوت اكشن سادة شاي 6 ع * 12 ق ( نباتى ) | E77: كرتونة | V77: 0 | W77: شيكوهند سوفت 12 كيس * 28 ق | X77: 0 | AN77: 0 | AO77: شيكوهند سوفت 12 كيس * 28 ق
A78: 75 | B78: 6222000916165 | C78: 9 أشهر | D78: ويفر اكشن مغطس بنى 12ع * 12 ق ( 5 جنية ) | E78: كرتونة | P78: 28 | V78: 28 | W78: شيكوهند سوفت 12 كيس * 60 ق | X78: 0 | AN78: 0 | AO78: شيكوهند سوفت 12 كيس * 60 ق
A79: 76 | B79: 6222000916172 | C79: 9 أشهر | D79: ويفر اكشن مغطس أبيض 12ع * 12 ق ( 5 جنية ) | E79: كرتونة | V79: 0 | W79: شيكوهند سوفت 12 ع * 100 ق | X79: 0 | AN79: 0 | AO79: شيكوهند سوفت 12 ع * 100 ق
A80: 77 | B80: 2810 | C80: 9 أشهر | D80: ويفر اكشن مغطس أبيض 8ع * 12 ق ( 5 جنية ) | E80: كرتونة | V80: 0 | W80: بار شيكوهند 3 ك | X80: 50 | AM80: 50 | AN80: 50 | AO80: بار شيكوهند 3 ك
A81: 78 | B81: 6222000912365 | C81: 9 أشهر | D81: بايتس مربع 6ع * 50ق بنى | E81: كرتونة | P81: 29 | V81: 29 | W81: ويفر ايليت مغطس بنى 12 *12 | X81: 0 | AN81: 0 | AO81: ويفر ايليت مغطس بنى 12 *12
A82: 79 | B82: 6222000902083 | C82: 9 أشهر | D82: بايتس مربع 6 ع * 50 ق ابيض | E82: كرتونة | V82: 0 | W82: ويفر ايليت مغطس ابيض 12 * 12 | X82: 0 | AN82: 0 | AO82: ويفر ايليت مغطس ابيض 12 * 12
A83: 80 | B83: 6222000913904 | C83: 9 أشهر | D83: بايتس مربع 6 ع * 50 ق فراولة | E83: كرتونة | V83: 0 | W83: ويفر ايليت مغطس فراولة 12*12 | X83: 0 | AN83: 0 | AO83: ويفر ايليت مغطس فراولة 12*12
A84: 81 | B84: 6222000916738 | C84: 9 أشهر | D84: ويفر بوتيك مربع 9 كيس * 500 جم | E84: كرتونة | V84: 0 | W84: ايليت ماكس سادة ش 12 باكو 6 قطع | X84: 263 | AK84: 263 | AN84: 263 | AO84: ايليت ماكس سادة ش 12 باكو 6 قطع
A85: 82 | B85: 002797 | C85: 4 أشهر | D85: كورن عائلي 15 كيس | E85: كرتونة | S85: 211 | V85: =SUM(G85:U85) -> 211 | W85: ايليت ماكس سادة فانيليا 12 باكو * 6 قطع | X85: 0 | AN85: 0 | AO85: ايليت ماكس سادة فانيليا 12 باكو * 6 قطع
A86: 83 | B86: 002796 | C86: 6 أشهر | D86: فاير فنجرز 15 كيس | E86: كرتونة | S86: 254 | V86: 254 | W86: ويفر مربع 3 كيلو ايليت ابيض | X86: 0 | AN86: 0 | AO86: ويفر مربع 3 كيلو ايليت ابيض
A87: 84 | B87: 001766 | C87: 6 أشهر | D87: اسبيشيال أطعم 15 كيس | E87: كرتونة | Q87: 213 | V87: 213 | W87: ويفر مربع 3 كيلو ايليت شيكولاته | X87: 0 | AN87: 0 | AO87: ويفر مربع 3 كيلو ايليت شيكولاته
A88: 85 | B88: EG-670026743-3002 | C88: 6 أشهر | D88: شيل أوت شيبس 15 كيس سعر الكيس 10 جنية | E88: كرتونة | Q88: 2 | S88: 187 | V88: 189 | W88: ويفر مربع 3 كيلو ايليت فراوله | X88: 0 | AN88: 0 | AO88: ويفر مربع 3 كيلو ايليت فراوله
A89: 86 | B89: 6224001574221 | C89: سنة | D89: زى كولا مشروب غازى 275 حلى | E89: كرتونة | P89: 254 | S89: 700 | V89: 954 | W89: ويفر مربع 3 كيلو ايليت جوز هند | X89: 0 | AN89: 0 | AO89: ويفر مربع 3 كيلو ايليت جوز هند
A90: 87 | B90: 2798 | C90: 9 أشهر | D90: اهلا بالعيد 8 كيس * 660 جم | E90: كرتونة | V90: 0 | W90: ويفر فرحه 5 كيلو | X90: 36 | Y90: =IFERROR(IF(INDEX($G$4:$U$94,MATCH(TRIM($W90),$D$4:$D$94,0),MATCH(Y$3,$G$3:$U$3,0))=0,"",INDEX($G$4:$U$94,MATCH(TRIM($W90),$D$4:$D$94,0),MATCH(Y$3,$G$3:$U$3,0))),"") ->  | AI90: 36 | AN90: 36 | AO90: ويفر فرحه 5 كيلو
A91: 88 | B91: 00695 | C91: سنة | D91: قهوه20كيس*150جرام | E91: كرتونة | V91: 0 | W91: ويفر ايليت مربع بايتس 3 ك بني | X91: 0 | AN91: 0 | AO91: ويفر ايليت مربع بايتس 3 ك بني
A92: 89 | B92: 6222000912518 | C92: سنتان | D92: نعناع 12 ع * 240 ق | E92: كرتونة | V92: 0 | W92: بسكوت اكشن سادة شاي 6 ع * 12 ق | X92: 0 | AN92: 0 | AO92: بسكوت اكشن سادة شاي 6 ع * 12 ق
A93: 90 | B93: 002827 | D93: سولا فواكة فلوباك 10 ك | E93: كرتونة | T93: 55 | V93: 55 | W93: بسكوت اكشن سادة شاي 6 ع * 12 ق ( نباتى ) | X93: 0 | AN93: 0 | AO93: بسكوت اكشن سادة شاي 6 ع * 12 ق ( نباتى )
A94: 91 | V94: 0 | W94: ويفر اكشن مغطس بنى 12ع * 12 ق ( 5 جنية ) | X94: 28 | AH94: 28 | AN94: 28 | AO94: ويفر اكشن مغطس بنى 12ع * 12 ق ( 5 جنية )
A95: 92 | V95: 0 | W95: ويفر اكشن مغطس أبيض 12ع * 12 ق ( 5 جنية ) | X95: 0 | AN95: 0 | AO95: ويفر اكشن مغطس أبيض 12ع * 12 ق ( 5 جنية )
A96: 93 | V96: 0 | W96: ويفر اكشن مغطس أبيض 8ع * 12 ق ( 5 جنية ) | X96: 0 | AN96: 0 | AO96: ويفر اكشن مغطس أبيض 8ع * 12 ق ( 5 جنية )
A97: 94 | V97: 0 | W97: بايتس مربع 6ع * 50ق بنى | X97: 0 | AN97: 0 | AO97: بايتس مربع 6ع * 50ق بنى
A98: 95 | V98: 0 | W98: بايتس مربع 6 ع * 50 ق ابيض | X98: 0 | AN98: 0 | AO98: بايتس مربع 6 ع * 50 ق ابيض
A99: 96 | V99: 0 | W99: ويفر 4 علبه * 50 قطعه ابيض بايتس | X99: 0 | AN99: 0 | AO99: ويفر 4 علبه * 50 قطعه ابيض بايتس
A100: 97 | V100: 0 | W100: ويفر 5 علبه * 50 قطعه ابيض بايتس | X100: 0 | AN100: 0 | AO100: ويفر 5 علبه * 50 قطعه ابيض بايتس
A101: 98 | V101: 0 | W101: ويفر 7 علبه * 50 قطعه ابيض بايتس | X101: 0 | AN101: 0 | AO101: ويفر 7 علبه * 50 قطعه ابيض بايتس
A102: 99 | V102: 0 | W102: بايتس مربع 6 ع * 50 ق فراولة | X102: 0 | AN102: 0 | AO102: بايتس مربع 6 ع * 50 ق فراولة
A103: 100 | V103: 0 | W103: ويفر 4 علبه * 50 قطعه فراولة بايتس | X103: 0 | AN103: 0 | AO103: ويفر 4 علبه * 50 قطعه فراولة بايتس
A104: 101 | V104: 0 | W104: ويفر بوتيك مربع 9 كيس * 500 جم | X104: 0 | AN104: 0 | AO104: ويفر بوتيك مربع 9 كيس * 500 جم
A105: 102 | V105: 0 | W105: ايليت عرض خاص | X105: 0 | AN105: 0 | AO105: ايليت عرض خاص
A106: 103 | V106: 0 | W106: اهلا بالعيد 8 كيس * 660 جم | X106: 0 | AN106: 0 | AO106: اهلا بالعيد 8 كيس * 660 جم
A107: 104 | V107: 0 | W107: كورن عائلي 15 كيس | X107: 211 | Y107: =IFERROR(IF(INDEX($G$4:$U$94,MATCH(TRIM($W107),$D$4:$D$94,0),MATCH(Y$3,$G$3:$U$3,0))=0,"",INDEX($G$4:$U$94,MATCH(TRIM($W107),$D$4:$D$94,0),MATCH(Y$3,$G$3:$U$3,0))),"") ->  | AK107: 211 | AN107: 211 | AO107: كورن عائلي 15 كيس
A108: 105 | V108: 0 | W108: فاير فنجرز 15 كيس | X108: 254 | AK108: 254 | AN108: 254 | AO108: فاير فنجرز 15 كيس
A109: 106 | V109: 0 | W109: اسبيشيال أطعم 15 كيس | X109: 0 | AN109: 0 | AO109: اسبيشيال أطعم 15 كيس
A110: 107 | V110: 0 | W110: شيل أوت شيبس 15 كيس سعر الكيس 10 جنية | X110: 189 | AI110: 2 | AK110: 187 | AN110: 189 | AO110: شيل أوت شيبس 15 كيس سعر الكيس 10 جنية
V111: 0 | W111: زى كولا مشروب غازى 275 حلى | X111: 954 | AH111: 254 | AK111: 700 | AN111: 954 | AO111: زى كولا مشروب غازى 275 حلى
A112: 108 | V112: 0 | W112: زبدة 12 علبة * 240 ق | X112: 0 | AN112: 0 | AO112: زبدة 12 علبة * 240 ق
A113: الاجمالى | F113: =SUM(F4:F112) -> 0 | G113: 0 | H113: 0 | I113: 0 | J113: 0 | K113: 0 | L113: 0 | M113: 0 | N113: 59 | O113: 6 | P113: 421 | Q113: 416 | R113: 85 | S113: 2723.5 | T113: 1012 | U113: =SUM(U4:U112) -> 405 | V113: =SUM(V4:V111) -> 5127.5 | X113: =SUM(X4:X112) -> 4091.5 | Y113: =SUM(Y4:Y112) -> 0 | Z113: =SUM(Z4:Z112) -> 0 | AA113: 0 | AB113: 0 | AC113: 0 | AD113: 0 | AE113: 0 | AF113: 59 | AG113: 6 | AH113: 392 | AI113: 60 | AJ113: 85 | AK113: 2322.5 | AL113: 862 | AM113: 305 | AN113: =SUM(AN4:AN112) -> 4091.5
AH115: =P113-AH113 -> 29 | AI115: =Q113-AI113 -> 356 | AK115: =S113-AK113 -> 401 | AL115: =T113-AL113 -> 150
V117: =V113-AN113 -> 1036

Sheet الرصيد 3 (3)
A1: رصيد توكيل ( توكيل نجع حمادى ) عن يوم ( الخميس 9/13 ) | W1: شيت به معادلات عادية
A2: م | B2: الكود | C2: مدة الصلاحية | D2: الصنف | E2: الوحدة | F2: الرصيد الدفترى بالكرتونة | V2: الرصيد الفعلى بالكرتونة | W2: تنسيق الارقام مع اسم الصنف والتاريخ المقابل لها | AN2: الرصيد الفعلى بالكرتونة
G3: 2024-07-01 | H3: 2024-08-01 | I3: 2024-09-01 | J3: 2024-10-01 | K3: 2024-11-01 | L3: 2024-12-01 | M3: 2025-01-01 | N3: 2025-02-01 | O3: 2025-03-01 | P3: 2025-04-01 | Q3: 2025-05-01 | R3: 2025-06-01 | S3: 2025-07-01 | T3: 2025-08-01 | U3: 2025-09-01 | W3: اسم الصنف | X3: الرصيد | Y3: 2024-07-01 | Z3: 2024-08-01 | AA3: 2024-09-01 | AB3: 2024-10-01 | AC3: 2024-11-01 | AD3: 2024-12-01 | AE3: 2025-01-01 | AF3: 2025-02-01 | AG3: 2025-03-01 | AH3: 2025-04-01 | AI3: 2025-05-01 | AJ3: 2025-06-01 | AK3: 2025-07-01 | AL3: 2025-08-01 | AM3: 2025-09-01 | AO3: =IFERROR(IF(INDEX($G$4:$U$94,MATCH(SUBSTITUTE(TRIM($W4),CHAR(160)," "),SUBSTITUTE(TRIM($D$4:$D$94),CHAR(160)," "),0),MATCH(Y$3,$G$3:$U$3,0))=0,"",INDEX($G$4:$U$94,MATCH(SUBSTITUTE(TRIM($W4),CHAR(160)," "),SUBSTITUTE(TRIM($D$4:$D$94),CHAR(160)," "),0),MATCH(Y$3,$G$3:$U$3,0))),"") -> 
A4: 1 | B4: 6222000901529 | C4: سنتان | D4: سوبر فينا 10 كيلو | E4: كرتونة | S4: 52 | T4: 50 | U4: 100 | V4: =SUM(G4:U4) -> 202 | W4: سوبر فينا 10 كيلو | X4: =AN4 -> 0 | Y4: =IFERROR(INDEX($G$4:$U$94,MATCH(TRUE,EXACT(TRIM(CLEAN(SUBSTITUTE(SUBSTITUTE(SUBSTITUTE($W4,CHAR(10),""),CHAR(13),""),CHAR(9),""))),TRIM(CLEAN(SUBSTITUTE(SUBSTITUTE(SUBSTITUTE($D$4:$D$94,CHAR(10),""),CHAR(13),""),CHAR(9),"")))),0),MATCH(Y$3,$G$3:$U$3,0)),"") ->  | Z4: =IFERROR(INDEX($G$4:$U$94,MATCH(TRUE,EXACT(TRIM(CLEAN(SUBSTITUTE(SUBSTITUTE(SUBSTITUTE($W4,CHAR(10),""),CHAR(13),""),CHAR(9),""))),TRIM(CLEAN(SUBSTITUTE(SUBSTITUTE(SUBSTITUTE($D$4:$D$94,CHAR(10),""),CHAR(13),""),CHAR(9),"")))),0),MATCH(Z$3,$G$3:$U$3,0)),"") ->  | AN4: =SUM(Y4:AM4) -> 0 | AO4: =TRIM(CLEAN(SUBSTITUTE(SUBSTITUTE(SUBSTITUTE(W4,CHAR(10),""),CHAR(13),""),CHAR(9),""))) -> سوبر فينا 10 كيلو
A5: 2 | B5: 6222000901536 | C5: سنتان | D5: سوبر فينا 10 كيلو نعناع | E5: كرتونة | S5: 24 | U5: 155 | V5: =SUM(G5:U5) -> 179 | W5: سولا فواكة فلوباك 10 ك | X5: =AN5 -> 55 | Y5: =IFERROR(IF(INDEX($G$4:$U$94,MATCH(TRIM($W5),$D$4:$D$94,0),MATCH(Y$3,$G$3:$U$3,0))=0,"",INDEX($G$4:$U$94,MATCH(TRIM($W5),$D$4:$D$94,0),MATCH(Y$3,$G$3:$U$3,0))),"") ->  | AL5: 55 | AN5: =SUM(Y5:AM5) -> 55 | AO5: =TRIM(CLEAN(SUBSTITUTE(SUBSTITUTE(SUBSTITUTE(W5,CHAR(10),""),CHAR(13),""),CHAR(9),""))) -> سولا فواكة فلوباك 10 ك
A6: 3 | B6: 6222000911733 | C6: سنتان | D6: نعناع 12كيس 50 ق 4جم | E6: كرتونة | T6: 3 | V6: 3 | W6: سولا فواكة 5 ك | X6: 0 | AN6: 0 | AO6: سولا فواكة 5 ك
A7: 4 | B7: 6222000911764 | C7: سنتان | D7: سولا فواكه 12 كيس * 50 ق | E7: كرتونة | V7: 0 | W7: سولا فواكه 30 كيس * 28 ق | X7: 0 | AN7: 0 | AO7: سولا فواكه 30 كيس * 28 ق
A8: 5 | B8: 6222000917773 | C8: سنتان | D8: سولا فواكه 30 كيس * 28 ق | E8: كرتونة | V8: 0 | W8: سولا فواكه 12 كيس * 50 ق | X8: 0 | AN8: 0 | AO8: سولا فواكه 12 كيس * 50 ق
A9: 6 | B9: 6222000917780 | C9: سنتان | D9: سولا فواكه 12 كيس * 100 ق | E9: كرتونة | T9: 104 | V9: 104 | W9: سولا فواكه 12 كيس * 100 ق | X9: 104 | AL9: 104 | AN9: 104 | AO9: سولا فواكه 12 كيس * 100 ق
A10: 7 | B10: 6222000916295 | C10: سنتان | D10: سولا فواكة 6 كيس * 800 جم | E10: كرتونة | V10: 0 | W10: سولا ف 12 ع * 200 ق | X10: 0 | AN10: 0 | AO10: سولا ف 12 ع * 200 ق
A11: 8 | B11: 6222000912525 | C11: سنتان | D11: سولا ف 12 ع * 200 ق | E11: كرتونة | V11: 0 | W11: سولا ف 12 ع * 240 ق | X11: 0 | AN11: 0 | AO11: سولا ف 12 ع * 240 ق
A12: 9 | B12: 6222000912518 | C12: سنتان | D12: سولا نعناع 12 ع * 200 ق | E12: كرتونة | Q12: 22 | V12: 22 | W12: سولا فواكة 6 كيس * 800 جم | X12: 0 | AN12: 0 | AO12: سولا فواكة 6 كيس * 800 جم
A13: 10 | B13: 6222000912525 | C13: سنتان | D13: سولا ف 12 ع * 240 ق | E13: كرتونة | V13: 0 | W13: سوبر فينا 10 كيلو نعناع | X13: 179 | AK13: 24 | AM13: 155 | AN13: 179 | AO13: سوبر فينا 10 كيلو نعناع
A14: 11 | B14: 6222000908566 | C14: سنتان | D14: سولا فواكة 5 ك | E14: كرتونة | V14: 0 | W14: سولا نعناع فلوباك 10 ك | X14: 0 | AN14: 0 | AO14: سولا نعناع فلوباك 10 ك
A15: 12 | B15: 6222000908573 | C15: سنتان | D15: سولا نعناع 5 ك | E15: كرتونة | N15: 59 | V15: 59 | W15: سولا نعناع 5 ك | X15: 59 | AF15: 59 | AN15: 59 | AO15: سولا نعناع 5 ك
A16: 13 | B16: 00743 | C16: سنة | D16: قهوة 12 ع * 200 ق | E16: كرتونة | V16: 0 | W16: سولا نعناع 30 كيس * 28 ق | X16: 0 | AN16: 0 | AO16: سولا نعناع 30 كيس * 28 ق
A17: 14 | B17: 6222000917452 | C17: سنة | D17: قهوة 12 ع * 240 ق | E17: كرتونة | T17: 27 | V17: 27 | W17: نعناع 12كيس 50 ق 4جم | X17: 3 | AL17: 3 | AN17: 3 | AO17: نعناع 12كيس 50 ق 4جم
A18: 15 | B18: 6222000901758 | C18: سنة | D18: سولا قهوه 10 كيلو | E18: كرتونة | S18: 15.5 | T18: 50 | V18: 65.5 | W18: سولا نعناع 12 كيس * 100 ق | X18: 0 | AN18: 0 | AO18: سولا نعناع 12 كيس * 100 ق
A19: 16 | B19: 6222000912020 | C19: سنة | D19: قهوة 5 ك | E19: كرتونة | V19: 0 | W19: سولا نعناع 12 ع * 200 ق | X19: 22 | AI19: 22 | AN19: 22 | AO19: سولا نعناع 12 ع * 200 ق
A20: 17 | B20: 6222000909815 | C20: سنة | D20: قهوة 12 كيس * 80 ق / 90 ق | E20: كرتونة | R20: 85 | T20: 65 | V20: 150 | W20: نعناع 12 ع * 240 ق | X20: 0 | AN20: 0 | AO20: نعناع 12 ع * 240 ق
A21: 18 | B21: 6222000908610 | C21: سنة | D21: قهوة 30 كيس * 18 ق / 25 ق | E21: كرتونة | V21: 0 | W21: سولا قهوه 10 كيلو | X21: 65.5 | AK21: 15.5 | AL21: 50 | AN21: 65.5 | AO21: سولا قهوه 10 كيلو
A22: 19 | B22: 6222000909891 | C22: سنة | D22: قهوة 30 كيس * 12قطعه | E22: كرتونة | V22: 0 | W22: قهوة 5 ك | X22: 0 | Y22: =IFERROR(IF(INDEX($G$4:$U$94,MATCH(TRIM($W22),$D$4:$D$94,0),MATCH(Y$3,$G$3:$U$3,0))=0,"",INDEX($G$4:$U$94,MATCH(TRIM($W22),$D$4:$D$94,0),MATCH(Y$3,$G$3:$U$3,0))),"") ->  | AN22: 0 | AO22: قهوة 5 ك
A23: 20 | B23: 00744 | C23: سنة | D23: زبدة 12 ع * 200 ق | E23: كرتونة | S23: 64 | V23: 64 | W23: قهوة 30 كيس * 12قطعه | X23: 0 | AN23: 0 | AO23: قهوة 30 كيس * 12قطعه
A24: 21 | B24: 6222000901642 | C24: سنة | D24: سولا زبده 10 كيلو | E24: كرتونة | T24: 18 | V24: 18 | W24: قهوة 30 كيس * 15قطعه | X24: 0 | AN24: 0 | AO24: قهوة 30 كيس * 15قطعه
A25: 22 | B25: 6222000912037 | C25: سنة | D25: زبدة 5 ك | E25: كرتونة | V25: 0 | W25: قهوة 30 كيس * 18 ق / 25 ق | X25: 0 | AN25: 0 | AO25: قهوة 30 كيس * 18 ق / 25 ق
A26: 23 | B26: 6222000917124 | C26: سنة | D26: زبدة بالشيكولاته 12 علبة * 240 ق | E26: كرتونة | T26: 64 | V26: 64 | W26: قهوة 12 كيس * 55 ق | X26: 0 | AN26: 0 | AO26: قهوة 12 كيس * 55 ق
A27: 24 | B27: 6222000918732 | C27: سنة | D27: زبدة بالشيكولاته 10 ك | E27: كرتونة | T27: 34 | V27: 34 | W27: قهوة 12 كيس * 80 ق / 90 ق | X27: 150 | AJ27: 85 | AL27: 65 | AN27: 150 | AO27: قهوة 12 كيس * 80 ق / 90 ق
A28: 25 | B28: 6222000909808 | C28: سنة | D28: زبدة 12 كيس * 80 ق / 90 ق | E28: كرتونة | V28: 0 | W28: قهوة 12 كيس * 120 ق | X28: 0 | AN28: 0 | AO28: قهوة 12 كيس * 120 ق
A29: 26 | B29: 6222000907583 | C29: سنة | D29: زبدة 30 كيس * 18 ق / 25 ق | E29: كرتونة | P29: 110 | V29: 110 | W29: قهوة 12 ع * 200 ق | X29: 0 | AN29: 0 | AO29: قهوة 12 ع * 200 ق
A30: 27 | B30: 6222000909884 | C30: سنة | D30: زبدة 30 كيس * 12قطعه | E30: كرتونة | S30: 61 | T30: 48 | V30: 109 | W30: قهوة 12 ع * 240 ق | X30: 27 | AL30: 27 | AN30: 27 | AO30: قهوة 12 ع * 240 ق
A31: 28 | B31: 6222000909884 | C31: سنة | D31: زبدة 30 كيس * 15 قطعه | E31: كرتونة | V31: 0 | W31: قهوه20كيس*150جرام | X31: 0 | AN31: 0 | AO31: قهوه20كيس*150جرام
A32: 29 | B32: 6222000905688 | C32: سنة | D32: زبدة 12 كيس * 55 قطعه | E32: كرتونة | V32: 0 | W32: سولا زبده 10 كيلو | X32: 18 | AL32: 18 | AN32: 18 | AO32: سولا زبده 10 كيلو
A33: 30 | B33: 171 | C33: سنة | D33: زبدة 12 كيس * 120 ق | E33: كرتونة | S33: 41 | U33: 45 | V33: 86 | W33: زبدة 5 ك | X33: 0 | AN33: 0 | AO33: زبدة 5 ك
A34: 31 | B34: 6222000910064 | C34: سنة | D34: زبدة 10 شنطة * 800 جم | E34: كرتونة | V34: 0 | W34: زبدة 30 كيس * 12قطعه | X34: 109 | AK34: 61 | AL34: 48 | AN34: 109 | AO34: زبدة 30 كيس * 12قطعه
A35: 32 | B35: 6222000912501 | C35: 9 أشهر | D35: عسلية 12 ع * 200 ق | E35: كرتونة | V35: 0 | W35: زبدة 30 كيس * 15 قطعه | X35: 0 | AN35: 0 | AO35: زبدة 30 كيس * 15 قطعه
A36: 33 | B36: 6222000912457 | C36: 9 أشهر | D36: عسلية 5 ك | E36: كرتونة | V36: 0 | W36: زبدة 30 كيس * 18 ق / 25 ق | X36: 110 | AH36: 110 | AN36: 110 | AO36: زبدة 30 كيس * 18 ق / 25 ق
A37: 34 | B37: 6222000901611 | C37: سنة | D37: اكلير سايب 10 كيلو | E37: كرتونة | S37: 43 | T37: 55 | V37: 98 | W37: زبدة 12 كيس * 55 قطعه | X37: 0 | AN37: 0 | AO37: زبدة 12 كيس * 55 قطعه
A38: 35 | B38: 6222000909907 | C38: سنة | D38: اكلير 30 كيس * 9 ق / 10 ق | E38: كرتونة | S38: 134 | V38: 134 | W38: زبدة 12 كيس * 80 ق / 90 ق | X38: 0 | AN38: 0 | AO38: زبدة 12 كيس * 80 ق / 90 ق
A39: 36 | B39: 6222000909907 | C39: سنة | D39: اكلير 30 كيس * 12 قطعه | E39: كرتونة | V39: 0 | W39: زبدة 12 كيس * 120 ق | X39: 86 | Y39: =IFERROR(IF(INDEX($G$4:$U$94,MATCH(TRIM($W39),$D$4:$D$94,0),MATCH(Y$3,$G$3:$U$3,0))=0,"",INDEX($G$4:$U$94,MATCH(TRIM($W39),$D$4:$D$94,0),MATCH(Y$3,$G$3:$U$3,0))),"") ->  | AK39: 41 | AM39: 45 | AN39: 86 | AO39: زبدة 12 كيس * 120 ق
A40: 37 | B40: 6222000911498 | C40: سنة | D40: اكلير سولا 5 كيلو | E40: كرتونة | V40: 0 | W40: زبدة 12 ع * 200 ق | X40: 64 | AK40: 64 | AN40: 64 | AO40: زبدة 12 ع * 200 ق
A41: 38 | B41: 6222000912778 | C41: سنة | D41: اكلير 12كيس * 65 ق / 70 ق | E41: كرتونة | V41: 0 | W41: زبدة 10 شنطة * 800 جم | X41: 0 | AN41: 0 | AO41: زبدة 10 شنطة * 800 جم
A42: 39 | B42: 6222000912778 | C42: سنة | D42: اكلير 12 كيس * 100 قطعة | E42: كرتونة | S42: 137 | V42: 137 | W42: زبدة بالشيكولاته 10 ك | X42: 34 | AL42: 34 | AN42: 34 | AO42: زبدة بالشيكولاته 10 ك
A43: 40 | B43: 6222000912822 | C43: سنة | D43: اكلير 30 كيس * 15 ق / 20 ق | E43: كرتونة | V43: 0 | W43: زبدة بالشيكولاته 30 كيس * 15 قطعه | X43: 0 | AN43: 0 | AO43: زبدة بالشيكولاته 30 كيس * 15 قطعه
A44: 41 | B44: 6222000905701 | C44: سنة | D44: اكلير 12كيس 45 ق | E44: كرتونة | S44: 220 | V44: 220 | W44: زبدة بالشيكولاته 12 كيس * 55 قطعه | X44: 0 | AN44: 0 | AO44: زبدة بالشيكولاته 12 كيس * 55 قطعه
A45: 42 | B45: 6222000912532 | C45: سنة | D45: اكلير 12 علبة * 160 ق | E45: كرتونة | V45: 0 | W45: زبدة بالشيكولاته 12 كيس * 120 ق | X45: 0 | AN45: 0 | AO45: زبدة بالشيكولاته 12 كيس * 120 ق
A46: 43 | B46: 6222000912532 | C46: سنة | D46: اكلير 12 علبة 200 ق | E46: كرتونة | S46: 35 | V46: 35 | W46: زبدة بالشيكولاته 12 علبة * 240 ق | X46: 64 | AL46: 64 | AN46: 64 | AO46: زبدة بالشيكولاته 12 علبة * 240 ق
A47: 44 | B47: 6222000901697 | C47: سنة | D47: طوفي 10 كجم | E47: كرتونة | S47: 38 | T47: 46 | U47: 55 | V47: 139 | W47: عسلية 5 ك | X47: 0 | AN47: 0 | AO47: عسلية 5 ك
A48: 45 | B48: 6222000911481 | C48: سنة | D48: طوفي بردايس 5كيلو | E48: كرتونة | V48: 0 | W48: عسلية 12 ع * 200 ق | X48: 0 | AN48: 0 | AO48: عسلية 12 ع * 200 ق
A49: 46 | B49: 6222000908276 | C49: سنة | D49: طوفي 30 كيس * 25 قطعه | E49: كرتونة | V49: 0 | W49: اكلير سايب 10 كيلو | X49: 98 | AK49: 43 | AL49: 55 | AN49: 98 | AO49: اكلير سايب 10 كيلو
A50: 47 | B50: 6222000908276 | C50: سنة | D50: طوفى 30 كيس * 28 ق | E50: كرتونة | T50: 100 | V50: 100 | W50: اكلير 30 كيس * 9 ق / 10 ق | X50: 0 | AN50: 0 | AO50: اكلير 30 كيس * 9 ق / 10 ق
A51: 48 | B51: 6222000909921 | C51: سنة | D51: طوفي 30 كيس * 12قطعه | E51: كرتونة | V51: 0 | W51: اكلير 30 كيس * 12 قطعه | X51: 0 | AN51: 0 | AO51: اكلير 30 كيس * 12 قطعه
A52: 49 | B52: 6222000909839 | C52: سنة | D52: طوفي 12 كيس * 90 ق | E52: كرتونة | T52: 11 | V52: 11 | W52: اكلير 30 كيس * 15 ق / 20 ق | X52: 0 | AN52: 0 | AO52: اكلير 30 كيس * 15 ق / 20 ق
A53: 50 | B53: 6222000905718 | C53: سنة | D53: طوفى 12كيس * 100 ق | E53: كرتونة | T53: 97 | V53: 97 | W53: اكلير 12كيس 45 ق | X53: 220 | AK53: 220 | AN53: 220 | AO53: اكلير 12كيس 45 ق
A54: 51 | B54: 6222000908825 | C54: سنة | D54: طوفى 12 ع * 200 ق | E54: كرتونة | V54: 0 | W54: اكلير 12كيس * 65 ق / 70 ق | X54: 0 | AN54: 0 | AO54: اكلير 12كيس * 65 ق / 70 ق
A55: 52 | B55: 6222000912556 | C55: سنة | D55: طوفي 12 علبه * 240 ق | E55: كرتونة | S55: 29 | T55: 45 | V55: 74 | W55: اكلير 12 كيس * 100 قطعة | X55: 137 | AK55: 137 | AN55: 137 | AO55: اكلير 12 كيس * 100 قطعة
A56: 53 | B56: 6222000907637 | C56: سنة | D56: شيكولاته بوتيك 16 علبه * 50 قطعة | E56: كرتونة | O56: 6 | V56: 6 | W56: اكلير 12 علبة * 160 ق | X56: 0 | Y56: =IFERROR(IF(INDEX($G$4:$U$94,MATCH(TRIM($W56),$D$4:$D$94,0),MATCH(Y$3,$G$3:$U$3,0))=0,"",INDEX($G$4:$U$94,MATCH(TRIM($W56),$D$4:$D$94,0),MATCH(Y$3,$G$3:$U$3,0))),"") ->  | AN56: 0 | AO56: اكلير 12 علبة * 160 ق
A57: 54 | B57: 6222000903295 | C57: سنة | D57: شيكولاته بوتيك 6 علبه * 1.25 كيلو | E57: كرتونة | V57: 0 | W57: اكلير 12 علبة 200 ق | X57: 35 | AK57: 35 | AN57: 35 | AO57: اكلير 12 علبة 200 ق
A58: 55 | B58: 6222000912006 | C58: سنة | D58: شيكولاته بوتيك حليب 4 ك | E58: كرتونة | V58: 0 | W58: طوفي 10 كجم | X58: 139 | AK58: 38 | AL58: 46 | AM58: 55 | AN58: 139 | AO58: طوفي 10 كجم
A59: 56 | B59: 6222000911993 | C59: سنة | D59: شيكولاته بوتيك كراميل 4 ك | E59: كرتونة | V59: 0 | W59: طوفي 30 كيس * 12قطعه | X59: 0 | AN59: 0 | AO59: طوفي 30 كيس * 12قطعه
A60: 57 | B60: 6222000912013 | C60: سنة | D60: شيكولاته بوتيك بندق 4 ك | E60: كرتونة | V60: 0 | W60: طوفي 30 كيس * 25 قطعه | X60: 0 | AN60: 0 | AO60: طوفي 30 كيس * 25 قطعه
A61: 58 | B61: 6222000964197 | C61: سنة | D61: شيكوهند سايب 10 كجم | E61: كرتونة | V61: 0 | W61: طوفى 30 كيس * 28 ق | X61: 100 | AL61: 100 | AN61: 100 | AO61: طوفى 30 كيس * 28 ق
A62: 59 | B62: 6222000906630 | C62: سنة | D62: سوفت شيكوهند 5 ك | E62: كرتونة | T62: 40 | V62: 40 | W62: طوفي 12 كيس * 90 ق | X62: 11 | AL62: 11 | AN62: 11 | AO62: طوفي 12 كيس * 90 ق
A63: 60 | B63: 6222000612549 | C63: سنة | D63: شيكوهند سوفت 12 ع * 100 ق | E63: كرتونة | V63: 0 | W63: طوفى 12كيس * 100 ق | X63: 97 | AL63: 97 | AN63: 97 | AO63: طوفى 12كيس * 100 ق
A64: 61 | B64: 6222000915243 | C64: سنة | D64: بار شيكوهند 3 ك | E64: كرتونة | U64: 50 | V64: 50 | W64: طوفى 12 ع * 200 ق | X64: 0 | AN64: 0 | AO64: طوفى 12 ع * 200 ق
A65: 62 | B65: 6222000902519 | C65: 9 أشهر | D65: ويفر ايليت مغطس بنى 12 *12 | E65: كرتونة | V65: 0 | W65: طوفي 12 علبه * 240 ق | X65: 74 | AK65: 29 | AL65: 45 | AN65: 74 | AO65: طوفي 12 علبه * 240 ق
A66: 63 | B66: 6222000902557 | C66: 9 أشهر | D66: ويفر ايليت مغطس ابيض 12 * 12 | E66: كرتونة | V66: 0 | W66: طوفي شيكولاته 12 كيس * 25 ق | X66: 0 | AN66: 0 | AO66: طوفي شيكولاته 12 كيس * 25 ق
A67: 64 | B67: 6222000902564 | C67: 9 أشهر | D67: ويفر ايليت مغطس فراولة 12*12 | E67: كرتونة | V67: 0 | W67: طوفي شيكولاته 12 علبة * 100 ق | X67: 0 | AN67: 0 | AO67: طوفي شيكولاته 12 علبة * 100 ق
A68: 65 | B68: 6222000910200 | C68: 9 أشهر | D68: ايليت ماكس سادة ش 12 باكو 6 قطع | E68: كرتونة | S68: 263 | V68: 263 | W68: طوفي زبدة 12 كيس * 25 ق | X68: 0 | AN68: 0 | AO68: طوفي زبدة 12 كيس * 25 ق
A69: 66 | B69: 6222000910514 | C69: 9 أشهر | D69: ايليت ماكس سادة فانيليا 12 باكو * 6 قطع | E69: كرتونة | S69: 215 | V69: =SUM(G69:U69) -> 215 | W69: طوفي زبدة 12 علبة * 100 ق | X69: =AN69 -> 0 | AN69: =SUM(Y69:AM69) -> 0 | AO69: =TRIM(CLEAN(SUBSTITUTE(SUBSTITUTE(SUBSTITUTE(W69,CHAR(10),""),CHAR(13),""),CHAR(9),""))) -> طوفي زبدة 12 علبة * 100 ق
A70: 67 | B70: 6222000909976 | C70: 9 أشهر | D70: ويفر مربع 3 كيلو ايليت ابيض | E70: كرتونة | Q70: 74 | T70: 50 | V70: 124 | W70: شيكولاته بوتيك 16 علبه * 50 قطعة | X70: 6 | AG70: 6 | AN70: 6 | AO70: شيكولاته بوتيك 16 علبه * 50 قطعة
A71: 68 | B71: 6222000909983 | C71: 9 أشهر | D71: ويفر مربع 3 كيلو ايليت شيكولاته | E71: كرتونة | V71: 0 | W71: شيكولاته بوتيك 6 علبه * 1.25 كيلو | X71: 0 | AN71: 0 | AO71: شيكولاته بوتيك 6 علبه * 1.25 كيلو
A72: 69 | B72: 6222000909969 | C72: 9 أشهر | D72: ويفر مربع 3 كيلو ايليت فراوله | E72: كرتونة | Q72: 69 | T72: 50 | V72: 119 | W72: شيكولاته بوتيك حليب 4 ك | X72: 0 | AN72: 0 | AO72: شيكولاته بوتيك حليب 4 ك
A73: 70 | B73: 6888000909953 | C73: 9 أشهر | D73: ويفر مربع 3 كيلو ايليت جوز هند | E73: كرتونة | V73: 0 | W73: شيكولاته بوتيك كراميل 4 ك | X73: 0 | Y73: =IFERROR(IF(INDEX($G$4:$U$94,MATCH(TRIM($W73),$D$4:$D$94,0),MATCH(Y$3,$G$3:$U$3,0))=0,"",INDEX($G$4:$U$94,MATCH(TRIM($W73),$D$4:$D$94,0),MATCH(Y$3,$G$3:$U$3,0))),"") ->  | AN73: 0 | AO73: شيكولاته بوتيك كراميل 4 ك
A74: 71 | B74: 622200097116 | C74: 9 أشهر | D74: ويفر فرحه 5 كيلو | E74: كرتونة | Q74: 36 | V74: 36 | W74: شيكولاته بوتيك بندق 4 ك | X74: 0 | AN74: 0 | AO74: شيكولاته بوتيك بندق 4 ك
A75: 72 | B75: 6222000912372 | C75: 9 أشهر | D75: ويفر ايليت مربع بايتس 3 ك بني | E75: كرتونة | V75: 0 | W75: شيكوهند سايب 10 كجم | X75: 0 | AN75: 0 | AO75: شيكوهند سايب 10 كجم
A76: 73 | B76: 6222000912488 | C76: 9 أشهر | D76: بسكوت اكشن سادة شاي 6 ع * 12 ق | E76: كرتونة | V76: 0 | W76: سوفت شيكوهند 5 ك | X76: 40 | AL76: 40 | AN76: 40 | AO76: سوفت شيكوهند 5 ك
A77: 74 | B77: 6222000914383 | C77: 9 أشهر | D77: بسكوت اكشن سادة شاي 6 ع * 12 ق ( نباتى ) | E77: كرتونة | V77: 0 | W77: شيكوهند سوفت 12 كيس * 28 ق | X77: 0 | AN77: 0 | AO77: شيكوهند سوفت 12 كيس * 28 ق
A78: 75 | B78: 6222000916165 | C78: 9 أشهر | D78: ويفر اكشن مغطس بنى 12ع * 12 ق ( 5 جنية ) | E78: كرتونة | P78: 28 | V78: 28 | W78: شيكوهند سوفت 12 كيس * 60 ق | X78: 0 | AN78: 0 | AO78: شيكوهند سوفت 12 كيس * 60 ق
A79: 76 | B79: 6222000916172 | C79: 9 أشهر | D79: ويفر اكشن مغطس أبيض 12ع * 12 ق ( 5 جنية ) | E79: كرتونة | V79: 0 | W79: شيكوهند سوفت 12 ع * 100 ق | X79: 0 | AN79: 0 | AO79: شيكوهند سوفت 12 ع * 100 ق
A80: 77 | B80: 2810 | C80: 9 أشهر | D80: ويفر اكشن مغطس أبيض 8ع * 12 ق ( 5 جنية ) | E80: كرتونة | V80: 0 | W80: بار شيكوهند 3 ك | X80: 50 | AM80: 50 | AN80: 50 | AO80: بار شيكوهند 3 ك
A81: 78 | B81: 6222000912365 | C81: 9 أشهر | D81: بايتس مربع 6ع * 50ق بنى | E81: كرتونة | P81: 29 | V81: 29 | W81: ويفر ايليت مغطس بنى 12 *12 | X81: 0 | AN81: 0 | AO81: ويفر ايليت مغطس بنى 12 *12
A82: 79 | B82: 6222000902083 | C82: 9 أشهر | D82: بايتس مربع 6 ع * 50 ق ابيض | E82: كرتونة | V82: 0 | W82: ويفر ايليت مغطس ابيض 12 * 12 | X82: 0 | AN82: 0 | AO82: ويفر ايليت مغطس ابيض 12 * 12
A83: 80 | B83: 6222000913904 | C83: 9 أشهر | D83: بايتس مربع 6 ع * 50 ق فراولة | E83: كرتونة | V83: 0 | W83: ويفر ايليت مغطس فراولة 12*12 | X83: 0 | AN83: 0 | AO83: ويفر ايليت مغطس فراولة 12*12
A84: 81 | B84: 6222000916738 | C84: 9 أشهر | D84: ويفر بوتيك مربع 9 كيس * 500 جم | E84: كرتونة | V84: 0 | W84: ايليت ماكس سادة ش 12 باكو 6 قطع | X84: 263 | AK84: 263 | AN84: 263 | AO84: ايليت ماكس سادة ش 12 باكو 6 قطع
A85: 82 | B85: 002797 | C85: 4 أشهر | D85: كورن عائلي 15 كيس | E85: كرتونة | S85: 211 | V85: =SUM(G85:U85) -> 211 | W85: ايليت ماكس سادة فانيليا 12 باكو * 6 قطع | X85: 0 | AN85: 0 | AO85: ايليت ماكس سادة فانيليا 12 باكو * 6 قطع
A86: 83 | B86: 002796 | C86: 6 أشهر | D86: فاير فنجرز 15 كيس | E86: كرتونة | S86: 254 | V86: 254 | W86: ويفر مربع 3 كيلو ايليت ابيض | X86: 0 | AN86: 0 | AO86: ويفر مربع 3 كيلو ايليت ابيض
A87: 84 | B87: 001766 | C87: 6 أشهر | D87: اسبيشيال أطعم 15 كيس | E87: كرتونة | Q87: 213 | V87: 213 | W87: ويفر مربع 3 كيلو ايليت شيكولاته | X87: 0 | AN87: 0 | AO87: ويفر مربع 3 كيلو ايليت شيكولاته
A88: 85 | B88: EG-670026743-3002 | C88: 6 أشهر | D88: شيل أوت شيبس 15 كيس سعر الكيس 10 جنية | E88: كرتونة | Q88: 2 | S88: 187 | V88: 189 | W88: ويفر مربع 3 كيلو ايليت فراوله | X88: 0 | AN88: 0 | AO88: ويفر مربع 3 كيلو ايليت فراوله
A89: 86 | B89: 6224001574221 | C89: سنة | D89: زى كولا مشروب غازى 275 حلى | E89: كرتونة | P89: 254 | S89: 700 | V89: 954 | W89: ويفر مربع 3 كيلو ايليت جوز هند | X89: 0 | AN89: 0 | AO89: ويفر مربع 3 كيلو ايليت جوز هند
A90: 87 | B90: 2798 | C90: 9 أشهر | D90: اهلا بالعيد 8 كيس * 660 جم | E90: كرتونة | V90: 0 | W90: ويفر فرحه 5 كيلو | X90: 36 | Y90: =IFERROR(IF(INDEX($G$4:$U$94,MATCH(TRIM($W90),$D$4:$D$94,0),MATCH(Y$3,$G$3:$U$3,0))=0,"",INDEX($G$4:$U$94,MATCH(TRIM($W90),$D$4:$D$94,0),MATCH(Y$3,$G$3:$U$3,0))),"") ->  | AI90: 36 | AN90: 36 | AO90: ويفر فرحه 5 كيلو
A91: 88 | B91: 00695 | C91: سنة | D91: قهوه20كيس*150جرام | E91: كرتونة | V91: 0 | W91: ويفر ايليت مربع بايتس 3 ك بني | X91: 0 | AN91: 0 | AO91: ويفر ايليت مربع بايتس 3 ك بني
A92: 89 | B92: 6222000912518 | C92: سنتان | D92: نعناع 12 ع * 240 ق | E92: كرتونة | V92: 0 | W92: بسكوت اكشن سادة شاي 6 ع * 12 ق | X92: 0 | AN92: 0 | AO92: بسكوت اكشن سادة شاي 6 ع * 12 ق
A93: 90 | B93: 002827 | D93: سولا فواكة فلوباك 10 ك | E93: كرتونة | T93: 55 | V93: 55 | W93: بسكوت اكشن سادة شاي 6 ع * 12 ق ( نباتى ) | X93: 0 | AN93: 0 | AO93: بسكوت اكشن سادة شاي 6 ع * 12 ق ( نباتى )
A94: 91 | V94: 0 | W94: ويفر اكشن مغطس بنى 12ع * 12 ق ( 5 جنية ) | X94: 28 | AH94: 28 | AN94: 28 | AO94: ويفر اكشن مغطس بنى 12ع * 12 ق ( 5 جنية )
A95: 92 | V95: 0 | W95: ويفر اكشن مغطس أبيض 12ع * 12 ق ( 5 جنية ) | X95: 0 | AN95: 0 | AO95: ويفر اكشن مغطس أبيض 12ع * 12 ق ( 5 جنية )
A96: 93 | V96: 0 | W96: ويفر اكشن مغطس أبيض 8ع * 12 ق ( 5 جنية ) | X96: 0 | AN96: 0 | AO96: ويفر اكشن مغطس أبيض 8ع * 12 ق ( 5 جنية )
A97: 94 | V97: 0 | W97: بايتس مربع 6ع * 50ق بنى | X97: 0 | AN97: 0 | AO97: بايتس مربع 6ع * 50ق بنى
A98: 95 | V98: 0 | W98: بايتس مربع 6 ع * 50 ق ابيض | X98: 0 | AN98: 0 | AO98: بايتس مربع 6 ع * 50 ق ابيض
A99: 96 | V99: 0 | W99: ويفر 4 علبه * 50 قطعه ابيض بايتس | X99: 0 | AN99: 0 | AO99: ويفر 4 علبه * 50 قطعه ابيض بايتس
A100: 97 | V100: 0 | W100: ويفر 5 علبه * 50 قطعه ابيض بايتس | X100: 0 | AN100: 0 | AO100: ويفر 5 علبه * 50 قطعه ابيض بايتس
A101: 98 | V101: 0 | W101: ويفر 7 علبه * 50 قطعه ابيض بايتس | X101: 0 | AN101: 0 | AO101: ويفر 7 علبه * 50 قطعه ابيض بايتس
A102: 99 | V102: 0 | W102: بايتس مربع 6 ع * 50 ق فراولة | X102: 0 | AN102: 0 | AO102: بايتس مربع 6 ع * 50 ق فراولة
A103: 100 | V103: 0 | W103: ويفر 4 علبه * 50 قطعه فراولة بايتس | X103: 0 | AN103: 0 | AO103: ويفر 4 علبه * 50 قطعه فراولة بايتس
A104: 101 | V104: 0 | W104: ويفر بوتيك مربع 9 كيس * 500 جم | X104: 0 | AN104: 0 | AO104: ويفر بوتيك مربع 9 كيس * 500 جم
A105: 102 | V105: 0 | W105: ايليت عرض خاص | X105: 0 | AN105: 0 | AO105: ايليت عرض خاص
A106: 103 | V106: 0 | W106: اهلا بالعيد 8 كيس * 660 جم | X106: 0 | AN106: 0 | AO106: اهلا بالعيد 8 كيس * 660 جم
A107: 104 | V107: 0 | W107: كورن عائلي 15 كيس | X107: 211 | Y107: =IFERROR(IF(INDEX($G$4:$U$94,MATCH(TRIM($W107),$D$4:$D$94,0),MATCH(Y$3,$G$3:$U$3,0))=0,"",INDEX($G$4:$U$94,MATCH(TRIM($W107),$D$4:$D$94,0),MATCH(Y$3,$G$3:$U$3,0))),"") ->  | AK107: 211 | AN107: 211 | AO107: كورن عائلي 15 كيس
A108: 105 | V108: 0 | W108: فاير فنجرز 15 كيس | X108: 254 | AK108: 254 | AN108: 254 | AO108: فاير فنجرز 15 كيس
A109: 106 | V109: 0 | W109: اسبيشيال أطعم 15 كيس | X109: 0 | AN109: 0 | AO109: اسبيشيال أطعم 15 كيس
A110: 107 | V110: 0 | W110: شيل أوت شيبس 15 كيس سعر الكيس 10 جنية | X110: 189 | AI110: 2 | AK110: 187 | AN110: 189 | AO110: شيل أوت شيبس 15 كيس سعر الكيس 10 جنية
V111: 0 | W111: زى كولا مشروب غازى 275 حلى | X111: 954 | AH111: 254 | AK111: 700 | AN111: 954 | AO111: زى كولا مشروب غازى 275 حلى
A112: 108 | V112: 0 | W112: زبدة 12 علبة * 240 ق | X112: 0 | AN112: 0 | AO112: زبدة 12 علبة * 240 ق
A113: الاجمالى | F113: =SUM(F4:F112) -> 0 | G113: 0 | H113: 0 | I113: 0 | J113: 0 | K113: 0 | L113: 0 | M113: 0 | N113: 59 | O113: 6 | P113: 421 | Q113: 416 | R113: 85 | S113: 2723.5 | T113: 1012 | U113: =SUM(U4:U112) -> 405 | V113: =SUM(V4:V111) -> 5127.5 | X113: =SUM(X4:X112) -> 4091.5 | Y113: =SUM(Y4:Y112) -> 0 | Z113: =SUM(Z4:Z112) -> 0 | AA113: 0 | AB113: 0 | AC113: 0 | AD113: 0 | AE113: 0 | AF113: 59 | AG113: 6 | AH113: 392 | AI113: 60 | AJ113: 85 | AK113: 2322.5 | AL113: 862 | AM113: 305 | AN113: =SUM(AN4:AN112) -> 4091.5
AH115: =P113-AH113 -> 29 | AI115: =Q113-AI113 -> 356 | AK115: =S113-AK113 -> 401 | AL115: =T113-AL113 -> 150
V117: =V113-AN113 -> 1036

Sheet الرصيد 3 (2)
A1: رصيد توكيل ( توكيل نجع حمادى ) عن يوم ( الخميس 9/13 ) | W1: شيت به معادلات عادية
A2: م | B2: الكود | C2: مدة الصلاحية | D2: الصنف | E2: الوحدة | F2: الرصيد الدفترى بالكرتونة | V2: الرصيد الفعلى بالكرتونة | W2: تنسيق الارقام مع اسم الصنف والتاريخ المقابل لها | AN2: الرصيد الفعلى بالكرتونة
G3: 2024-07-01 | H3: 2024-08-01 | I3: 2024-09-01 | J3: 2024-10-01 | K3: 2024-11-01 | L3: 2024-12-01 | M3: 2025-01-01 | N3: 2025-02-01 | O3: 2025-03-01 | P3: 2025-04-01 | Q3: 2025-05-01 | R3: 2025-06-01 | S3: 2025-07-01 | T3: 2025-08-01 | U3: 2025-09-01 | W3: اسم الصنف | X3: الرصيد | Y3: 2024-07-01 | Z3: 2024-08-01 | AA3: 2024-09-01 | AB3: 2024-10-01 | AC3: 2024-11-01 | AD3: 2024-12-01 | AE3: 2025-01-01 | AF3: 2025-02-01 | AG3: 2025-03-01 | AH3: 2025-04-01 | AI3: 2025-05-01 | AJ3: 2025-06-01 | AK3: 2025-07-01 | AL3: 2025-08-01 | AM3: 2025-09-01 | AO3: =IFERROR(IF(INDEX($G$4:$U$94,MATCH(SUBSTITUTE(TRIM($W4),CHAR(160)," "),SUBSTITUTE(TRIM($D$4:$D$94),CHAR(160)," "),0),MATCH(Y$3,$G$3:$U$3,0))=0,"",INDEX($G$4:$U$94,MATCH(SUBSTITUTE(TRIM($W4),CHAR(160)," "),SUBSTITUTE(TRIM($D$4:$D$94),CHAR(160)," "),0),MATCH(Y$3,$G$3:$U$3,0))),"") -> 
A4: 1 | B4: 6222000901529 | C4: سنتان | D4: سوبر فينا 10 كيلو | E4: كرتونة | S4: 52 | T4: 50 | U4: 100 | V4: =SUM(G4:U4) -> 202 | W4: سوبر فينا 10 كيلو | X4: =AN4 -> 202 | Y4: =IFERROR(IF(INDEX($G$4:$U$94,MATCH(SUBSTITUTE(TRIM($W4)," ",CHAR(160)),$D$4:$D$94,0),MATCH(Y$3,$G$3:$U$3,0))=0,"",INDEX($G$4:$U$94,MATCH(SUBSTITUTE(TRIM($W4)," ",CHAR(160)),$D$4:$D$94,0),MATCH(Y$3,$G$3:$U$3,0))),"") ->  | Z4: =IFERROR(IF(INDEX($G$4:$U$94,MATCH(SUBSTITUTE(TRIM($W4)," ",CHAR(160)),$D$4:$D$94,0),MATCH(Z$3,$G$3:$U$3,0))=0,"",INDEX($G$4:$U$94,MATCH(SUBSTITUTE(TRIM($W4)," ",CHAR(160)),$D$4:$D$94,0),MATCH(Z$3,$G$3:$U$3,0))),"") ->  | AK4: 52 | AL4: 50 | AM4: 100 | AN4: =SUM(Y4:AM4) -> 202 | AO4: =TRIM(CLEAN(SUBSTITUTE(SUBSTITUTE(SUBSTITUTE(W4,CHAR(10),""),CHAR(13),""),CHAR(9),""))) -> سوبر فينا 10 كيلو
A5: 2 | B5: 6222000901536 | C5: سنتان | D5: سوبر فينا 10 كيلو نعناع | E5: كرتونة | S5: 24 | U5: 155 | V5: =SUM(G5:U5) -> 179 | W5: سولا فواكة فلوباك 10 ك | X5: =AN5 -> 55 | Y5: =IFERROR(IF(INDEX($G$4:$U$94,MATCH(TRIM($W5),$D$4:$D$94,0),MATCH(Y$3,$G$3:$U$3,0))=0,"",INDEX($G$4:$U$94,MATCH(TRIM($W5),$D$4:$D$94,0),MATCH(Y$3,$G$3:$U$3,0))),"") ->  | Z5: =IFERROR(IF(INDEX($G$4:$U$94,MATCH(TRIM($W5),$D$4:$D$94,0),MATCH(Z$3,$G$3:$U$3,0))=0,"",INDEX($G$4:$U$94,MATCH(TRIM($W5),$D$4:$D$94,0),MATCH(Z$3,$G$3:$U$3,0))),"") ->  | AL5: 55 | AN5: =SUM(Y5:AM5) -> 55 | AO5: =TRIM(CLEAN(SUBSTITUTE(SUBSTITUTE(SUBSTITUTE(W5,CHAR(10),""),CHAR(13),""),CHAR(9),""))) -> سولا فواكة فلوباك 10 ك
A6: 3 | B6: 6222000911733 | C6: سنتان | D6: نعناع 12كيس 50 ق 4جم | E6: كرتونة | T6: 3 | V6: 3 | W6: سولا فواكة 5 ك | X6: 0 | AN6: 0 | AO6: سولا فواكة 5 ك
A7: 4 | B7: 6222000911764 | C7: سنتان | D7: سولا فواكه 12 كيس * 50 ق | E7: كرتونة | V7: 0 | W7: سولا فواكه 30 كيس * 28 ق | X7: 0 | AN7: 0 | AO7: سولا فواكه 30 كيس * 28 ق
A8: 5 | B8: 6222000917773 | C8: سنتان | D8: سولا فواكه 30 كيس * 28 ق | E8: كرتونة | V8: 0 | W8: سولا فواكه 12 كيس * 50 ق | X8: 0 | AN8: 0 | AO8: سولا فواكه 12 كيس * 50 ق
A9: 6 | B9: 6222000917780 | C9: سنتان | D9: سولا فواكه 12 كيس * 100 ق | E9: كرتونة | T9: 104 | V9: 104 | W9: سولا فواكه 12 كيس * 100 ق | X9: 104 | AL9: 104 | AN9: 104 | AO9: سولا فواكه 12 كيس * 100 ق
A10: 7 | B10: 6222000916295 | C10: سنتان | D10: سولا فواكة 6 كيس * 800 جم | E10: كرتونة | V10: 0 | W10: سولا ف 12 ع * 200 ق | X10: 0 | AN10: 0 | AO10: سولا ف 12 ع * 200 ق
A11: 8 | B11: 6222000912525 | C11: سنتان | D11: سولا ف 12 ع * 200 ق | E11: كرتونة | V11: 0 | W11: سولا ف 12 ع * 240 ق | X11: 0 | AN11: 0 | AO11: سولا ف 12 ع * 240 ق
A12: 9 | B12: 6222000912518 | C12: سنتان | D12: سولا نعناع 12 ع * 200 ق | E12: كرتونة | Q12: 22 | V12: 22 | W12: سولا فواكة 6 كيس * 800 جم | X12: 0 | AN12: 0 | AO12: سولا فواكة 6 كيس * 800 جم
A13: 10 | B13: 6222000912525 | C13: سنتان | D13: سولا ف 12 ع * 240 ق | E13: كرتونة | V13: 0 | W13: سوبر فينا 10 كيلو نعناع | X13: 179 | AK13: 24 | AM13: 155 | AN13: 179 | AO13: سوبر فينا 10 كيلو نعناع
A14: 11 | B14: 6222000908566 | C14: سنتان | D14: سولا فواكة 5 ك | E14: كرتونة | V14: 0 | W14: سولا نعناع فلوباك 10 ك | X14: 0 | AN14: 0 | AO14: سولا نعناع فلوباك 10 ك
A15: 12 | B15: 6222000908573 | C15: سنتان | D15: سولا نعناع 5 ك | E15: كرتونة | N15: 59 | V15: 59 | W15: سولا نعناع 5 ك | X15: 59 | AF15: 59 | AN15: 59 | AO15: سولا نعناع 5 ك
A16: 13 | B16: 00743 | C16: سنة | D16: قهوة 12 ع * 200 ق | E16: كرتونة | V16: 0 | W16: سولا نعناع 30 كيس * 28 ق | X16: 0 | AN16: 0 | AO16: سولا نعناع 30 كيس * 28 ق
A17: 14 | B17: 6222000917452 | C17: سنة | D17: قهوة 12 ع * 240 ق | E17: كرتونة | T17: 27 | V17: 27 | W17: نعناع 12كيس 50 ق 4جم | X17: 3 | AL17: 3 | AN17: 3 | AO17: نعناع 12كيس 50 ق 4جم
A18: 15 | B18: 6222000901758 | C18: سنة | D18: سولا قهوه 10 كيلو | E18: كرتونة | S18: 15.5 | T18: 50 | V18: 65.5 | W18: سولا نعناع 12 كيس * 100 ق | X18: 0 | AN18: 0 | AO18: سولا نعناع 12 كيس * 100 ق
A19: 16 | B19: 6222000912020 | C19: سنة | D19: قهوة 5 ك | E19: كرتونة | V19: 0 | W19: سولا نعناع 12 ع * 200 ق | X19: 22 | AI19: 22 | AN19: 22 | AO19: سولا نعناع 12 ع * 200 ق
A20: 17 | B20: 6222000909815 | C20: سنة | D20: قهوة 12 كيس * 80 ق / 90 ق | E20: كرتونة | R20: 85 | T20: 65 | V20: 150 | W20: نعناع 12 ع * 240 ق | X20: 0 | AN20: 0 | AO20: نعناع 12 ع * 240 ق
A21: 18 | B21: 6222000908610 | C21: سنة | D21: قهوة 30 كيس * 18 ق / 25 ق | E21: كرتونة | V21: 0 | W21: سولا قهوه 10 كيلو | X21: 65.5 | AK21: 15.5 | AL21: 50 | AN21: 65.5 | AO21: سولا قهوه 10 كيلو
A22: 19 | B22: 6222000909891 | C22: سنة | D22: قهوة 30 كيس * 12قطعه | E22: كرتونة | V22: 0 | W22: قهوة 5 ك | X22: 0 | AN22: 0 | AO22: قهوة 5 ك
A23: 20 | B23: 00744 | C23: سنة | D23: زبدة 12 ع * 200 ق | E23: كرتونة | S23: 64 | V23: 64 | W23: قهوة 30 كيس * 12قطعه | X23: 0 | AN23: 0 | AO23: قهوة 30 كيس * 12قطعه
A24: 21 | B24: 6222000901642 | C24: سنة | D24: سولا زبده 10 كيلو | E24: كرتونة | T24: 18 | V24: 18 | W24: قهوة 30 كيس * 15قطعه | X24: 0 | AN24: 0 | AO24: قهوة 30 كيس * 15قطعه
A25: 22 | B25: 6222000912037 | C25: سنة | D25: زبدة 5 ك | E25: كرتونة | V25: 0 | W25: قهوة 30 كيس * 18 ق / 25 ق | X25: 0 | AN25: 0 | AO25: قهوة 30 كيس * 18 ق / 25 ق
A26: 23 | B26: 6222000917124 | C26: سنة | D26: زبدة بالشيكولاته 12 علبة * 240 ق | E26: كرتونة | T26: 64 | V26: 64 | W26: قهوة 12 كيس * 55 ق | X26: 0 | AN26: 0 | AO26: قهوة 12 كيس * 55 ق
A27: 24 | B27: 6222000918732 | C27: سنة | D27: زبدة بالشيكولاته 10 ك | E27: كرتونة | T27: 34 | V27: 34 | W27: قهوة 12 كيس * 80 ق / 90 ق | X27: 150 | AJ27: 85 | AL27: 65 | AN27: 150 | AO27: قهوة 12 كيس * 80 ق / 90 ق
A28: 25 | B28: 6222000909808 | C28: سنة | D28: زبدة 12 كيس * 80 ق / 90 ق | E28: كرتونة | V28: 0 | W28: قهوة 12 كيس * 120 ق | X28: 0 | AN28: 0 | AO28: قهوة 12 كيس * 120 ق
A29: 26 | B29: 6222000907583 | C29: سنة | D29: زبدة 30 كيس * 18 ق / 25 ق | E29: كرتونة | P29: 110 | V29: 110 | W29: قهوة 12 ع * 200 ق | X29: 0 | AN29: 0 | AO29: قهوة 12 ع * 200 ق
A30: 27 | B30: 6222000909884 | C30: سنة | D30: زبدة 30 كيس * 12قطعه | E30: كرتونة | S30: 61 | T30: 48 | V30: 109 | W30: قهوة 12 ع * 240 ق | X30: 27 | AL30: 27 | AN30: 27 | AO30: قهوة 12 ع * 240 ق
A31: 28 | B31: 6222000909884 | C31: سنة | D31: زبدة 30 كيس * 15 قطعه | E31: كرتونة | V31: 0 | W31: قهوه20كيس*150جرام | X31: 0 | AN31: 0 | AO31: قهوه20كيس*150جرام
A32: 29 | B32: 6222000905688 | C32: سنة | D32: زبدة 12 كيس * 55 قطعه | E32: كرتونة | V32: 0 | W32: سولا زبده 10 كيلو | X32: 18 | AL32: 18 | AN32: 18 | AO32: سولا زبده 10 كيلو
A33: 30 | B33: 171 | C33: سنة | D33: زبدة 12 كيس * 120 ق | E33: كرتونة | S33: 41 | U33: 45 | V33: 86 | W33: زبدة 5 ك | X33: 0 | AN33: 0 | AO33: زبدة 5 ك
A34: 31 | B34: 6222000910064 | C34: سنة | D34: زبدة 10 شنطة * 800 جم | E34: كرتونة | V34: 0 | W34: زبدة 30 كيس * 12قطعه | X34: 109 | AK34: 61 | AL34: 48 | AN34: 109 | AO34: زبدة 30 كيس * 12قطعه
A35: 32 | B35: 6222000912501 | C35: 9 أشهر | D35: عسلية 12 ع * 200 ق | E35: كرتونة | V35: 0 | W35: زبدة 30 كيس * 15 قطعه | X35: 0 | AN35: 0 | AO35: زبدة 30 كيس * 15 قطعه
A36: 33 | B36: 6222000912457 | C36: 9 أشهر | D36: عسلية 5 ك | E36: كرتونة | V36: 0 | W36: زبدة 30 كيس * 18 ق / 25 ق | X36: 110 | Y36: =IFERROR(IF(INDEX($G$4:$U$94,MATCH(TRIM($W36),$D$4:$D$94,0),MATCH(Y$3,$G$3:$U$3,0))=0,"",INDEX($G$4:$U$94,MATCH(TRIM($W36),$D$4:$D$94,0),MATCH(Y$3,$G$3:$U$3,0))),"") ->  | AH36: 110 | AN36: 110 | AO36: زبدة 30 كيس * 18 ق / 25 ق
A37: 34 | B37: 6222000901611 | C37: سنة | D37: اكلير سايب 10 كيلو | E37: كرتونة | S37: 43 | T37: 55 | V37: 98 | W37: زبدة 12 كيس * 55 قطعه | X37: 0 | AN37: 0 | AO37: زبدة 12 كيس * 55 قطعه
A38: 35 | B38: 6222000909907 | C38: سنة | D38: اكلير 30 كيس * 9 ق / 10 ق | E38: كرتونة | S38: 134 | V38: 134 | W38: زبدة 12 كيس * 80 ق / 90 ق | X38: 0 | AN38: 0 | AO38: زبدة 12 كيس * 80 ق / 90 ق
A39: 36 | B39: 6222000909907 | C39: سنة | D39: اكلير 30 كيس * 12 قطعه | E39: كرتونة | V39: 0 | W39: زبدة 12 كيس * 120 ق | X39: 86 | AK39: 41 | AM39: 45 | AN39: 86 | AO39: زبدة 12 كيس * 120 ق
A40: 37 | B40: 6222000911498 | C40: سنة | D40: اكلير سولا 5 كيلو | E40: كرتونة | V40: 0 | W40: زبدة 12 ع * 200 ق | X40: 64 | AK40: 64 | AN40: 64 | AO40: زبدة 12 ع * 200 ق
A41: 38 | B41: 6222000912778 | C41: سنة | D41: اكلير 12كيس * 65 ق / 70 ق | E41: كرتونة | V41: 0 | W41: زبدة 10 شنطة * 800 جم | X41: 0 | AN41: 0 | AO41: زبدة 10 شنطة * 800 جم
A42: 39 | B42: 6222000912778 | C42: سنة | D42: اكلير 12 كيس * 100 قطعة | E42: كرتونة | S42: 137 | V42: 137 | W42: زبدة بالشيكولاته 10 ك | X42: 34 | AL42: 34 | AN42: 34 | AO42: زبدة بالشيكولاته 10 ك
A43: 40 | B43: 6222000912822 | C43: سنة | D43: اكلير 30 كيس * 15 ق / 20 ق | E43: كرتونة | V43: 0 | W43: زبدة بالشيكولاته 30 كيس * 15 قطعه | X43: 0 | AN43: 0 | AO43: زبدة بالشيكولاته 30 كيس * 15 قطعه
A44: 41 | B44: 6222000905701 | C44: سنة | D44: اكلير 12كيس 45 ق | E44: كرتونة | S44: 220 | V44: 220 | W44: زبدة بالشيكولاته 12 كيس * 55 قطعه | X44: 0 | AN44: 0 | AO44: زبدة بالشيكولاته 12 كيس * 55 قطعه
A45: 42 | B45: 6222000912532 | C45: سنة | D45: اكلير 12 علبة * 160 ق | E45: كرتونة | V45: 0 | W45: زبدة بالشيكولاته 12 كيس * 120 ق | X45: 0 | AN45: 0 | AO45: زبدة بالشيكولاته 12 كيس * 120 ق
A46: 43 | B46: 6222000912532 | C46: سنة | D46: اكلير 12 علبة 200 ق | E46: كرتونة | S46: 35 | V46: 35 | W46: زبدة بالشيكولاته 12 علبة * 240 ق | X46: 64 | AL46: 64 | AN46: 64 | AO46: زبدة بالشيكولاته 12 علبة * 240 ق
A47: 44 | B47: 6222000901697 | C47: سنة | D47: طوفي 10 كجم | E47: كرتونة | S47: 38 | T47: 46 | U47: 55 | V47: 139 | W47: عسلية 5 ك | X47: 0 | AN47: 0 | AO47: عسلية 5 ك
A48: 45 | B48: 6222000911481 | C48: سنة | D48: طوفي بردايس 5كيلو | E48: كرتونة | V48: 0 | W48: عسلية 12 ع * 200 ق | X48: 0 | AN48: 0 | AO48: عسلية 12 ع * 200 ق
A49: 46 | B49: 6222000908276 | C49: سنة | D49: طوفي 30 كيس * 25 قطعه | E49: كرتونة | V49: 0 | W49: اكلير سايب 10 كيلو | X49: 98 | AK49: 43 | AL49: 55 | AN49: 98 | AO49: اكلير سايب 10 كيلو
A50: 47 | B50: 6222000908276 | C50: سنة | D50: طوفى 30 كيس * 28 ق | E50: كرتونة | T50: 100 | V50: 100 | W50: اكلير 30 كيس * 9 ق / 10 ق | X50: 0 | AN50: 0 | AO50: اكلير 30 كيس * 9 ق / 10 ق
A51: 48 | B51: 6222000909921 | C51: سنة | D51: طوفي 30 كيس * 12قطعه | E51: كرتونة | V51: 0 | W51: اكلير 30 كيس * 12 قطعه | X51: 0 | AN51: 0 | AO51: اكلير 30 كيس * 12 قطعه
A52: 49 | B52: 6222000909839 | C52: سنة | D52: طوفي 12 كيس * 90 ق | E52: كرتونة | T52: 11 | V52: 11 | W52: اكلير 30 كيس * 15 ق / 20 ق | X52: 0 | AN52: 0 | AO52: اكلير 30 كيس * 15 ق / 20 ق
A53: 50 | B53: 6222000905718 | C53: سنة | D53: طوفى 12كيس * 100 ق | E53: كرتونة | T53: 97 | V53: 97 | W53: اكلير 12كيس 45 ق | X53: 220 | Y53: =IFERROR(IF(INDEX($G$4:$U$94,MATCH(TRIM($W53),$D$4:$D$94,0),MATCH(Y$3,$G$3:$U$3,0))=0,"",INDEX($G$4:$U$94,MATCH(TRIM($W53),$D$4:$D$94,0),MATCH(Y$3,$G$3:$U$3,0))),"") ->  | AK53: 220 | AN53: 220 | AO53: اكلير 12كيس 45 ق
A54: 51 | B54: 6222000908825 | C54: سنة | D54: طوفى 12 ع * 200 ق | E54: كرتونة | V54: 0 | W54: اكلير 12كيس * 65 ق / 70 ق | X54: 0 | AN54: 0 | AO54: اكلير 12كيس * 65 ق / 70 ق
A55: 52 | B55: 6222000912556 | C55: سنة | D55: طوفي 12 علبه * 240 ق | E55: كرتونة | S55: 29 | T55: 45 | V55: 74 | W55: اكلير 12 كيس * 100 قطعة | X55: 137 | AK55: 137 | AN55: 137 | AO55: اكلير 12 كيس * 100 قطعة
A56: 53 | B56: 6222000907637 | C56: سنة | D56: شيكولاته بوتيك 16 علبه * 50 قطعة | E56: كرتونة | O56: 6 | V56: 6 | W56: اكلير 12 علبة * 160 ق | X56: 0 | AN56: 0 | AO56: اكلير 12 علبة * 160 ق
A57: 54 | B57: 6222000903295 | C57: سنة | D57: شيكولاته بوتيك 6 علبه * 1.25 كيلو | E57: كرتونة | V57: 0 | W57: اكلير 12 علبة 200 ق | X57: 35 | AK57: 35 | AN57: 35 | AO57: اكلير 12 علبة 200 ق
A58: 55 | B58: 6222000912006 | C58: سنة | D58: شيكولاته بوتيك حليب 4 ك | E58: كرتونة | V58: 0 | W58: طوفي 10 كجم | X58: 139 | AK58: 38 | AL58: 46 | AM58: 55 | AN58: 139 | AO58: طوفي 10 كجم
A59: 56 | B59: 6222000911993 | C59: سنة | D59: شيكولاته بوتيك كراميل 4 ك | E59: كرتونة | V59: 0 | W59: طوفي 30 كيس * 12قطعه | X59: 0 | AN59: 0 | AO59: طوفي 30 كيس * 12قطعه
A60: 57 | B60: 6222000912013 | C60: سنة | D60: شيكولاته بوتيك بندق 4 ك | E60: كرتونة | V60: 0 | W60: طوفي 30 كيس * 25 قطعه | X60: 0 | AN60: 0 | AO60: طوفي 30 كيس * 25 قطعه
A61: 58 | B61: 6222000964197 | C61: سنة | D61: شيكوهند سايب 10 كجم | E61: كرتونة | V61: 0 | W61: طوفى 30 كيس * 28 ق | X61: 100 | AL61: 100 | AN61: 100 | AO61: طوفى 30 كيس * 28 ق
A62: 59 | B62: 6222000906630 | C62: سنة | D62: سوفت شيكوهند 5 ك | E62: كرتونة | T62: 40 | V62: 40 | W62: طوفي 12 كيس * 90 ق | X62: 11 | AL62: 11 | AN62: 11 | AO62: طوفي 12 كيس * 90 ق
A63: 60 | B63: 6222000612549 | C63: سنة | D63: شيكوهند سوفت 12 ع * 100 ق | E63: كرتونة | V63: 0 | W63: طوفى 12كيس * 100 ق | X63: 97 | AL63: 97 | AN63: 97 | AO63: طوفى 12كيس * 100 ق
A64: 61 | B64: 6222000915243 | C64: سنة | D64: بار شيكوهند 3 ك | E64: كرتونة | U64: 50 | V64: 50 | W64: طوفى 12 ع * 200 ق | X64: 0 | AN64: 0 | AO64: طوفى 12 ع * 200 ق
A65: 62 | B65: 6222000902519 | C65: 9 أشهر | D65: ويفر ايليت مغطس بنى 12 *12 | E65: كرتونة | V65: 0 | W65: طوفي 12 علبه * 240 ق | X65: 74 | AK65: 29 | AL65: 45 | AN65: 74 | AO65: طوفي 12 علبه * 240 ق
A66: 63 | B66: 6222000902557 | C66: 9 أشهر | D66: ويفر ايليت مغطس ابيض 12 * 12 | E66: كرتونة | V66: 0 | W66: طوفي شيكولاته 12 كيس * 25 ق | X66: 0 | AN66: 0 | AO66: طوفي شيكولاته 12 كيس * 25 ق
A67: 64 | B67: 6222000902564 | C67: 9 أشهر | D67: ويفر ايليت مغطس فراولة 12*12 | E67: كرتونة | V67: 0 | W67: طوفي شيكولاته 12 علبة * 100 ق | X67: 0 | AN67: 0 | AO67: طوفي شيكولاته 12 علبة * 100 ق
A68: 65 | B68: 6222000910200 | C68: 9 أشهر | D68: ايليت ماكس سادة ش 12 باكو 6 قطع | E68: كرتونة | S68: 263 | V68: 263 | W68: طوفي زبدة 12 كيس * 25 ق | X68: 0 | AN68: 0 | AO68: طوفي زبدة 12 كيس * 25 ق
A69: 66 | B69: 6222000910514 | C69: 9 أشهر | D69: ايليت ماكس سادة فانيليا 12 باكو * 6 قطع | E69: كرتونة | S69: 215 | V69: =SUM(G69:U69) -> 215 | W69: طوفي زبدة 12 علبة * 100 ق | X69: =AN69 -> 0 | AN69: =SUM(Y69:AM69) -> 0 | AO69: =TRIM(CLEAN(SUBSTITUTE(SUBSTITUTE(SUBSTITUTE(W69,CHAR(10),""),CHAR(13),""),CHAR(9),""))) -> طوفي زبدة 12 علبة * 100 ق
A70: 67 | B70: 6222000909976 | C70: 9 أشهر | D70: ويفر مربع 3 كيلو ايليت ابيض | E70: كرتونة | Q70: 74 | T70: 50 | V70: 124 | W70: شيكولاته بوتيك 16 علبه * 50 قطعة | X70: 6 | Y70: =IFERROR(IF(INDEX($G$4:$U$94,MATCH(TRIM($W70),$D$4:$D$94,0),MATCH(Y$3,$G$3:$U$3,0))=0,"",INDEX($G$4:$U$94,MATCH(TRIM($W70),$D$4:$D$94,0),MATCH(Y$3,$G$3:$U$3,0))),"") ->  | AG70: 6 | AN70: 6 | AO70: شيكولاته بوتيك 16 علبه * 50 قطعة
A71: 68 | B71: 6222000909983 | C71: 9 أشهر | D71: ويفر مربع 3 كيلو ايليت شيكولاته | E71: كرتونة | V71: 0 | W71: شيكولاته بوتيك 6 علبه * 1.25 كيلو | X71: 0 | AN71: 0 | AO71: شيكولاته بوتيك 6 علبه * 1.25 كيلو
A72: 69 | B72: 6222000909969 | C72: 9 أشهر | D72: ويفر مربع 3 كيلو ايليت فراوله | E72: كرتونة | Q72: 69 | T72: 50 | V72: 119 | W72: شيكولاته بوتيك حليب 4 ك | X72: 0 | AN72: 0 | AO72: شيكولاته بوتيك حليب 4 ك
A73: 70 | B73: 6888000909953 | C73: 9 أشهر | D73: ويفر مربع 3 كيلو ايليت جوز هند | E73: كرتونة | V73: 0 | W73: شيكولاته بوتيك كراميل 4 ك | X73: 0 | AN73: 0 | AO73: شيكولاته بوتيك كراميل 4 ك
A74: 71 | B74: 622200097116 | C74: 9 أشهر | D74: ويفر فرحه 5 كيلو | E74: كرتونة | Q74: 36 | V74: 36 | W74: شيكولاته بوتيك بندق 4 ك | X74: 0 | AN74: 0 | AO74: شيكولاته بوتيك بندق 4 ك
A75: 72 | B75: 6222000912372 | C75: 9 أشهر | D75: ويفر ايليت مربع بايتس 3 ك بني | E75: كرتونة | V75: 0 | W75: شيكوهند سايب 10 كجم | X75: 0 | AN75: 0 | AO75: شيكوهند سايب 10 كجم
A76: 73 | B76: 6222000912488 | C76: 9 أشهر | D76: بسكوت اكشن سادة شاي 6 ع * 12 ق | E76: كرتونة | V76: 0 | W76: سوفت شيكوهند 5 ك | X76: 40 | AL76: 40 | AN76: 40 | AO76: سوفت شيكوهند 5 ك
A77: 74 | B77: 6222000914383 | C77: 9 أشهر | D77: بسكوت اكشن سادة شاي 6 ع * 12 ق ( نباتى ) | E77: كرتونة | V77: 0 | W77: شيكوهند سوفت 12 كيس * 28 ق | X77: 0 | AN77: 0 | AO77: شيكوهند سوفت 12 كيس * 28 ق
A78: 75 | B78: 6222000916165 | C78: 9 أشهر | D78: ويفر اكشن مغطس بنى 12ع * 12 ق ( 5 جنية ) | E78: كرتونة | P78: 28 | V78: 28 | W78: شيكوهند سوفت 12 كيس * 60 ق | X78: 0 | AN78: 0 | AO78: شيكوهند سوفت 12 كيس * 60 ق
A79: 76 | B79: 6222000916172 | C79: 9 أشهر | D79: ويفر اكشن مغطس أبيض 12ع * 12 ق ( 5 جنية ) | E79: كرتونة | V79: 0 | W79: شيكوهند سوفت 12 ع * 100 ق | X79: 0 | AN79: 0 | AO79: شيكوهند سوفت 12 ع * 100 ق
A80: 77 | B80: 2810 | C80: 9 أشهر | D80: ويفر اكشن مغطس أبيض 8ع * 12 ق ( 5 جنية ) | E80: كرتونة | V80: 0 | W80: بار شيكوهند 3 ك | X80: 50 | AM80: 50 | AN80: 50 | AO80: بار شيكوهند 3 ك
A81: 78 | B81: 6222000912365 | C81: 9 أشهر | D81: بايتس مربع 6ع * 50ق بنى | E81: كرتونة | P81: 29 | V81: 29 | W81: ويفر ايليت مغطس بنى 12 *12 | X81: 0 | AN81: 0 | AO81: ويفر ايليت مغطس بنى 12 *12
A82: 79 | B82: 6222000902083 | C82: 9 أشهر | D82: بايتس مربع 6 ع * 50 ق ابيض | E82: كرتونة | V82: 0 | W82: ويفر ايليت مغطس ابيض 12 * 12 | X82: 0 | AN82: 0 | AO82: ويفر ايليت مغطس ابيض 12 * 12
A83: 80 | B83: 6222000913904 | C83: 9 أشهر | D83: بايتس مربع 6 ع * 50 ق فراولة | E83: كرتونة | V83: 0 | W83: ويفر ايليت مغطس فراولة 12*12 | X83: 0 | AN83: 0 | AO83: ويفر ايليت مغطس فراولة 12*12
A84: 81 | B84: 6222000916738 | C84: 9 أشهر | D84: ويفر بوتيك مربع 9 كيس * 500 جم | E84: كرتونة | V84: 0 | W84: ايليت ماكس سادة ش 12 باكو 6 قطع | X84: 263 | AK84: 263 | AN84: 263 | AO84: ايليت ماكس سادة ش 12 باكو 6 قطع
A85: 82 | B85: 002797 | C85: 4 أشهر | D85: كورن عائلي 15 كيس | E85: كرتونة | S85: 211 | V85: =SUM(G85:U85) -> 211 | W85: ايليت ماكس سادة فانيليا 12 باكو * 6 قطع | X85: 0 | AN85: 0 | AO85: ايليت ماكس سادة فانيليا 12 باكو * 6 قطع
A86: 83 | B86: 002796 | C86: 6 أشهر | D86: فاير فنجرز 15 كيس | E86: كرتونة | S86: 254 | V86: 254 | W86: ويفر مربع 3 كيلو ايليت ابيض | X86: 0 | AN86: 0 | AO86: ويفر مربع 3 كيلو ايليت ابيض
A87: 84 | B87: 001766 | C87: 6 أشهر | D87: اسبيشيال أطعم 15 كيس | E87: كرتونة | Q87: 213 | V87: 213 | W87: ويفر مربع 3 كيلو ايليت شيكولاته | X87: 0 | Y87: =IFERROR(IF(INDEX($G$4:$U$94,MATCH(TRIM($W87),$D$4:$D$94,0),MATCH(Y$3,$G$3:$U$3,0))=0,"",INDEX($G$4:$U$94,MATCH(TRIM($W87),$D$4:$D$94,0),MATCH(Y$3,$G$3:$U$3,0))),"") ->  | AN87: 0 | AO87: ويفر مربع 3 كيلو ايليت شيكولاته
A88: 85 | B88: EG-670026743-3002 | C88: 6 أشهر | D88: شيل أوت شيبس 15 كيس سعر الكيس 10 جنية | E88: كرتونة | Q88: 2 | S88: 187 | V88: 189 | W88: ويفر مربع 3 كيلو ايليت فراوله | X88: 0 | AN88: 0 | AO88: ويفر مربع 3 كيلو ايليت فراوله
A89: 86 | B89: 6224001574221 | C89: سنة | D89: زى كولا مشروب غازى 275 حلى | E89: كرتونة | P89: 254 | S89: 700 | V89: 954 | W89: ويفر مربع 3 كيلو ايليت جوز هند | X89: 0 | AN89: 0 | AO89: ويفر مربع 3 كيلو ايليت جوز هند
A90: 87 | B90: 2798 | C90: 9 أشهر | D90: اهلا بالعيد 8 كيس * 660 جم | E90: كرتونة | V90: 0 | W90: ويفر فرحه 5 كيلو | X90: 36 | AI90: 36 | AN90: 36 | AO90: ويفر فرحه 5 كيلو
A91: 88 | B91: 00695 | C91: سنة | D91: قهوه20كيس*150جرام | E91: كرتونة | V91: 0 | W91: ويفر ايليت مربع بايتس 3 ك بني | X91: 0 | AN91: 0 | AO91: ويفر ايليت مربع بايتس 3 ك بني
A92: 89 | B92: 6222000912518 | C92: سنتان | D92: نعناع 12 ع * 240 ق | E92: كرتونة | V92: 0 | W92: بسكوت اكشن سادة شاي 6 ع * 12 ق | X92: 0 | AN92: 0 | AO92: بسكوت اكشن سادة شاي 6 ع * 12 ق
A93: 90 | B93: 002827 | D93: سولا فواكة فلوباك 10 ك | E93: كرتونة | T93: 55 | V93: 55 | W93: بسكوت اكشن سادة شاي 6 ع * 12 ق ( نباتى ) | X93: 0 | AN93: 0 | AO93: بسكوت اكشن سادة شاي 6 ع * 12 ق ( نباتى )
A94: 91 | V94: 0 | W94: ويفر اكشن مغطس بنى 12ع * 12 ق ( 5 جنية ) | X94: 28 | AH94: 28 | AN94: 28 | AO94: ويفر اكشن مغطس بنى 12ع * 12 ق ( 5 جنية )
A95: 92 | V95: 0 | W95: ويفر اكشن مغطس أبيض 12ع * 12 ق ( 5 جنية ) | X95: 0 | AN95: 0 | AO95: ويفر اكشن مغطس أبيض 12ع * 12 ق ( 5 جنية )
A96: 93 | V96: 0 | W96: ويفر اكشن مغطس أبيض 8ع * 12 ق ( 5 جنية ) | X96: 0 | AN96: 0 | AO96: ويفر اكشن مغطس أبيض 8ع * 12 ق ( 5 جنية )
A97: 94 | V97: 0 | W97: بايتس مربع 6ع * 50ق بنى | X97: 0 | AN97: 0 | AO97: بايتس مربع 6ع * 50ق بنى
A98: 95 | V98: 0 | W98: بايتس مربع 6 ع * 50 ق ابيض | X98: 0 | AN98: 0 | AO98: بايتس مربع 6 ع * 50 ق ابيض
A99: 96 | V99: 0 | W99: ويفر 4 علبه * 50 قطعه ابيض بايتس | X99: 0 | AN99: 0 | AO99: ويفر 4 علبه * 50 قطعه ابيض بايتس
A100: 97 | V100: 0 | W100: ويفر 5 علبه * 50 قطعه ابيض بايتس | X100: 0 | AN100: 0 | AO100: ويفر 5 علبه * 50 قطعه ابيض بايتس
A101: 98 | V101: 0 | W101: ويفر 7 علبه * 50 قطعه ابيض بايتس | X101: 0 | AN101: 0 | AO101: ويفر 7 علبه * 50 قطعه ابيض بايتس
A102: 99 | V102: 0 | W102: بايتس مربع 6 ع * 50 ق فراولة | X102: 0 | AN102: 0 | AO102: بايتس مربع 6 ع * 50 ق فراولة
A103: 100 | V103: 0 | W103: ويفر 4 علبه * 50 قطعه فراولة بايتس | X103: 0 | AN103: 0 | AO103: ويفر 4 علبه * 50 قطعه فراولة بايتس
A104: 101 | V104: 0 | W104: ويفر بوتيك مربع 9 كيس * 500 جم | X104: 0 | Y104: =IFERROR(IF(INDEX($G$4:$U$94,MATCH(TRIM($W104),$D$4:$D$94,0),MATCH(Y$3,$G$3:$U$3,0))=0,"",INDEX($G$4:$U$94,MATCH(TRIM($W104),$D$4:$D$94,0),MATCH(Y$3,$G$3:$U$3,0))),"") ->  | AN104: 0 | AO104: ويفر بوتيك مربع 9 كيس * 500 جم
A105: 102 | V105: 0 | W105: ايليت عرض خاص | X105: 0 | AN105: 0 | AO105: ايليت عرض خاص
A106: 103 | V106: 0 | W106: اهلا بالعيد 8 كيس * 660 جم | X106: 0 | AN106: 0 | AO106: اهلا بالعيد 8 كيس * 660 جم
A107: 104 | V107: 0 | W107: كورن عائلي 15 كيس | X107: 211 | AK107: 211 | AN107: 211 | AO107: كورن عائلي 15 كيس
A108: 105 | V108: 0 | W108: فاير فنجرز 15 كيس | X108: 254 | AK108: 254 | AN108: 254 | AO108: فاير فنجرز 15 كيس
A109: 106 | V109: 0 | W109: اسبيشيال أطعم 15 كيس | X109: 0 | AN109: 0 | AO109: اسبيشيال أطعم 15 كيس
A110: 107 | V110: 0 | W110: شيل أوت شيبس 15 كيس سعر الكيس 10 جنية | X110: 189 | AI110: 2 | AK110: 187 | AN110: 189 | AO110: شيل أوت شيبس 15 كيس سعر الكيس 10 جنية
V111: 0 | W111: زى كولا مشروب غازى 275 حلى | X111: 954 | AH111: 254 | AK111: 700 | AN111: 954 | AO111: زى كولا مشروب غازى 275 حلى
A112: 108 | V112: 0 | W112: زبدة 12 علبة * 240 ق | X112: 0 | AN112: 0 | AO112: زبدة 12 علبة * 240 ق
A113: الاجمالى | F113: =SUM(F4:F112) -> 0 | G113: 0 | H113: 0 | I113: 0 | J113: 0 | K113: 0 | L113: 0 | M113: 0 | N113: 59 | O113: 6 | P113: 421 | Q113: 416 | R113: 85 | S113: 2723.5 | T113: 1012 | U113: =SUM(U4:U112) -> 405 | V113: =SUM(V4:V111) -> 5127.5 | X113: =SUM(X4:X112) -> 4293.5 | Y113: =SUM(Y4:Y112) -> 0 | Z113: =SUM(Z4:Z112) -> 0 | AA113: 0 | AB113: 0 | AC113: 0 | AD113: 0 | AE113: 0 | AF113: 59 | AG113: 6 | AH113: 392 | AI113: 60 | AJ113: 85 | AK113: 2374.5 | AL113: 912 | AM113: 405 | AN113: =SUM(AN4:AN112) -> 4293.5
AH115: =P113-AH113 -> 29 | AI115: =Q113-AI113 -> 356 | AK115: =S113-AK113 -> 349 | AL115: =T113-AL113 -> 100
V117: =V113-AN113 -> 834

Sheet الرصيد 3
A1: رصيد توكيل ( توكيل نجع حمادى ) عن يوم ( الخميس 9/13 )
A2: م | B2: الكود | C2: مدة الصلاحية | D2: الصنف | E2: الوحدة | F2: الرصيد الدفترى بالكرتونة | V2: الرصيد الفعلى بالكرتونة | W2: تنسيق الارقام مع اسم الصنف والتاريخ المقابل لها | AN2: الرصيد الفعلى بالكرتونة
G3: 2024-08-01 | H3: 2024-09-01 | I3: 2024-10-01 | J3: 2024-11-01 | K3: 2024-12-01 | L3: 2025-01-01 | M3: 2025-02-01 | N3: 2025-03-01 | O3: 2025-04-01 | P3: 2025-05-01 | Q3: 2025-06-01 | R3: 2025-07-01 | S3: 2025-08-01 | T3: 2025-09-01 | U3: 2025-10-01 | W3: اسم الصنف | X3: الرصيد | Y3: 2024-08-01 | Z3: 2024-09-01 | AA3: 2024-10-01 | AB3: 2024-11-01 | AC3: 2024-12-01 | AD3: 2025-01-01 | AE3: 2025-02-01 | AF3: 2025-03-01 | AG3: 2025-04-01 | AH3: 2025-05-01 | AI3: 2025-06-01 | AJ3: 2025-07-01 | AK3: 2025-08-01 | AL3: 2025-09-01 | AM3: 2025-10-01
A4: 1 | B4: 6222000901529 | C4: سنتان | D4: سوبر فينا 10 كيلو | E4: كرتونة | U4: 62 | V4: =SUM(G4:U4) -> 62 | W4: =D4 -> سوبر فينا 10 كيلو | X4: =AN4 -> 62 | AM4: 62 | AN4: =SUM(Y4:AM4) -> 62
A5: 2 | B5: 002827 | C5: سنتان | D5: سولا فواكة فلوباك 10 ك | E5: كرتونة | T5: 113 | V5: =SUM(G5:U5) -> 113 | W5: =D5 -> سولا فواكة فلوباك 10 ك | X5: 113 | AL5: 113 | AN5: 113
A6: 3 | B6: 6222000908566 | C6: سنتان | D6: سولا فواكة 5 ك | E6: كرتونة | L6: 8 | V6: 8 | W6: سولا فواكة 5 ك | X6: 8 | AD6: 8 | AN6: 8
A7: 4 | B7: 6222000917773 | C7: سنتان | D7: سولا فواكه 30 كيس * 28 ق | E7: كرتونة | R7: 84 | V7: 84 | W7: سولا فواكه 30 كيس * 28 ق | X7: 84 | AJ7: 84 | AN7: 84
A8: 5 | B8: 6222000911764 | C8: سنتان | D8: سولا فواكه 12 كيس * 50 ق | E8: كرتونة | V8: 0 | W8: سولا فواكه 12 كيس * 50 ق | X8: 0 | AN8: 0
A9: 6 | B9: 6222000917780 | C9: سنتان | D9: سولا فواكه 12 كيس * 100 ق | E9: كرتونة | V9: 0 | W9: سولا فواكه 12 كيس * 100 ق | X9: 0 | AN9: 0
A10: 7 | B10: 6222000912525 | C10: سنتان | D10: سولا ف 12 ع * 200 ق | E10: كرتونة | V10: 0 | W10: سولا ف 12 ع * 200 ق | X10: 0 | AN10: 0
A11: 8 | B11: 002806 | C11: سنتان | D11: سولا ف 12 ع * 240 ق | E11: كرتونة | T11: 8 | U11: 30 | V11: 38 | W11: سولا ف 12 ع * 240 ق | X11: 38 | AL11: 8 | AM11: 30 | AN11: 38
A12: 9 | B12: 6222000901536 | C12: سنتان | D12: سوبر فينا 10 كيلو نعناع | E12: كرتونة | U12: 13 | V12: 13 | W12: سوبر فينا 10 كيلو نعناع | X12: 13 | AM12: 13 | AN12: 13
A13: 10 | B13: 002828 | C13: سنتان | D13: سولا نعناع فلوباك 10 ك | E13: كرتونة | T13: 27 | V13: 27 | W13: سولا نعناع فلوباك 10 ك | X13: 27 | AL13: 27 | AN13: 27
A14: 11 | B14: 6222000908573 | C14: سنتان | D14: سولا نعناع 5 ك | E14: كرتونة | L14: 30 | V14: 30 | W14: سولا نعناع 5 ك | X14: 30 | AD14: 30 | AN14: 30
A15: 12 | B15: 6222000917629 | C15: سنتان | D15: سولا نعناع 30 كيس * 28 ق | E15: كرتونة | V15: 0 | W15: سولا نعناع 30 كيس * 28 ق | X15: 0 | AN15: 0
A16: 13 | B16: 6222000911733 | C16: سنتان | D16: نعناع 12كيس 50 ق 4جم | E16: كرتونة | V16: 0 | W16: نعناع 12كيس 50 ق 4جم | X16: 0 | AN16: 0
A17: 14 | B17: 6222000917612 | C17: سنتان | D17: سولا نعناع 12 كيس * 100 ق | E17: كرتونة | T17: 90 | V17: 90 | W17: سولا نعناع 12 كيس * 100 ق | X17: 90 | AL17: 90 | AN17: 90
A18: 15 | B18: 6222000912518 | C18: سنتان | D18: سولا نعناع 12 ع * 200 ق | E18: كرتونة | R18: 36 | V18: 36 | W18: سولا نعناع 12 ع * 200 ق | X18: 36 | AJ18: 36 | AN18: 36
A19: 16 | B19: 002807 | C19: سنتان | D19: نعناع 12 ع * 240 ق | E19: كرتونة | V19: 0 | W19: نعناع 12 ع * 240 ق | X19: 0 | AN19: 0
A20: 17 | B20: 6222000901758 | C20: سنة | D20: سولا قهوه 10 كيلو | E20: كرتونة | T20: 83 | V20: 83 | W20: سولا قهوه 10 كيلو | X20: 83 | AL20: 83 | AN20: 83
A21: 18 | B21: 6222000912020 | C21: سنة | D21: قهوة 5 ك | E21: كرتونة | V21: 0 | W21: قهوة 5 ك | X21: 0 | AN21: 0
A22: 19 | B22: 6222000909891 | C22: سنة | D22: قهوة 30 كيس * 12قطعه | E22: كرتونة | V22: 0 | W22: قهوة 30 كيس * 12قطعه | X22: 0 | AN22: 0
A23: 20 | B23: 6222000909891 | C23: سنة | D23: قهوة 30 كيس * 15قطعه | E23: كرتونة | V23: 0 | W23: قهوة 30 كيس * 15قطعه | X23: 0 | AN23: 0
A24: 21 | B24: 6222000908610 | C24: سنة | D24: قهوة 30 كيس * 18 ق / 25 ق | E24: كرتونة | T24: 32 | V24: 32 | W24: قهوة 30 كيس * 18 ق / 25 ق | X24: 32 | AL24: 32 | AN24: 32
A25: 22 | B25: 269 | C25: سنة | D25: قهوة 12 كيس * 55 ق | E25: كرتونة | T25: 100 | V25: 100 | W25: قهوة 12 كيس * 55 ق | X25: 100 | AL25: 100 | AN25: 100
A26: 23 | B26: 6222000909815 | C26: سنة | D26: قهوة 12 كيس * 80 ق / 90 ق | E26: كرتونة | T26: 48 | V26: 48 | W26: قهوة 12 كيس * 80 ق / 90 ق | X26: 48 | AL26: 48 | AN26: 48
A27: 24 | B27: 6222000909815 | C27: سنة | D27: قهوة 12 كيس * 120 ق | E27: كرتونة | V27: 0 | W27: قهوة 12 كيس * 120 ق | X27: 0 | AN27: 0
A28: 25 | B28: 00743 | C28: سنة | D28: قهوة 12 ع * 200 ق | E28: كرتونة | V28: 0 | W28: قهوة 12 ع * 200 ق | X28: 0 | AN28: 0
A29: 26 | B29: 002804 | C29: سنة | D29: قهوة 12 ع * 240 ق | E29: كرتونة | S29: 88 | T29: 62 | V29: 150 | W29: قهوة 12 ع * 240 ق | X29: 150 | AK29: 88 | AL29: 62 | AN29: 150
A30: 27 | B30: 6222000910118 | C30: سنة | D30: قهوه20كيس*150جرام | E30: كرتونة | V30: 0 | W30: قهوه20كيس*150جرام | X30: 0 | AN30: 0
A31: 28 | B31: 6222000901642 | C31: سنة | D31: سولا زبده 10 كيلو | E31: كرتونة | S31: 95 | V31: 95 | W31: سولا زبده 10 كيلو | X31: 95 | AK31: 95 | AN31: 95
A32: 29 | B32: 6222000912037 | C32: سنة | D32: زبدة 5 ك | E32: كرتونة | V32: 0 | W32: زبدة 5 ك | X32: 0 | AN32: 0
A33: 30 | B33: 6222000913331 | C33: سنة | D33: زبدة 30 كيس * 12قطعه | E33: كرتونة | V33: 0 | W33: زبدة 30 كيس * 12قطعه | X33: 0 | AN33: 0
A34: 31 | B34: 00704 | C34: سنة | D34: زبدة 30 كيس * 15 قطعه | E34: كرتونة | S34: 16 | V34: 16 | W34: زبدة 30 كيس * 15 قطعه | X34: 16 | AK34: 16 | AN34: 16
A35: 32 | B35: 6222000907583 | C35: سنة | D35: زبدة 30 كيس * 18 ق / 25 ق | E35: كرتونة | V35: 0 | W35: زبدة 30 كيس * 18 ق / 25 ق | X35: 0 | AN35: 0
A36: 33 | B36: 6222000905688 | C36: سنة | D36: زبدة 12 كيس * 55 قطعه | E36: كرتونة | V36: 0 | W36: زبدة 12 كيس * 55 قطعه | X36: 0 | AN36: 0
A37: 34 | B37: 6222000909808 | C37: سنة | D37: زبدة 12 كيس * 80 ق / 90 ق | E37: كرتونة | V37: 0 | W37: زبدة 12 كيس * 80 ق / 90 ق | X37: 0 | AN37: 0
A38: 35 | B38: 171 | C38: سنة | D38: زبدة 12 كيس * 120 ق | E38: كرتونة | S38: 24 | V38: 24 | W38: زبدة 12 كيس * 120 ق | X38: 24 | AK38: 24 | AN38: 24
A39: 36 | B39: 00744 | C39: سنة | D39: زبدة 12 ع * 200 ق | E39: كرتونة | R39: 38 | V39: 38 | W39: زبدة 12 ع * 200 ق | X39: 38 | AJ39: 38 | AN39: 38
A40: 37 | B40: 6222000917056 | C40: سنة | D40: زبدة 12 علبة * 240 ق | E40: كرتونة | T40: 139 | V40: 139 | W40: زبدة 12 علبة * 240 ق | X40: 139 | AL40: 139 | AN40: 139
A41: 38 | B41: 6222000910064 | C41: سنة | D41: زبدة 10 شنطة * 800 جم | E41: كرتونة | V41: 0 | W41: زبدة 10 شنطة * 800 جم | X41: 0 | AN41: 0
A42: 39 | B42: 6222000918732 | C42: سنة | D42: زبدة بالشيكولاته 10 ك | E42: كرتونة | T42: 170 | V42: 170 | W42: زبدة بالشيكولاته 10 ك | X42: 170 | AL42: 170 | AN42: 170
A43: 40 | B43: 6222000917148 | C43: سنة | D43: زبدة بالشيكولاته 30 كيس * 15 قطعه | E43: كرتونة | T43: 40 | V43: 40 | W43: زبدة بالشيكولاته 30 كيس * 15 قطعه | X43: 40 | AL43: 40 | AN43: 40
A44: 41 | B44: 6222000917155 | C44: سنة | D44: زبدة بالشيكولاته 12 كيس * 55 قطعه | E44: كرتونة | T44: 65 | V44: 65 | W44: زبدة بالشيكولاته 12 كيس * 55 قطعه | X44: 65 | AL44: 65 | AN44: 65
A45: 42 | B45: 002820 | C45: سنة | D45: زبدة بالشيكولاته 12 كيس * 120 ق | E45: كرتونة | T45: 70 | V45: 70 | W45: زبدة بالشيكولاته 12 كيس * 120 ق | X45: 70 | AL45: 70 | AN45: 70
A46: 43 | B46: 6222000917124 | C46: سنة | D46: زبدة بالشيكولاته 12 علبة * 240 ق | E46: كرتونة | T46: 119 | V46: 119 | W46: زبدة بالشيكولاته 12 علبة * 240 ق | X46: 119 | AL46: 119 | AN46: 119
A47: 44 | B47: 6222000912457 | C47: 9 أشهر | D47: عسلية 5 ك | E47: كرتونة | V47: 0 | W47: عسلية 5 ك | X47: 0 | AN47: 0
A48: 45 | B48: 6222000912501 | C48: 9 أشهر | D48: عسلية 12 ع * 200 ق | E48: كرتونة | V48: 0 | W48: عسلية 12 ع * 200 ق | X48: 0 | AN48: 0
A49: 46 | B49: 6222000901611 | C49: سنة | D49: اكلير سايب 10 كيلو | E49: كرتونة | R49: 178 | T49: 105 | V49: 283 | W49: اكلير سايب 10 كيلو | X49: 283 | AJ49: 178 | AL49: 105 | AN49: 283
A50: 47 | B50: 6222000909907 | C50: سنة | D50: اكلير 30 كيس * 9 ق / 10 ق | E50: كرتونة | V50: 0 | W50: اكلير 30 كيس * 9 ق / 10 ق | X50: 0 | AN50: 0
A51: 48 | B51: 00706 | C51: سنة | D51: اكلير 30 كيس * 12 قطعه | E51: كرتونة | R51: 123 | V51: 123 | W51: اكلير 30 كيس * 12 قطعه | X51: 123 | AJ51: 123 | AN51: 123
A52: 49 | B52: 6222000912822 | C52: سنة | D52: اكلير 30 كيس * 15 ق / 20 ق | E52: كرتونة | V52: 0 | W52: اكلير 30 كيس * 15 ق / 20 ق | X52: 0 | AN52: 0
A53: 50 | B53: 6222000905701 | C53: سنة | D53: اكلير 12كيس 45 ق | E53: كرتونة | R53: 50 | V53: 50 | W53: اكلير 12كيس 45 ق | X53: 50 | AJ53: 50 | AN53: 50
A54: 51 | B54: 6222000912778 | C54: سنة | D54: اكلير 12كيس * 65 ق / 70 ق | E54: كرتونة | V54: 0 | W54: اكلير 12كيس * 65 ق / 70 ق | X54: 0 | AN54: 0
A55: 52 | B55: 00680 | C55: سنة | D55: اكلير 12 كيس * 100 قطعة | E55: كرتونة | S55: 81 | V55: 81 | W55: اكلير 12 كيس * 100 قطعة | X55: 81 | AK55: 81 | AN55: 81
A56: 53 | B56: 6222000912532 | C56: سنة | D56: اكلير 12 علبة * 160 ق | E56: كرتونة | V56: 0 | W56: اكلير 12 علبة * 160 ق | X56: 0 | AN56: 0
A57: 54 | B57: 00748 | C57: سنة | D57: اكلير 12 علبة 200 ق | E57: كرتونة | R57: 62 | V57: 62 | W57: اكلير 12 علبة 200 ق | X57: 62 | AJ57: 62 | AN57: 62
A58: 55 | B58: 002836 | C58: سنة | D58: اكلير سايب 10 ك spanish latie اسبانيش | E58: كرتونة | V58: 0 | W58: اكلير سايب 10 ك spanish latie اسبانيش | X58: 0 | AN58: 0
A59: 56 | B59: 6222000918909 | C59: سنة | D59: اكلير 12علبة * 200 ق اسبانيش spanish latie | E59: كرتونة | V59: 0 | W59: اكلير 12علبة * 200 ق اسبانيش spanish latie | X59: 0 | AN59: 0
A60: 57 | B60: 6222000901697 | C60: سنة | D60: طوفي 10 كجم | E60: كرتونة | T60: 180 | U60: 151 | V60: 331 | W60: طوفي 10 كجم | X60: 331 | AL60: 180 | AM60: 151 | AN60: 331
A61: 58 | B61: 6222000909921 | C61: سنة | D61: طوفي 30 كيس * 12قطعه | E61: كرتونة | V61: 0 | W61: طوفي 30 كيس * 12قطعه | X61: 0 | AN61: 0
A62: 59 | B62: 002821 | C62: سنة | D62: طوفي 30 كيس * 25 قطعه | E62: كرتونة | V62: 0 | W62: طوفي 30 كيس * 25 قطعه | X62: 0 | AN62: 0
A63: 60 | B63: 6222000908276 | C63: سنة | D63: طوفى 30 كيس * 28 ق | E63: كرتونة | T63: 120 | V63: 120 | W63: طوفى 30 كيس * 28 ق | X63: 120 | AL63: 120 | AN63: 120
A64: 61 | B64: 6222000909839 | C64: سنة | D64: طوفي 12 كيس * 90 ق | E64: كرتونة | V64: 0 | W64: طوفي 12 كيس * 90 ق | X64: 0 | AN64: 0
A65: 62 | B65: 6222000905718 | C65: سنة | D65: طوفى 12كيس * 100 ق | E65: كرتونة | S65: 9 | T65: 42 | V65: 51 | W65: طوفى 12كيس * 100 ق | X65: 51 | AK65: 9 | AL65: 42 | AN65: 51
A66: 63 | B66: 6222000908825 | C66: سنة | D66: طوفى 12 ع * 200 ق | E66: كرتونة | V66: 0 | W66: طوفى 12 ع * 200 ق | X66: 0 | AN66: 0
A67: 64 | B67: 6222000912556 | C67: سنة | D67: طوفي 12 علبه * 240 ق | E67: كرتونة | T67: 119 | V67: 119 | W67: طوفي 12 علبه * 240 ق | X67: 119 | AL67: 119 | AN67: 119
A68: 65 | B68: 6222000918534 | C68: سنة | D68: طوفي شيكولاته 12 كيس * 25 ق | E68: كرتونة | V68: 0 | W68: طوفي شيكولاته 12 كيس * 25 ق | X68: =AN68 -> 0 | AN68: =SUM(Y68:AM68) -> 0
A69: 66 | B69: 6222000918831 | C69: سنة | D69: طوفي شيكولاته 12 علبة * 100 ق | E69: كرتونة | T69: 41 | V69: =SUM(G69:U69) -> 41 | W69: =D69 -> طوفي شيكولاته 12 علبة * 100 ق | X69: 41 | AL69: 41 | AN69: 41
A70: 67 | B70: 002821 | C70: سنة | D70: طوفي زبدة 12 كيس * 25 ق | E70: كرتونة | T70: 47 | V70: 47 | W70: طوفي زبدة 12 كيس * 25 ق | X70: 47 | AL70: 47 | AN70: 47
A71: 68 | B71: 6222000918800 | C71: سنة | D71: طوفي زبدة 10ك | E71: كرتونة | T71: 46 | V71: 46 | W71: طوفي زبدة 10ك | X71: 46 | AL71: 46 | AN71: 46
A72: 69 | B72: 2840 | C72: سنة | D72: طوفي زبدة 12 علبه *100 قطعه | E72: كرتونة | U72: 34 | V72: 34 | W72: طوفي زبدة 12 علبه *100 قطعه | X72: 34 | AM72: 34 | AN72: 34
A73: 70 | B73: 6222000903295 | C73: سنة | D73: شيكولاته بوتيك 6 علبه * 1.25 كيلو | E73: كرتونة | V73: 0 | W73: شيكولاته بوتيك 6 علبه * 1.25 كيلو | X73: 0 | AN73: 0
A74: 71 | B74: 6222000912006 | C74: سنة | D74: شيكولاته بوتيك حليب 4 ك | E74: كرتونة | V74: 0 | W74: شيكولاته بوتيك حليب 4 ك | X74: 0 | AN74: 0
A75: 72 | B75: 6222000911993 | C75: سنة | D75: شيكولاته بوتيك كراميل 4 ك | E75: كرتونة | V75: 0 | W75: شيكولاته بوتيك كراميل 4 ك | X75: 0 | AN75: 0
A76: 73 | B76: 6222000912013 | C76: سنة | D76: شيكولاته بوتيك بندق 4 ك | E76: كرتونة | V76: 0 | W76: شيكولاته بوتيك بندق 4 ك | X76: 0 | AN76: 0
A77: 74 | B77: 002837 | C77: سنة | D77: شيكولاته صوابع بنى 3 كيلو دوبل تويست | E77: كرتونة | U77: 49 | V77: 49 | W77: شيكولاته صوابع بنى 3 كيلو دوبل تويست | X77: 49 | AM77: 49 | AN77: 49
A78: 75 | B78: 6222000919548 | C78: سنة | D78: شيكولاته صوابع ابيض 3 كيلو دوبل تويست | E78: كرتونة | U78: 39 | V78: 39 | W78: شيكولاته صوابع ابيض 3 كيلو دوبل تويست | X78: 39 | AM78: 39 | AN78: 39
A79: 76 | B79: 6222000964197 | C79: سنة | D79: شيكوهند سايب 10 كجم | E79: كرتونة | V79: 0 | W79: شيكوهند سايب 10 كجم | X79: 0 | AN79: 0
A80: 77 | B80: 6222000906630 | C80: سنة | D80: سوفت شيكوهند 5 ك | E80: كرتونة | T80: 154 | V80: 154 | W80: سوفت شيكوهند 5 ك | X80: 154 | AL80: 154 | AN80: 154
A81: 78 | B81: 6222000918077 | C81: سنة | D81: شيكوهند سوفت 12 كيس * 28 ق | E81: كرتونة | T81: 30 | V81: 30 | W81: شيكوهند سوفت 12 كيس * 28 ق | X81: 30 | AL81: 30 | AN81: 30
A82: 79 | B82: 6222000918084 | C82: سنة | D82: شيكوهند سوفت 12 كيس * 60 ق | E82: كرتونة | T82: 45 | V82: 45 | W82: شيكوهند سوفت 12 كيس * 60 ق | X82: 45 | AL82: 45 | AN82: 45
A83: 80 | B83: 6222000612549 | C83: سنة | D83: شيكوهند سوفت 12 ع * 100 ق | E83: كرتونة | T83: 98 | V83: 98 | W83: شيكوهند سوفت 12 ع * 100 ق | X83: 98 | AL83: 98 | AN83: 98
A84: 81 | B84: 6222000915243 | C84: سنة | D84: بار شيكوهند 3 ك | E84: كرتونة | T84: 46 | U84: 50 | V84: 96 | W84: بار شيكوهند 3 ك | X84: 96 | AL84: 46 | AM84: 50 | AN84: 96
A85: 82 | B85: 6222000902519 | C85: 9 أشهر | D85: ويفر ايليت مغطس بنى 12 *12 | E85: كرتونة | V85: 0 | W85: ويفر ايليت مغطس بنى 12 *12 | X85: 0 | AN85: 0
A86: 83 | B86: 6222000902557 | C86: 9 أشهر | D86: ويفر ايليت مغطس ابيض 12 * 12 | E86: كرتونة | V86: 0 | W86: ويفر ايليت مغطس ابيض 12 * 12 | X86: 0 | AN86: 0
A87: 84 | B87: 6222000902564 | C87: 9 أشهر | D87: ويفر ايليت مغطس فراولة 12*12 | E87: كرتونة | V87: 0 | W87: ويفر ايليت مغطس فراولة 12*12 | X87: 0 | AN87: 0
A88: 85 | B88: 6222000910200 | C88: 9 أشهر | D88: ايليت ماكس سادة ش 12 باكو 6 قطع | E88: كرتونة | R88: 375 | V88: 375 | W88: ايليت ماكس سادة ش 12 باكو 6 قطع | X88: 375 | AJ88: 375 | AN88: 375
A89: 86 | B89: 6222000910514 | C89: 9 أشهر | D89: ايليت ماكس سادة فانيليا 12 باكو * 6 قطع | E89: كرتونة | R89: 190 | U89: 120 | V89: 310 | W89: ايليت ماكس سادة فانيليا 12 باكو * 6 قطع | X89: 310 | AJ89: 190 | AM89: 120 | AN89: 310
A90: 87 | B90: 6222000909976 | C90: 9 أشهر | D90: ويفر مربع 3 كيلو ايليت ابيض | E90: كرتونة | T90: 44 | V90: 44 | W90: ويفر مربع 3 كيلو ايليت ابيض | X90: 44 | AL90: 44 | AN90: 44
A91: 88 | B91: 6222000909983 | C91: 9 أشهر | D91: ويفر مربع 3 كيلو ايليت شيكولاته | E91: كرتونة | T91: 16 | V91: 16 | W91: ويفر مربع 3 كيلو ايليت شيكولاته | X91: 16 | AL91: 16 | AN91: 16
A92: 89 | B92: 6222000909969 | C92: 9 أشهر | D92: ويفر مربع 3 كيلو ايليت فراوله | E92: كرتونة | T92: 22 | V92: 22 | W92: ويفر مربع 3 كيلو ايليت فراوله | X92: 22 | AL92: 22 | AN92: 22
A93: 90 | B93: 6888000909952 | C93: 9 أشهر | D93: ويفر مربع 3 كيلو ايليت جوز هند | E93: كرتونة | V93: 0 | W93: ويفر مربع 3 كيلو ايليت جوز هند | X93: 0 | AN93: 0
A94: 91 | B94: 622200097116 | C94: 9 أشهر | D94: ويفر فرحه 5 كيلو | E94: كرتونة | T94: 178 | U94: 100 | V94: 278 | W94: ويفر فرحه 5 كيلو | X94: 278 | AL94: 178 | AM94: 100 | AN94: 278
A95: 92 | C95: 9 أشهر | D95: ويفر ايليت مربع بايتس 3ك بنى | E95: كرتونة | V95: 0 | W95: ويفر ايليت مربع بايتس 3ك بنى | X95: 0 | AN95: 0
A96: 93 | B96: 6222000912488 | C96: سنة | D96: بسكوت اكشن سادة شاي 6 ع * 12 ق | E96: كرتونة | V96: 0 | W96: بسكوت اكشن سادة شاي 6 ع * 12 ق | X96: 0 | AN96: 0
A97: 94 | B97: 6222000914383 | C97: سنة | D97: بسكوت اكشن سادة شاي 6 ع * 12 ق ( نباتى ) | E97: كرتونة | V97: 0 | W97: بسكوت اكشن سادة شاي 6 ع * 12 ق ( نباتى ) | X97: 0 | AN97: 0
A98: 95 | B98: 6222000916165 | C98: 9 أشهر | D98: ويفر اكشن مغطس بنى 12ع * 12 ق ( 5 جنية ) | E98: كرتونة | T98: 741 | U98: 175 | V98: 916 | W98: ويفر اكشن مغطس بنى 12ع * 12 ق ( 5 جنية ) | X98: 916 | AL98: 741 | AM98: 175 | AN98: 916
A99: 96 | B99: 6222000916172 | C99: 9 أشهر | D99: ويفر اكشن مغطس أبيض 12ع * 12 ق ( 5 جنية ) | E99: كرتونة | U99: 225 | V99: 225 | W99: ويفر اكشن مغطس أبيض 12ع * 12 ق ( 5 جنية ) | X99: 225 | AM99: 225 | AN99: 225
A100: 97 | B100: 002810 | C100: 9 أشهر | D100: ويفر اكشن مغطس أبيض 8ع * 12 ق ( 5 جنية ) | E100: كرتونة | V100: 0 | W100: ويفر اكشن مغطس أبيض 8ع * 12 ق ( 5 جنية ) | X100: 0 | AN100: 0
A101: 98 | B101: 6222000912365 | C101: 9 أشهر | D101: بايتس مربع 6ع * 50ق بنى | E101: كرتونة | T101: 659 | U101: 310 | V101: 969 | W101: بايتس مربع 6ع * 50ق بنى | X101: 969 | AL101: 659 | AM101: 310 | AN101: 969
A102: 99 | B102: 6222000912396 | C102: 9 أشهر | D102: بايتس مربع 6 ع * 50 ق ابيض | E102: كرتونة | T102: 482 | U102: 330 | V102: 812 | W102: بايتس مربع 6 ع * 50 ق ابيض | X102: 812 | AL102: 482 | AM102: 330 | AN102: 812
A103: 100 | B103: 404 | C103: 9 أشهر | D103: ويفر 4 علبه * 50 قطعه ابيض بايتس | E103: كرتونة | V103: 0 | W103: ويفر 4 علبه * 50 قطعه ابيض بايتس | X103: 0 | AN103: 0
A104: 101 | B104: 406 | C104: 9 أشهر | D104: ويفر 5 علبه * 50 قطعه ابيض بايتس | E104: كرتونة | V104: 0 | W104: ويفر 5 علبه * 50 قطعه ابيض بايتس | X104: 0 | AN104: 0
A105: 102 | B105: 343 | C105: 9 أشهر | D105: ويفر 7 علبه * 50 قطعه ابيض بايتس | E105: كرتونة | V105: 0 | W105: ويفر 7 علبه * 50 قطعه ابيض بايتس | X105: 0 | AN105: 0
A106: 103 | B106: 6222000902601 | C106: 9 أشهر | D106: بايتس مربع 6 ع * 50 ق فراولة | E106: كرتونة | U106: 621 | V106: 621 | W106: بايتس مربع 6 ع * 50 ق فراولة | X106: 621 | AM106: 621 | AN106: 621
A107: 104 | B107: 002829 | C107: 9 أشهر | D107: ويفر 4 علبه * 50 قطعه فراولة بايتس | E107: كرتونة | V107: 0 | W107: ويفر 4 علبه * 50 قطعه فراولة بايتس | X107: 0 | AN107: 0
A108: 105 | B108: 6222000916738 | C108: 9 أشهر | D108: ويفر بوتيك مربع 9 كيس * 500 جم | E108: كرتونة | V108: 0 | W108: ويفر بوتيك مربع 9 كيس * 500 جم | X108: 0 | AN108: 0
A109: 106 | B109: 2841 | C109: 9 أشهر | D109: ويفر صوابع ميني ٣ كيلو تربل شيكولاته | E109: كرتونة | U109: 200 | V109: 200 | W109: ويفر صوابع ميني ٣ كيلو تربل شيكولاته | X109: 200 | AM109: 200 | AN109: 200
A110: 107 | B110: 6222000919494 | C110: 9 أشهر | D110: ويفر صوابع ميني ٣ كيلو ابيض حشو شيكولاته | E110: كرتونة | T110: 32 | V110: 32 | W110: ويفر صوابع ميني ٣ كيلو ابيض حشو شيكولاته | X110: 32 | AL110: 32 | AN110: 32
A111: 108 | B111: 002843 | C111: 9 أشهر | D111: ويفر صوابع ميني ٣ كيلو بنى حشو فرولة | E111: كرتونة | U111: 151 | V111: 151 | W111: ويفر صوابع ميني ٣ كيلو بنى حشو فرولة | X111: 151 | AM111: 151 | AN111: 151
A112: 109 | B112: 2845 | C112: 9 أشهر | D112: ويفر صوابع ميني ٣ كيلو بنى حشو سودانى | E112: كرتونة | U112: 95 | V112: 95 | W112: ويفر صوابع ميني ٣ كيلو بنى حشو سودانى | X112: 95 | AM112: 95 | AN112: 95
A113: 110 | B113: 002846 | C113: 9 أشهر | D113: ويفر صوابع ميني ٣ كيلو ابيض حشو برتقال | E113: كرتونة | U113: 147 | V113: 147 | W113: ويفر صوابع ميني ٣ كيلو ابيض حشو برتقال | X113: 147 | AM113: 147 | AN113: 147
A114: 110 | B114: 002798 | C114: 9 أشهر | D114: اهلا بالعيد 8 كيس * 660 جم | E114: كرتونة | P114: 2 | V114: 2 | W114: اهلا بالعيد 8 كيس * 660 جم | X114: 2 | AH114: 2 | AN114: 2
A115: 112 | B115: 002797 | C115: 6 أشهر | D115: كورن عائلي جبنة 15 كيس | E115: كرتونة | U115: 875 | V115: 875 | W115: كورن عائلي جبنة 15 كيس | X115: 875 | AM115: 875 | AN115: 875
A116: 113 | B116: 001766 | C116: 6 أشهر | D116: اسبيشيال أطعم 15 كيس | E116: كرتونة | U116: 248 | V116: 248 | W116: اسبيشيال أطعم 15 كيس | X116: 248 | AM116: 248 | AN116: 248
A117: 114 | B117: 002847 | C117: 9أشهر | D117: سناكس سودانى 20 كيس 15جنية | E117: كرتونة | U117: 48 | V117: 48 | W117: سناكس سودانى 20 كيس 15جنية | X117: 48 | AM117: 48 | AN117: 48
A118: 115 | B118: 6224001574221 | C118: سنة | D118: زى كولا مشروب غازى 275 حلى | E118: كرتونة | R118: 46 | V118: 46 | W118: زى كولا مشروب غازى 275 حلى | X118: 46 | AJ118: 46 | AN118: 46
V119: 0 | W119: 0 | X119: 0 | AN119: 0
V120: 0 | W120: 0 | X120: 0 | AN120: 0
V121: 0 | W121: 0 | X121: 0 | AN121: 0
V122: 0 | W122: 0 | X122: 0 | AN122: 0
V123: 0 | X123: 0 | AN123: 0
V124: 0 | X124: 0 | AN124: 0
V125: 0 | X125: =AN125 -> 0 | AN125: =SUM(Y125:AM125) -> 0
A126: الاجمالى | F126: =SUM(F4:F125) -> 0 | G126: 0 | H126: 0 | I126: 0 | J126: 0 | K126: 0 | L126: 38 | M126: 0 | N126: 0 | O126: 0 | P126: 2 | Q126: 0 | R126: 1182 | S126: 313 | T126: 4413 | U126: =SUM(U4:U125) -> 4073 | V126: =SUM(V4:V125) -> 10021 | X126: =SUM(X4:X125) -> 10021 | Y126: =SUM(Y4:Y125) -> 0 | Z126: 0 | AA126: 0 | AB126: 0 | AC126: 0 | AD126: 38 | AE126: 0 | AF126: 0 | AG126: 0 | AH126: 2 | AI126: 0 | AJ126: 1182 | AK126: 313 | AL126: 4413 | AM126: 4073 | AN126: =SUM(AN4:AN125) -> 10021
Y128: =G126-Y126 -> 0 | Z128: =H126-Z126 -> 0 | AA128: 0 | AB128: 0 | AC128: 0 | AD128: 0 | AE128: 0 | AF128: 0 | AG128: 0 | AH128: =P126-AH126 -> 0 | AI128: =Q126-AI126 -> 0 | AJ128: =R126-AJ126 -> 0 | AK128: =S126-AK126 -> 0 | AL128: =T126-AL126 -> 0 | AM128: =U126-AM126 -> 0
